Body Name,Service Area,Expenses Type,Invoice Payment Date,Transaction Number,Supplier Name,Net Amount
Manchester City Council,General Fund,Levies - Cash Limit,13-Jul-22,1907606870,GMCA,"3,755,400.00"
Manchester City Council,Collection Fund,Ctax Preceptr Pymnts,18-Jul-22,1907606905,GMCA,"3,733,897.00"
Manchester City Council,Chief Executives,Works and associated costs for Land and Buildings,20-Jul-22,5105825026,Laing O'Rourke Construction Ltd,"3,270,194.00"
Manchester City Council,Corporate Services,Energy Rebate,04-Jul-22,1907794330,Post Office Ltd - Postal Order Pay,"3,254,200.00"
Manchester City Council,General Fund,BRP Top Up Payments,15-Jul-22,1907606840,DCLG,"3,152,946.00"
Manchester City Council,Corporate Services,Works and associated costs for Land and Buildings,18-Jul-22,5105824778,LendLease Construction(EUROPE) Ltd,"3,029,946.34"
Manchester City Council,General Fund,BRP Top Up Payments,29-Jul-22,1907788878,DCLG,"2,802,619.00"
Manchester City Council,Manchester Leisure,Levies,20-Jul-22,1907824777,GMCA,"2,496,000.00"
Manchester City Council,Childrens Services,Building Works,28-Jul-22,5105826717,Sir Robert McAlpine Limited,"2,236,454.48"
Manchester City Council,Adult Social Care,Works and associated costs for Land and Buildings,05-Jul-22,5105823352,Morgan Sindall C & I Ltd,"2,012,501.76"
Manchester City Council,Manchester Leisure,Works and associated costs for Land and Buildings,06-Jul-22,5105823353,ISG Construction Limited,"1,927,952.37"
Manchester City Council,Manchester Leisure,Grant and subscriptions awarded,15-Jul-22,5105824517,Manchester Active,"1,830,098.48"
Manchester City Council,Housing Revenue Account,Private Finance and Public Private partnership initiatives,22-Jul-22,5105825869,Renaissance Miles Platting Ltd,"1,434,526.29"
Manchester City Council,Manchester Leisure,Works and associated costs for Land and Buildings,11-Jul-22,5105823981,Laing O'Rourke Construction Ltd,"1,413,198.18"
Manchester City Council,Manchester Leisure,Refuse Collection,18-Jul-22,5105824015,Biffa Municipal Limited,"1,152,854.79"
Manchester City Council,Childrens & Education Services,Payments for services,15-Jul-22,5105824850,The Manchester College,"909,586.42"
Manchester City Council,Corporate Services,Works and associated costs for Land and Buildings,15-Jul-22,5105823784,Morgan Sindall C & I Ltd,"882,275.69"
Manchester City Council,Housing Revenue Account,Works and associated costs for Land and Buildings,29-Jul-22,5105826965,Rowlinson Constructions Ltd,"832,653.20"
Manchester City Council,Corporate Services,Works and associated costs for Land and Buildings,18-Jul-22,5105824778,LendLease Construction(EUROPE) Ltd,"796,136.21"
Manchester City Council,Housing Revenue Account,Private Finance and Public Private partnership initiatives,21-Jul-22,5105825577,S4B Limited,"769,770.34"
Manchester City Council,Highways Services,Private Finance and Public Private partnership initiatives,08-Jul-22,5105823612,Amey Highways Lighting (Manchester),"717,564.55"
Manchester City Council,Corporate Services,Works and associated costs for Land and Buildings,18-Jul-22,5105824778,LendLease Construction(EUROPE) Ltd,"550,285.18"
Manchester City Council,Adult Social Care,Third party payments relating to Voluntary Organisations,13-Jul-22,5105824474,Change Grow Live,"538,988.67"
Manchester City Council,Adult Social Care,Third party payments relating to Voluntary Organisations,28-Jul-22,5105825478,Change Grow Live,"538,984.67"
Manchester City Council,Housing General Fund,Works and associated costs for Land and Buildings,14-Jul-22,5105823984,Wates Construction Ltd,"511,145.39"
Manchester City Council,Manchester Leisure,Responsive Repairs Work,13-Jul-22,5105824566,EQUANS Regeneration Limited,"443,608.58"
Manchester City Council,Manchester Leisure,Responsive Repairs Work,29-Jul-22,5105826750,EQUANS Regeneration Limited,"443,608.58"
Manchester City Council,Childrens & Education Services,Carer Support Payments ,26-Jul-22,5105826396,Stockport Metropolitan Borough,"434,620.75"
Manchester City Council,Childrens & Education Services,Private Finance and Public Private partnership initiatives,12-Jul-22,5105824171,Manchester School Services Limited,"426,185.25"
Manchester City Council,Chief Executives,Works and associated costs for Land and Buildings,20-Jul-22,5105825026,Laing O'Rourke Construction Ltd,"393,791.00"
Manchester City Council,Corporate Services,Works and associated costs for Land and Buildings,21-Jul-22,5105825494,Bam Nuttall Ltd,"365,745.18"
Manchester City Council,Chief Executives,Works and associated costs for Land and Buildings,11-Jul-22,5105823466,EQUANS Regeneration Limited,"332,935.60"
Manchester City Council,Manchester Leisure,Payments for services,14-Jul-22,5105824377,Greenwich Leisure Limited,"300,963.00"
Manchester City Council,Corporate Services,Payments to Contractors,22-Jul-22,5105825984,NSL Ltd,"296,553.74"
Manchester City Council,Manchester Leisure,Payments for services,08-Jul-22,5105823027,Greenwich Leisure Limited,"288,536.00"
Manchester City Council,Corporate Services,Works and associated costs for Land and Buildings,29-Jul-22,5105826826,Conlon Construction Ltd,"285,862.25"
Manchester City Council,Manchester Leisure,Payments to Contractors,21-Jul-22,5105824314,Biffa Municipal Limited,"276,349.34"
Manchester City Council,Childrens & Education Services,Payments for services,18-Jul-22,5105824844,St John Vianney School,"270,619.78"
Manchester City Council,Corporate Services,Works and associated costs for Land and Buildings,29-Jul-22,5105825610,Ameresco Limited,"252,742.89"
Manchester City Council,Corporate Services,Works and associated costs for Land and Buildings,06-Jul-22,5105823354,ISG Construction Limited,"248,801.16"
Manchester City Council,Regeneration Finance,Preventative Maintenance Work,25-Jul-22,5105824775,EQUANS Services Limited,"248,574.91"
Manchester City Council,Chief Executives,Works and associated costs for Land and Buildings,26-Jul-22,5105826366,Morgan Sindall C & I Ltd,"242,524.80"
Manchester City Council,Housing General Fund,Building Works,28-Jul-22,5105826813,One Manchester Limited,"236,613.60"
Manchester City Council,Regeneration Finance,Internal Repairs and Maintenance for buildings,26-Jul-22,5105826369,EQUANS Services Limited,"222,944.11"
Manchester City Council,Housing General Fund,Works and associated costs for Land and Buildings,18-Jul-22,5105824035,Wates Construction Ltd,"212,079.25"
Manchester City Council,Highways Services,Electricity,21-Jul-22,1907826046,Haven Power Ltd,"210,286.74"
Manchester City Council,Childrens & Education Services,Gas,13-Jul-22,5105824381,Manchester School Services Limited,"200,623.02"
Manchester City Council,Regeneration Finance,Legal Fees,19-Jul-22,1907822806,Venture & Co Ltd,"200,000.00"
Manchester City Council,Housing General Fund,Building Works,28-Jul-22,5105826813,One Manchester Limited,"187,670.98"
Manchester City Council,Manchester Leisure,Payments for services,14-Jul-22,5105824435,Greenwich Leisure Limited,"183,732.75"
Manchester City Council,Manchester Leisure,Payments for services,14-Jul-22,5105824436,Greenwich Leisure Limited,"183,732.75"
Manchester City Council,Manchester Leisure,Responsive Repairs Work,18-Jul-22,5105823983,EQUANS Regeneration Limited,"179,620.32"
Manchester City Council,Highways Services,Payments to Sub-Contractors,14-Jul-22,5105823666,Rosgal Ltd,"178,265.59"
Manchester City Council,Housing Revenue Account,Council Dwelling Adaptations,18-Jul-22,5105824999,DLP Services (Northern) Ltd,"174,670.67"
Manchester City Council,Manchester Leisure,Responsive Repairs Work,07-Jul-22,5105823199,EQUANS Regeneration Limited,"172,136.14"
Manchester City Council,Housing Revenue Account,Council Dwelling Adaptations,26-Jul-22,5105826443,A Connolly Limited,"168,174.42"
Manchester City Council,Environment and Operations,Construction Works,27-Jul-22,5105826531,Bethell Construction Ltd,"166,698.53"
Manchester City Council,Environment and Operations,Construction Works,29-Jul-22,5105826533,Bethell Construction Ltd,"166,698.53"
Manchester City Council,Collection Fund,Bus Rate - Preceptor,18-Jul-22,1907606905,GMCA,"162,768.00"
Manchester City Council,Adult Social Care,Third party payments relating to Voluntary Organisations,06-Jul-22,5105823533,Gaddum Centre,"162,682.00"
Manchester City Council,Adult Social Care,Third party payments relating to Voluntary Organisations,18-Jul-22,5105823953,Change Grow Live,"157,529.73"
Manchester City Council,Housing General Fund,Building Works,21-Jul-22,5105825811,One Manchester Limited,"156,275.97"
Manchester City Council,Manchester Leisure,Responsive Repairs Work,13-Jul-22,5105824562,EQUANS Regeneration Limited,"154,417.60"
Manchester City Council,Chief Executives,Works and associated costs for Land and Buildings,20-Jul-22,5105824771,Faithful & Gould Ltd,"154,345.00"
Manchester City Council,Chief Executives,Works and associated costs for Land and Buildings,29-Jul-22,5105825534,Faithful & Gould Ltd,"154,345.00"
Manchester City Council,Regeneration Finance,Professional fees,13-Jul-22,1907818044,Gunner Cooke LLP,"153,860.00"
Manchester City Council,Corporate Services,Works and associated costs for Land and Buildings,29-Jul-22,5105826928,Warden Construction Ltd,"151,589.44"
Manchester City Council,Adult Social Care,Third party payments to Health Authority,28-Jul-22,5105826382,Greater Manchester Mental Health,"148,242.00"
Manchester City Council,Housing Revenue Account,Council Dwelling Adaptations,21-Jul-22,5105825696,Emanuel Whittaker Ltd,"147,034.30"
Manchester City Council,Chief Executives,ICT Sup & Maintnance,27-Jul-22,5105825787,Liquidlogic Ltd,"146,879.63"
Manchester City Council,Environment and Operations,Construction Works,22-Jul-22,5105825531,Kiely Bros Ltd,"146,250.00"
Manchester City Council,Chief Executives,Third party payments relating to Voluntary Organisations,15-Jul-22,5105824780,Manchester Alliance For,"144,750.00"
Manchester City Council,Housing General Fund,Works and associated costs for Land and Buildings,20-Jul-22,5105824375,Mace Ltd,"143,515.00"
Manchester City Council,Corporate Services,HH Support Fund,19-Jul-22,1907822817,Post Office Ltd,"143,190.00"
Manchester City Council,Corporate Services,Works and associated costs for Land and Buildings,29-Jul-22,5105825602,Ameresco Limited,"142,766.46"
Manchester City Council,Environment and Operations,Construction Works,27-Jul-22,5105826509,Bethell Construction Ltd,"135,782.92"
Manchester City Council,Regeneration Finance,Gas,28-Jul-22,1907833188,Corona Energy Ltd,"127,880.45"
Manchester City Council,Environment and Operations,Construction Works,22-Jul-22,5105825535,Kiely Bros Ltd,"125,287.42"
Manchester City Council,Corporate Services,Works and associated costs for Land and Buildings,21-Jul-22,5105825622,R Development Ltd,"123,499.86"
Manchester City Council,Manchester Leisure,Grant and subscriptions awarded,20-Jul-22,5105825363,Wythenshawe Community Housing Group,"123,166.50"
Manchester City Council,Adult Social Care,RNH Permanent Pays,04-Jul-22,1907789223,Blackburn with Darwen Borough Counc,"122,298.96"
Manchester City Council,Corporate Services,Works and associated costs for Land and Buildings,14-Jul-22,5105823982,Conlon Construction Ltd,"121,671.05"
Manchester City Council,Adult Social Care,Payments for services,26-Jul-22,5105826368,Salford City Council,"118,131.00"
Manchester City Council,Chief Executives,Grant and subscriptions awarded,07-Jul-22,5105823616,National Football Museum,"116,666.66"
Manchester City Council,Chief Executives,Grant and subscriptions awarded,12-Jul-22,5105823635,National Football Museum,"116,666.66"
Manchester City Council,Adult Social Care,Third party payments to Health Authority,29-Jul-22,5105826734,Greater Manchester Mental Health,"115,324.00"
Manchester City Council,Regeneration Finance,Security,14-Jul-22,5105824702,MITIE SECURITY LIMITED,"114,962.67"
Manchester City Council,Adult Social Care,Third party payments relating to Voluntary Organisations,29-Jul-22,5105823534,Gaddum Centre,"114,256.00"
Manchester City Council,Regeneration Finance,Security,14-Jul-22,5105824688,MITIE SECURITY LIMITED,"114,210.51"
Manchester City Council,Regeneration Finance,Security,21-Jul-22,5105824726,MITIE SECURITY LIMITED,"114,170.91"
Manchester City Council,Hospitality + Trading Services,Refuse Collection,29-Jul-22,5105826998,Biffa Municipal Limited,"113,036.99"
Manchester City Council,Adult Social Care,Rents,21-Jul-22,5105825573,T15 Consultancy Ltd,"111,466.16"
Manchester City Council,Childrens & Education Services,Payments for services,29-Jul-22,5105826849,Belmont School Ltd,"111,264.57"
Manchester City Council,Manchester Leisure,Responsive Repairs Work,29-Jul-22,5105827086,EQUANS Regeneration Limited,"110,618.78"
Manchester City Council,Manchester Leisure,Grant and subscriptions awarded,26-Jul-22,5105825530,Moss Side Millennium Powerhouse Ltd,"110,000.00"
Manchester City Council,Childrens Services,Works and associated costs for Land and Buildings,29-Jul-22,5105826926,Warden Construction Ltd,"105,772.05"
Manchester City Council,Chief Executives,Third party payments relating to Voluntary Organisations,11-Jul-22,5105823473,HOME,"105,699.50"
Manchester City Council,Highways Services,Payments to Sub-Contractors,11-Jul-22,5105823068,Rosgal Ltd,"104,340.00"
Manchester City Council,Adult Social Care,Rents,29-Jul-22,5105826741,Manchester Housing Group Ltd,"103,974.78"
Manchester City Council,Corporate Services,Works and associated costs for Land and Buildings,25-Jul-22,5105824988,Ameresco Limited,"103,696.28"
Manchester City Council,Adult Social Care,Third party payments relating to Voluntary Organisations,29-Jul-22,5105825576,Change Grow Live,"100,643.00"
Manchester City Council,Corporate Services,Works and associated costs for Land and Buildings,29-Jul-22,5105825608,Ameresco Limited,"100,476.82"
Manchester City Council,Highways Services,Payments to Sub-Contractors,29-Jul-22,5105823631,Rosgal Ltd,"100,371.46"
Manchester City Council,Adult Social Care,Professional fees,28-Jul-22,5105826728,The Depaul Trust,"100,000.00"
Manchester City Council,Highways Services,Payments to Sub-Contractors,15-Jul-22,5105823476,Rosgal Ltd,"98,885.59"
Manchester City Council,Regeneration Finance,Internal Repairs and Maintenance for buildings,19-Jul-22,5105825042,EQUANS Services Limited,"97,357.33"
Manchester City Council,Childrens & Education Services,Third party payments relating to Voluntary Organisations,20-Jul-22,5105825357,Action For Children Services Ltd,"95,041.25"
Manchester City Council,Childrens & Education Services,Transport Coach Hire,22-Jul-22,5105825372,Westfield Minibuses,"94,791.58"
Manchester City Council,Childrens Services,Building Works,06-Jul-22,5105823372,Our Lady's RC High School,"94,560.67"
Manchester City Council,Adult Social Care,Grant and subscriptions awarded,04-Jul-22,5105823126,Riverside ECHG,"93,030.50"
Manchester City Council,Manchester Leisure,Responsive Repairs Work,29-Jul-22,5105826748,EQUANS Regeneration Limited,"92,632.38"
Manchester City Council,Adult Social Care,Third party payments relating to Voluntary Organisations,29-Jul-22,5105825575,Change Grow Live,"92,372.00"
Manchester City Council,Manchester Leisure,Responsive Repairs Work,13-Jul-22,5105824564,EQUANS Regeneration Limited,"90,004.33"
Manchester City Council,Manchester Leisure,Responsive Repairs Work,29-Jul-22,5105826843,EQUANS Regeneration Limited,"90,004.33"
Manchester City Council,Manchester Leisure,Refuse Collection,21-Jul-22,5105824319,Biffa Municipal Limited,"87,994.52"
Manchester City Council,Corporate Services,Professional fees,21-Jul-22,5105825821,Post Office Ltd,"85,980.50"
Manchester City Council,Childrens & Education Services,Payments for services,21-Jul-22,5105825712,Teenage Works,"84,805.61"
Manchester City Council,Chief Executives,Third party payments relating to Voluntary Organisations,25-Jul-22,5105825495,The Bridgewater Hall,"84,245.25"
Manchester City Council,Childrens & Education Services,Private Finance and Public Private partnership initiatives,15-Jul-22,5105823358,NU3PS,"84,160.50"
Manchester City Council,Housing General Fund,Building Works,29-Jul-22,5105825788,Wythenshawe Community Housing Group,"82,313.34"
Manchester City Council,Childrens & Education Services,Gas,20-Jul-22,5105825498,Manchester School Services Limited,"81,813.37"
Manchester City Council,Chief Executives,Licences Purchase,19-Jul-22,5105824401,Trustmarque Solutions Ltd,"80,899.90"
Manchester City Council,Adult Social Care,Rents,28-Jul-22,5105825870,Accommodation Links Ltd,"80,404.57"
Manchester City Council,Adult Social Care,Rents,29-Jul-22,5105826447,Accommodation Links Ltd,"80,374.57"
Manchester City Council,Adult Social Care,Rents,14-Jul-22,5105823783,Accommodation Links Ltd,"80,305.71"
Manchester City Council,Adult Social Care,Rents,08-Jul-22,5105823781,MJ Rental Ltd,"80,290.92"
Manchester City Council,Adult Social Care,Rents,26-Jul-22,5105826373,Accommodation Links Ltd,"79,771.14"
Manchester City Council,Manchester Leisure,Special Event,04-Jul-22,5105823089,Acorn Construction (Yorkshire) Ltd,"78,000.00"
Manchester City Council,Manchester Leisure,Special Event,04-Jul-22,5105823111,Acorn Construction (Yorkshire) Ltd,"78,000.00"
Manchester City Council,Manchester Leisure,Refuse Collection,21-Jul-22,5105824316,Biffa Municipal Limited,"77,639.93"
Manchester City Council,Manchester Leisure,Gas,28-Jul-22,1907833021,Corona Energy Ltd,"77,529.06"
Manchester City Council,Adult Social Care,Third party payments relating to Voluntary Organisations,14-Jul-22,5105824742,Barnardo's,"74,943.19"
Manchester City Council,Highways Services,Payments to Sub-Contractors,29-Jul-22,5105824291,Rosgal Ltd,"70,803.00"
Manchester City Council,Hospitality + Trading Services,Vehicle Hire Costs,29-Jul-22,5105827088,Winners Contract Hire Ltd,"70,299.35"
Manchester City Council,Corporate Services,Payments to Contractors,22-Jul-22,5105825983,NSL Ltd,"69,949.18"
Manchester City Council,Manchester Leisure,Works and associated costs for Land and Buildings,14-Jul-22,5105824346,ISG Construction Limited,"69,944.21"
Manchester City Council,Adult Social Care,Rents,28-Jul-22,5105826743,Manchester Bumblebee Ltd,"69,321.02"
Manchester City Council,Corporate Services,Works and associated costs for Land and Buildings,29-Jul-22,5105825609,Ameresco Limited,"69,120.69"
Manchester City Council,Chief Executives,Works and associated costs for Land and Buildings,26-Jul-22,5105826363,Turner & Townsend Cost,"68,286.05"
Manchester City Council,Environment and Operations,Construction Works,18-Jul-22,5105823960,Eric Wright Civil Engineering Limit,"68,032.62"
Manchester City Council,Housing Revenue Account,Council Dwelling Adaptations,11-Jul-22,5105823951,"Jackson, Jackson & Sons Ltd","67,375.93"
Manchester City Council,Childrens & Education Services,Professional fees,29-Jul-22,5105826391,Career Connect,"67,001.75"
Manchester City Council,Childrens & Education Services,Professional fees,29-Jul-22,5105826393,Career Connect,"67,001.75"
Manchester City Council,Manchester Leisure,Grant and subscriptions awarded,20-Jul-22,5105825274,Barlow Moor Community Association,"65,288.00"
Manchester City Council,Corporate Services,Works and associated costs for Land and Buildings,08-Jul-22,5105823795,Purcell Architecture Limited,"65,000.00"
Manchester City Council,Chief Executives,Agency staff provision,15-Jul-22,5105823985,Cadence Resourcing Ltd,"64,136.00"
Manchester City Council,Environment and Operations,Construction Works,13-Jul-22,5105824399,Yunex Ltd,"64,080.00"
Manchester City Council,Corporate Services,Works and associated costs for Land and Buildings,29-Jul-22,5105826927,Warden Construction Ltd,"63,959.42"
Manchester City Council,Childrens Services,Works and associated costs for Land and Buildings,11-Jul-22,5105823958,PLP Construction Ltd,"63,884.44"
Manchester City Council,Manchester Leisure,Responsive Repairs Work,13-Jul-22,5105824565,EQUANS Regeneration Limited,"63,453.89"
Manchester City Council,Manchester Leisure,Responsive Repairs Work,29-Jul-22,5105826841,EQUANS Regeneration Limited,"63,453.89"
Manchester City Council,Chief Executives,Works and associated costs for Land and Buildings,26-Jul-22,5105826366,Morgan Sindall C & I Ltd,"62,902.26"
Manchester City Council,Chief Executives,Vehicle Plant Furniture and Equipment,29-Jul-22,5105826860,Insight Direct (Uk) Ltd,"62,408.00"
Manchester City Council,Environment and Operations,Works and associated costs for Land and Buildings,29-Jul-22,5105825819,EQUANS Regeneration Limited,"61,706.64"
Manchester City Council,Manchester Leisure,Subsistence and Conference Expenses,19-Jul-22,5105825245,Corporate & Sporting Events,"61,629.17"
Manchester City Council,Chief Executives,Agency staff provision,14-Jul-22,5105824608,Liquid Personnel Ltd,"60,802.21"
Manchester City Council,Adult Social Care,Rents,21-Jul-22,5105825731,District Homes Cic,"60,557.40"
Manchester City Council,Hospitality + Trading Services,Legal Fees,13-Jul-22,1907814558,Department For Work & Pensions,"60,131.19"
Manchester City Council,Regeneration Finance,Gas,28-Jul-22,1907833190,Corona Energy Ltd,"60,052.24"
Manchester City Council,Childrens & Education Services,Payments for services,13-Jul-22,5105824420,The Together Trust,"59,791.85"
Manchester City Council,Regeneration Finance,Internal Repairs and Maintenance for buildings,13-Jul-22,5105824351,EQUANS Services Limited,"59,006.47"
Manchester City Council,Childrens & Education Services,Payments for services,28-Jul-22,5105826807,The Together Trust,"58,706.36"
Manchester City Council,Adult Social Care,Grant and subscriptions awarded,21-Jul-22,5105825815,Divrse Ltd,"58,590.00"
Manchester City Council,Chief Executives,I T Provision,06-Jul-22,5105823374,Thompson Reuters,"57,999.96"
Manchester City Council,Childrens & Education Services,Transport Coach Hire,12-Jul-22,5105824392,Mantax Radio Taxis Ltd,"56,618.50"
Manchester City Council,Manchester Leisure,Payments to Sub-Contractors,22-Jul-22,5105825987,NSL Ltd,"55,696.57"
Manchester City Council,Housing General Fund,Building Works,06-Jul-22,1907798214,UPS Building & Maintenance Ltd,"54,639.64"
Manchester City Council,Childrens & Education Services,Payments for services,04-Jul-22,5105823149,The Together Trust,"54,600.76"
Manchester City Council,Adult Social Care,Payments for services,21-Jul-22,5105825538,Potensial Ltd (T/A Potens),"54,491.92"
Manchester City Council,Adult Social Care,Payments for services,29-Jul-22,5105826719,Potensial Ltd (T/A Potens),"54,491.92"
Manchester City Council,Adult Social Care,Payments for services,29-Jul-22,5105826389,Potensial Ltd (T/A Potens),"54,491.92"
Manchester City Council,Hospitality + Trading Services,Electricity,21-Jul-22,1907825732,Npower,"54,075.20"
Manchester City Council,Highways Services,Payments to Sub-Contractors,29-Jul-22,5105826852,Rosgal Ltd,"53,560.30"
Manchester City Council,Corporate Services,Works and associated costs for Land and Buildings,20-Jul-22,1907822734,Aon UK Limited,"53,221.55"
Manchester City Council,Regeneration Finance,Gas,28-Jul-22,1907833189,Corona Energy Ltd,"52,968.62"
Manchester City Council,Adult Social Care,Third party payments relating to Voluntary Organisations,13-Jul-22,5105824490,Change Grow Live Services Ltd,"52,783.08"
Manchester City Council,Adult Social Care,Third party payments relating to Voluntary Organisations,28-Jul-22,5105825492,Change Grow Live Services Ltd,"52,783.08"
Manchester City Council,Environment and Operations,Construction Works,27-Jul-22,5105826390,Rosgal Ltd,"52,437.21"
Manchester City Council,Manchester Leisure,Refuse Collection,21-Jul-22,5105824317,Biffa Municipal Limited,"51,528.66"
Manchester City Council,Chief Executives,Landline Telephone,13-Jul-22,5105823531,8x8 UK Ltd,"51,086.49"
Manchester City Council,Chief Executives,Agency staff provision,25-Jul-22,5105826307,Eden Brown Synergy,"50,224.01"
Manchester City Council,Regeneration Finance,Grant Payments,12-Jul-22,5105824041,Cityco,"50,000.00"
Manchester City Council,Corporate Services,Works and associated costs for Land and Buildings,18-Jul-22,5105824034,Pell Frischmann Consultants Ltd,"50,000.00"
Manchester City Council,Chief Executives,Professional fees,26-Jul-22,5105826321,TPXimpact Limited,"49,974.00"
Manchester City Council,Chief Executives,Professional fees,22-Jul-22,5105825882,TPXimpact Limited,"49,973.00"
Manchester City Council,Manchester Leisure,Special Event,19-Jul-22,5105823166,MK Illuminations UK Ltd,"49,898.80"
Manchester City Council,Adult Social Care,Professional fees,19-Jul-22,5105825050,Revolving Doors Housing Trust,"49,824.77"
Manchester City Council,Regeneration Finance,Internal Repairs and Maintenance for buildings,29-Jul-22,5105825579,EQUANS Services Limited,"49,654.42"
Manchester City Council,Childrens & Education Services,Home Care ,26-Jul-22,5105826398,Staff Resources Ltd,"48,780.00"
Manchester City Council,Corporate Services,Works and associated costs for Land and Buildings,20-Jul-22,1907822736,Aon UK Limited,"48,526.06"
Manchester City Council,Corporate Services,Works and associated costs for Land and Buildings,29-Jul-22,5105825621,Ameresco Limited,"48,500.70"
Manchester City Council,Environment and Operations,Construction Works,22-Jul-22,5105825533,Kiely Bros Ltd,"48,400.00"
Manchester City Council,Adult Social Care,Third party payments relating to Voluntary Organisations,13-Jul-22,5105824477,Change Grow Live,"48,251.92"
Manchester City Council,Adult Social Care,Third party payments relating to Voluntary Organisations,28-Jul-22,5105825480,Change Grow Live,"48,251.92"
Manchester City Council,Childrens Services,Building Works,14-Jul-22,5105824633,Renaker Build Limited,"48,174.20"
Manchester City Council,Housing Revenue Account,External repairs and maintenance for buildings,29-Jul-22,5105826881,SHOUT TMO,"47,287.20"
Manchester City Council,Childrens & Education Services,Payments for services,28-Jul-22,5105826751,Social Care Services (Clayton) Ltd,"46,800.00"
Manchester City Council,Chief Executives,Furniture,26-Jul-22,5105826472,H Jenkinson & Co Ltd.,"46,718.22"
Manchester City Council,Chief Executives,Vehicle Plant Furniture and Equipment,08-Jul-22,5105823094,Insight Direct (Uk) Ltd,"46,008.00"
Manchester City Council,Chief Executives,Works and associated costs for Land and Buildings,29-Jul-22,5105824380,EQUANS Regeneration Limited,"45,977.39"
Manchester City Council,Manchester Leisure,Cash Collection,21-Jul-22,5105823814,APCOA PARKING UK Ltd,"45,894.13"
Manchester City Council,Childrens Services,Works and associated costs for Land and Buildings,29-Jul-22,5105825881,Conlon Construction Ltd,"45,426.23"
Manchester City Council,Corporate Services,Works and associated costs for Land and Buildings,18-Jul-22,5105824778,LendLease Construction(EUROPE) Ltd,"45,297.50"
Manchester City Council,Housing General Fund,Building Works,28-Jul-22,5105826747,Southway Housing Trust,"45,296.25"
Manchester City Council,Environment and Operations,Construction Works,11-Jul-22,5105823355,R & M Developments Ltd,"45,252.50"
Manchester City Council,Adult Social Care,Extra Care Sheltd HP,13-Jul-22,5105824571,Premier Care  Ltd,"45,138.38"
Manchester City Council,Adult Social Care,Payments for services,25-Jul-22,5105826029,Morelife (UK) Ltd,"45,116.00"
Manchester City Council,Environment and Operations,Construction Works,25-Jul-22,5105824992,Balfour Beatty Living Places Ltd,"44,755.14"
Manchester City Council,Childrens & Education Services,Payments for services,15-Jul-22,5105824821,Oldham College Corporation,"44,200.62"
Manchester City Council,Libraries and Theatres,Works and associated costs for Land and Buildings,13-Jul-22,5105824344,Robertson Construction Group,"43,726.32"
Manchester City Council,Chief Executives,ICT Sup & Maintnance,29-Jul-22,5105825574,ESRI (Uk) Ltd,"43,398.00"
Manchester City Council,Adult Social Care,Rents,21-Jul-22,5105825539,B & A Properties,"43,032.86"
Manchester City Council,Childrens & Education Services,Catering Provisions,05-Jul-22,1907796137,Ralph Livesey Ltd,"42,916.55"
Manchester City Council,Adult Social Care,Payments for services,11-Jul-22,5105823263,Brook,"42,891.49"
Manchester City Council,Manchester Leisure,Responsive Repairs Work,29-Jul-22,5105827085,EQUANS Regeneration Limited,"42,733.45"
Manchester City Council,Adult Social Care,Extra Care Sheltd HP,25-Jul-22,5105823611,Sevacare (U K ) lTD,"42,543.28"
Manchester City Council,Adult Social Care,Grant and subscriptions awarded,04-Jul-22,5105823125,Riverside ECHG,"42,000.00"
Manchester City Council,Regeneration Finance,External repairs and maintenance for buildings,28-Jul-22,5105826720,F Parkinson Limited,"41,732.23"
Manchester City Council,Adult Social Care,Third party payments relating to Voluntary Organisations,21-Jul-22,5105825475,Manchester Womens Aid,"41,589.75"
Manchester City Council,Chief Executives,Mobilephone Charges,05-Jul-22,1907796156,EE / Orange,"41,047.67"
Manchester City Council,Housing General Fund,Building Works,11-Jul-22,5105823335,Manchester Care & Repair Ltd,"40,700.00"
Manchester City Council,Manchester Leisure,Professional fees,18-Jul-22,1907822616,Shandong Taishan Sports Equipment C,"40,684.86"
Manchester City Council,Manchester Leisure,Professional fees,26-Jul-22,5105826360,Greenwich Leisure Limited,"40,322.05"
Manchester City Council,Manchester Leisure,Refuse Collection,21-Jul-22,5105824320,Biffa Municipal Limited,"40,304.25"
Manchester City Council,Environment and Operations,Construction Works,15-Jul-22,5105824807,J.Hopkins (Contractors) Ltd.,"40,190.52"
Manchester City Council,Childrens & Education Services,Transport Coach Hire,29-Jul-22,5105827000,Lancasterian School,"40,013.75"
Manchester City Council,Regeneration Finance,Professional fees,13-Jul-22,5105824374,Eversheds Llp,"39,992.76"
Manchester City Council,Corporate Services,Audit Commission Fee,19-Jul-22,5105825379,Mazars LLP,"39,879.00"
Manchester City Council,Adult Social Care,Extra Care Sheltd HP,29-Jul-22,5105823520,CRG Homecare Limited,"39,664.20"
Manchester City Council,Childrens & Education Services,Transport Coach Hire,15-Jul-22,5105823254,M Travel,"39,660.00"
Manchester City Council,Chief Executives,Data Links,27-Jul-22,1907828544,BT PLC,"39,375.82"
Manchester City Council,Regeneration Finance,Rents,22-Jul-22,1907818961,CBRE Ltd (Glasgow),"38,815.75"
Manchester City Council,Childrens Services,Works and associated costs for Land and Buildings,22-Jul-22,5105825866,J Greenwood (Builders) Limited,"38,607.46"
Manchester City Council,Housing General Fund,Building Works,26-Jul-22,5105826359,Southway Housing Trust,"38,367.42"
Manchester City Council,Corporate Services,Works and associated costs for Land and Buildings,28-Jul-22,5105826416,Ove Arup & Partners Ltd,"38,094.43"
Manchester City Council,Childrens & Education Services,Payments for services,28-Jul-22,5105826805,The Together Trust,"37,885.05"
Manchester City Council,Hospitality + Trading Services,Vehicle Hire Costs,13-Jul-22,5105824620,Manchester Van Hire Ltd,"37,400.87"
Manchester City Council,Adult Social Care,Extra Care Sheltd HP,29-Jul-22,5105823266,DH Homecare Ltd (Direct Health),"37,033.52"
Manchester City Council,Corporate Services,Works and associated costs for Land and Buildings,08-Jul-22,5105823773,Faithful & Gould Ltd,"37,000.00"
Manchester City Council,Regeneration Finance,Third party payments relating to Voluntary Organisations,29-Jul-22,5105827083,Back On Track,"36,794.00"
Manchester City Council,Childrens & Education Services,Payments for services,15-Jul-22,5105824839,Music Stuff,"36,462.51"
Manchester City Council,Childrens & Education Services,Transport Coach Hire,12-Jul-22,5105824391,Mantax Radio Taxis Ltd,"36,318.00"
Manchester City Council,Housing General Fund,Building Works,26-Jul-22,5105826385,Southway Housing Trust,"36,223.55"
Manchester City Council,Housing General Fund,Building Works,21-Jul-22,5105825814,Southway Housing Trust,"36,080.22"
Manchester City Council,Adult Social Care,Extra Care Sheltd HP,13-Jul-22,5105824572,Premier Care  Ltd,"36,044.96"
Manchester City Council,Regeneration Finance,Professional fees,22-Jul-22,5105825992,Savills Commercial Ltd,"36,000.00"
Manchester City Council,Adult Social Care,Bed & Breakfast Acc,14-Jul-22,5105824728,Redacted Personal Information,"35,822.50"
Manchester City Council,Chief Executives,Vehicle Plant Furniture and Equipment,22-Jul-22,5105825107,XMA Limited,"35,473.53"
Manchester City Council,Chief Executives,Vehicle Plant Furniture and Equipment,29-Jul-22,5105826463,XMA Limited,"35,473.53"
Manchester City Council,Childrens & Education Services,Payments for services,13-Jul-22,5105824424,The Together Trust,"35,359.38"
Manchester City Council,Corporate Services,Grant Payments,29-Jul-22,5105825537,The Copyright Licensing Agency Ltd,"35,243.67"
Manchester City Council,Adult Social Care,Bed & Breakfast Acc,15-Jul-22,5105824811,Redacted Personal Information,"35,020.50"
Manchester City Council,Adult Social Care,Bed & Breakfast Acc,15-Jul-22,5105824812,Redacted Personal Information,"34,976.50"
Manchester City Council,Adult Social Care,Third party payments relating to Voluntary Organisations,06-Jul-22,5105823443,Divrse Ltd,"34,653.00"
Manchester City Council,Adult Social Care,Rents,21-Jul-22,5105824791,Housing Social Ltd,"34,478.41"
Manchester City Council,Childrens & Education Services,Supported Accommodation,20-Jul-22,5105825425,Amore Social Care Ltd,"34,007.24"
Manchester City Council,Adult Social Care,Rents,29-Jul-22,5105826536,Housing Social Ltd,"33,768.87"
Manchester City Council,Adult Social Care,Third party payments to Health Authority,29-Jul-22,5105826734,Greater Manchester Mental Health,"32,918.00"
Manchester City Council,Manchester Leisure,Responsive Repairs Work,13-Jul-22,5105824556,EQUANS Regeneration Limited,"32,889.04"
Manchester City Council,Adult Social Care,Supporting People Payments,29-Jul-22,5105826745,Making Space,"32,755.53"
Manchester City Council,Corporate Services,Works and associated costs for Land and Buildings,11-Jul-22,5105823776,Mace Ltd,"32,698.00"
Manchester City Council,Environment and Operations,Construction Works,27-Jul-22,5105826502,J.Hopkins (Contractors) Ltd.,"32,655.83"
Manchester City Council,Chief Executives,Rents,26-Jul-22,5105826394,Greater Manchester Police,"32,250.00"
Manchester City Council,Environment and Operations,Construction Works,20-Jul-22,5105825401,Kiely Bros Ltd,"31,350.00"
Manchester City Council,Childrens & Education Services,Payments for services,21-Jul-22,5105825715,The William Henry Smith School,"31,291.00"
Manchester City Council,Chief Executives,Rents,15-Jul-22,5105823870,UKfast.net Ltd,"31,000.00"
Manchester City Council,Manchester Leisure,Responsive Repairs Work,29-Jul-22,5105826749,EQUANS Regeneration Limited,"30,877.46"
Manchester City Council,Adult Social Care,Professional fees,26-Jul-22,5105826370,Local Partnerships LLP,"30,861.08"
Manchester City Council,Hospitality + Trading Services,Vehicle Fuel Costs,13-Jul-22,5105824372,Standard Fuels Oils,"30,842.12"
Manchester City Council,Housing General Fund,Building Works,11-Jul-22,5105823334,Manchester Care & Repair Ltd,"30,780.00"
Manchester City Council,Childrens & Education Services,Carer Support Payments ,12-Jul-22,1907814540,Care Solutions Recruitment Agency L,"30,721.95"
Manchester City Council,Childrens Services,Works and associated costs for Land and Buildings,25-Jul-22,5105824776,Warden Construction Ltd,"30,586.11"
Manchester City Council,Childrens & Education Services,Payments for services,18-Jul-22,5105824843,St John Vianney School,"30,490.16"
Manchester City Council,Hospitality + Trading Services,Vehicle Fuel Costs,29-Jul-22,5105826496,Standard Fuels Oils,"30,193.84"
Manchester City Council,Regeneration Finance,Electricity,21-Jul-22,1907825725,Npower,"30,134.02"
Manchester City Council,Manchester Leisure,Refuse Collection,21-Jul-22,5105824394,Biffa Municipal Limited,"30,000.00"
Manchester City Council,Manchester Leisure,Professional fees,15-Jul-22,1907819148,Sweetspot Group Limited,"30,000.00"
Manchester City Council,Adult Social Care,Vehicle Plant Furniture and Equipment,22-Jul-22,5105826209,H Jenkinson & Co Ltd.,"29,850.25"
Manchester City Council,Chief Executives,Legal Fees,29-Jul-22,5105826746,Amion Consulting Ltd,"29,723.90"
Manchester City Council,Chief Executives,Legal Fees,20-Jul-22,1907824762,Liberata,"29,664.00"
Manchester City Council,Childrens & Education Services,Third party payments to other Local Authorities,15-Jul-22,5105824889,Droylsden Academy,"29,613.00"
Manchester City Council,Adult Social Care,Third party payments relating to Voluntary Organisations,11-Jul-22,5105823869,Manchester Carers Centre,"29,167.00"
Manchester City Council,Adult Social Care,Third party payments relating to Voluntary Organisations,11-Jul-22,5105823904,Manchester Carers Forum,"29,167.00"
Manchester City Council,Adult Social Care,Third party payments relating to Voluntary Organisations,07-Jul-22,5105823585,African & Caribbean Mental Health,"29,167.00"
Manchester City Council,Adult Social Care,Third party payments relating to Voluntary Organisations,07-Jul-22,5105823634,Age Concern Manchester,"29,000.00"
Manchester City Council,Adult Social Care,Payments for services,25-Jul-22,5105826027,Morelife (UK) Ltd,"28,983.00"
Manchester City Council,Regeneration Finance,Third party payments relating to Voluntary Organisations,11-Jul-22,5105823957,Reform Radio CIC,"28,952.00"
Manchester City Council,Housing General Fund,Works and associated costs for Land and Buildings,29-Jul-22,5105826923,Mace Ltd,"28,703.00"
Manchester City Council,Highways Services,Building Materials for direct delivery,20-Jul-22,5105825477,Pomery Natural Stone Ltd,"28,650.00"
Manchester City Council,Hospitality + Trading Services,Vehicle Fuel Costs,29-Jul-22,5105823154,Standard Fuels Oils,"28,585.41"
Manchester City Council,Childrens & Education Services,Professional fees,29-Jul-22,5105827015,Wigan Metropolitan Borough Council,"28,262.47"
Manchester City Council,Highways Services,Professional fees,22-Jul-22,5105824777,Pell Frischmann Consultants Ltd,"27,939.00"
Manchester City Council,Chief Executives,Postage,05-Jul-22,5105823337,Royal Mail Group Plc,"27,588.36"
Manchester City Council,Adult Social Care,Extra Care Sheltd HP,13-Jul-22,5105824539,Premier Care  Ltd,"27,462.83"
Manchester City Council,Regeneration Finance,Professional fees,11-Jul-22,5105823161,Transport for Greater Manchester,"27,358.33"
Manchester City Council,Corporate Services,Fees,29-Jul-22,1907826531,Marston Group Limited,"27,267.00"
Manchester City Council,Regeneration Finance,Professional fees,22-Jul-22,5105825989,Savills Commercial Ltd,"26,800.00"
Manchester City Council,Chief Executives,Funeral and coroner related services,12-Jul-22,5105824266,Central Mcr Uni Hospital t/a,"26,644.05"
Manchester City Council,Chief Executives,CRB Fees,11-Jul-22,5105823945,Disclosure & Barring Service,"26,383.00"
Manchester City Council,Housing General Fund,Building Works,20-Jul-22,1907824616,UPS Building & Maintenance Ltd,"26,265.25"
Manchester City Council,Chief Executives,Agency staff provision,25-Jul-22,5105826227,Deekay Technical Recruitment Ltd,"26,086.58"
Manchester City Council,Environment and Operations,Construction Works,27-Jul-22,5105826510,Bethell Construction Ltd,"25,986.16"
Manchester City Council,Childrens & Education Services,Third party payments to other Local Authorities,25-Jul-22,5105825542,New Bridge School,"25,846.56"
Manchester City Council,Adult Social Care,Third party payments relating to Voluntary Organisations,05-Jul-22,5105823208,Manchester Womens Aid,"25,421.41"
Manchester City Council,Adult Social Care,Third party payments relating to Voluntary Organisations,19-Jul-22,5105824975,Manchester Womens Aid,"25,421.41"
Manchester City Council,Corporate Services,Works and associated costs for Land and Buildings,28-Jul-22,5105826718,R Development Ltd,"25,288.97"
Manchester City Council,Childrens & Education Services,Transport Coach Hire,21-Jul-22,5105825356,Royton Minibuses Ltd,"25,119.50"
Manchester City Council,Childrens & Education Services,Transport Coach Hire,26-Jul-22,5105826428,JCT Travel Ltd,"25,085.00"
Manchester City Council,Manchester Leisure,Grant and subscriptions awarded,26-Jul-22,5105826383,Wythenshawe Forum Trust Ltd,"25,000.00"
Manchester City Council,Chief Executives,Grant and subscriptions awarded,29-Jul-22,5105826197,Breakthrough Uk Ltd,"25,000.00"
Manchester City Council,Manchester Leisure,Grant and subscriptions awarded,29-Jul-22,5105823319,The Duke of Edinburghs Award,"25,000.00"
Manchester City Council,Manchester Leisure,Refuse Collection,21-Jul-22,5105824318,Biffa Municipal Limited,"25,000.00"
Manchester City Council,Corporate Services,Works and associated costs for Land and Buildings,29-Jul-22,5105827096,Ameresco Limited,"24,837.43"
Manchester City Council,Libraries and Theatres,Vehicle Plant Furniture and Equipment,07-Jul-22,5105823792,H Jenkinson & Co Ltd.,"24,620.49"
Manchester City Council,Adult Social Care,Rents,12-Jul-22,5105824173,United Property Management Ltd,"24,491.90"
Manchester City Council,Manchester Leisure,Grant and subscriptions awarded,19-Jul-22,5105825171,Greater Manchester Police,"24,426.65"
Manchester City Council,Childrens & Education Services,Third party payments to other Local Authorities,25-Jul-22,5105825544,New Bridge School,"24,356.28"
Manchester City Council,Hospitality + Trading Services,Vehicle Fuel Costs,29-Jul-22,5105823293,Standard Fuels Oils,"24,334.33"
Manchester City Council,Manchester Leisure,Responsive Repairs Work,13-Jul-22,5105824547,EQUANS Regeneration Limited,"24,292.56"
Manchester City Council,Hospitality + Trading Services,Vehicle Hire Costs,11-Jul-22,5105823647,F.R.Sharrock Ltd,"24,266.00"
Manchester City Council,Chief Executives,Rents,06-Jul-22,5105823446,UKfast.net Ltd,"24,232.00"
Manchester City Council,Corporate Services,Works and associated costs for Land and Buildings,29-Jul-22,5105825604,Ameresco Limited,"24,168.90"
Manchester City Council,Hospitality + Trading Services,Vehicle Fuel Costs,05-Jul-22,5105823297,Standard Fuels Oils,"24,130.61"
Manchester City Council,Corporate Services,Works and associated costs for Land and Buildings,29-Jul-22,5105825603,Ameresco Limited,"24,128.06"
Manchester City Council,Environment and Operations,Construction Works,22-Jul-22,5105825898,J.Hopkins (Contractors) Ltd.,"24,109.69"
Manchester City Council,Chief Executives,Funeral and coroner related services,12-Jul-22,5105824266,Central Mcr Uni Hospital t/a,"23,883.42"
Manchester City Council,Childrens & Education Services,Payments for services,29-Jul-22,5105827007,National Offender Mgt Services,"23,870.00"
Manchester City Council,Hospitality + Trading Services,Vehicle Fuel Costs,12-Jul-22,5105823025,Standard Fuels Oils,"23,762.67"
Manchester City Council,Corporate Services,Fees,13-Jul-22,1907792399,Marston Group Limited,"23,586.75"
Manchester City Council,Highways Services,Payments to Sub-Contractors,19-Jul-22,5105825079,J.Hopkins (Contractors) Ltd.,"23,498.70"
Manchester City Council,Environment and Operations,Construction Works,29-Jul-22,5105825227,Rosgal Ltd,"23,400.00"
Manchester City Council,Chief Executives,Legal Fees,08-Jul-22,1907799023,Liberata,"23,305.00"
Manchester City Council,Regeneration Finance,Electricity,21-Jul-22,1907825670,Npower,"23,137.85"
Manchester City Council,Childrens & Education Services,Payments for services,29-Jul-22,5105826971,National Offender Mgt Services,"23,100.00"
Manchester City Council,Childrens & Education Services,Payments for services,29-Jul-22,5105826974,National Offender Mgt Services,"23,100.00"
Manchester City Council,Childrens & Education Services,Foster Payments,22-Jul-22,5105825968,Family Futures CIC,"22,770.00"
Manchester City Council,Regeneration Finance,Third party payments relating to Voluntary Organisations,25-Jul-22,5105826254,Back On Track,"22,624.00"
Manchester City Council,Corporate Services,Fees,13-Jul-22,1907792400,Marston Group Limited,"22,583.95"
Manchester City Council,Adult Social Care,Extra Care Sheltd HP,29-Jul-22,5105823265,DH Homecare Ltd (Direct Health),"22,507.75"
Manchester City Council,Manchester Leisure,Equipment,19-Jul-22,5105825290,Synectics Security Limited,"22,259.24"
Manchester City Council,Environment and Operations,Construction Works,26-Jul-22,5105826489,J.Hopkins (Contractors) Ltd.,"22,154.13"
Manchester City Council,Childrens & Education Services,Catering,29-Jul-22,5105823359,Spie Limited,"22,095.00"
Manchester City Council,Hospitality + Trading Services,Refuse Collection,29-Jul-22,5105826999,Biffa Municipal Limited,"22,012.70"
Manchester City Council,Adult Social Care,Third party payments relating to Voluntary Organisations,19-Jul-22,5105825228,Supporting People In Need,"22,000.00"
Manchester City Council,Corporate Services,Transport Taxis,29-Jul-22,1907834215,Mantax Radio Taxis Ltd,"21,961.35"
Manchester City Council,Housing Revenue Account,Council Dwelling Adaptations,14-Jul-22,5105824737,Rexel UK Ltd,"21,888.53"
Manchester City Council,Chief Executives,Agency staff provision,28-Jul-22,5105826766,Gatenby Sanderson,"21,712.00"
Manchester City Council,Regeneration Finance,Water - Unmetered,21-Jul-22,1907825216,Anglian Water Business (National),"21,429.18"
Manchester City Council,Adult Social Care,Extra Care Sheltd HP,13-Jul-22,5105824540,Premier Care  Ltd,"21,400.56"
Manchester City Council,Housing Revenue Account,Council Dwelling Adaptations,25-Jul-22,5105826112,B.A.A.S. Construction Ltd,"21,366.05"
Manchester City Council,Hospitality + Trading Services,Electricity,21-Jul-22,1907825675,Npower,"21,272.23"
Manchester City Council,Hospitality + Trading Services,Vehicle Fuel Costs,18-Jul-22,5105825023,Standard Fuels Oils,"20,741.50"
Manchester City Council,Environment and Operations,Construction Works,29-Jul-22,5105824378,R & M Developments Ltd,"20,504.00"
Manchester City Council,Housing Revenue Account,Surplus property Demolition,12-Jul-22,5105823356,Kaberry Construction Ltd,"20,459.00"
Manchester City Council,Regeneration Finance,Electricity,21-Jul-22,1907825744,Npower,"20,432.29"
Manchester City Council,Corporate Services,Fees,19-Jul-22,1907796094,Jacobs,"20,315.52"
Manchester City Council,Childrens Services,Works and associated costs for Land and Buildings,04-Jul-22,5105823132,Warden Construction Ltd,"20,299.26"
Manchester City Council,Adult Social Care,Third party payments to Health Authority,11-Jul-22,5105823955,Black Health Agency,"20,000.00"
Manchester City Council,Manchester Leisure,Rents,07-Jul-22,1907762228,Vanguard Holdings Ltd,"20,000.00"
Manchester City Council,Manchester Leisure,Professional fees,05-Jul-22,5105823311,British Taekwondo Limited,"19,995.65"
Manchester City Council,Manchester Leisure,Security,25-Jul-22,5105826242,Synectics Security Limited,"19,982.29"
Manchester City Council,Manchester Leisure,Electricity,21-Jul-22,1907825730,Npower,"19,942.42"
Manchester City Council,Adult Social Care,Extra Care Sheltd HP,13-Jul-22,5105824573,Premier Care  Ltd,"19,939.77"
Manchester City Council,Regeneration Finance,Third party payments relating to Voluntary Organisations,20-Jul-22,5105825490,Proper Job Theatre company,"19,890.00"
Manchester City Council,Chief Executives,Advertising,28-Jul-22,5105826754,Reach Publishing Services Ltd,"19,880.52"
Manchester City Council,Housing Revenue Account,Council Dwelling Adaptations,21-Jul-22,5105825753,Pts Plumbing Trade Supplies,"19,800.99"
Manchester City Council,Adult Social Care,Supported Accommodation,18-Jul-22,5105825022,Mosscare Housing Ltd,"19,773.72"
Manchester City Council,Adult Social Care,Supported Accommodation,21-Jul-22,5105825820,Mosscare Housing Ltd,"19,773.72"
Manchester City Council,Chief Executives,Works and associated costs for Land and Buildings,25-Jul-22,5105826177,Pierre Angulaire Limited,"19,656.00"
Manchester City Council,Chief Executives,Works and associated costs for Land and Buildings,29-Jul-22,5105826895,Pierre Angulaire Limited,"19,656.00"
Manchester City Council,Corporate Services,Fees,25-Jul-22,1907826718,Bristow & Sutor,"19,604.05"
Manchester City Council,Housing Revenue Account,Gas,28-Jul-22,1907833193,Corona Energy Ltd,"19,449.31"
Manchester City Council,Childrens & Education Services,Payments for services,15-Jul-22,5105824823,Works 4U (Support Services) Ltd,"19,449.00"
Manchester City Council,Manchester Leisure,Electricity,21-Jul-22,1907825724,Npower,"19,278.82"
Manchester City Council,Manchester Leisure,Refuse Collection,20-Jul-22,5105825421,Streetspace Ltd,"19,191.87"
Manchester City Council,Childrens & Education Services,Personal needs of client,11-Jul-22,5105824016,Caci Ltd,"19,176.30"
Manchester City Council,Chief Executives,Postage,11-Jul-22,5105824044,Civica Election Services,"19,104.77"
Manchester City Council,Childrens & Education Services,Payments for services,13-Jul-22,5105824476,Time Specialist Support Ltd,"19,053.00"
Manchester City Council,Housing General Fund,Building Works,25-Jul-22,1907822666,UPS Building & Maintenance Ltd,"18,999.25"
Manchester City Council,Childrens & Education Services,Payments for services,15-Jul-22,5105824860,High Peak School Limited,"18,835.33"
Manchester City Council,Childrens & Education Services,Payments for services,15-Jul-22,5105824872,High Peak School Limited,"18,835.33"
Manchester City Council,Childrens & Education Services,Third party payments to other Local Authorities,06-Jul-22,5105823435,The Kingsway School,"18,822.00"
Manchester City Council,Regeneration Finance,Security,11-Jul-22,5105823964,Showsec International Ltd,"18,792.35"
Manchester City Council,Childrens & Education Services,Transport Coach Hire,25-Jul-22,5105826041,CW Travel,"18,770.00"
Manchester City Council,Manchester Leisure,Payments to Sub-Contractors,27-Jul-22,5105826646,Synectics Security Limited,"18,596.87"
Manchester City Council,Highways Services,Building Materials for direct delivery,29-Jul-22,5105826413,Marshalls Mono Ltd,"18,335.50"
Manchester City Council,Environment and Operations,Construction Works,13-Jul-22,5105824172,Ventbrook,"18,334.11"
Manchester City Council,Adult Social Care,Grant and subscriptions awarded,25-Jul-22,5105826279,Manchester Mind,"18,117.50"
Manchester City Council,Adult Social Care,Third party payments relating to Voluntary Organisations,11-Jul-22,5105823345,DISC Ltd,"18,099.50"
Manchester City Council,Housing General Fund,Building Works,25-Jul-22,1907824613,Pollock Lifts Ltd,"17,966.00"
Manchester City Council,Childrens & Education Services,Payments for services,08-Jul-22,5105823778,Horizon Care & Education Group Ltd,"17,948.70"
Manchester City Council,Childrens & Education Services,Transport Coach Hire,21-Jul-22,5105825770,Redacted Personal Information,"17,847.07"
Manchester City Council,Housing General Fund,Capital Receipts,29-Jul-22,1907833252,Redrow Homes Lancashire,"17,750.00"
Manchester City Council,Chief Executives,Rents,11-Jul-22,5105824199,Manchester Central,"17,726.45"
Manchester City Council,Childrens Services,Works and associated costs for Land and Buildings,29-Jul-22,5105824334,Faithful & Gould Ltd,"17,650.17"
Manchester City Council,Environment and Operations,Construction Works,29-Jul-22,5105824669,Waterman Aspen Ltd,"17,601.00"
Manchester City Council,Housing Revenue Account,Gas,28-Jul-22,1907832850,Corona Energy Ltd,"17,493.39"
Manchester City Council,Corporate Services,Works and associated costs for Land and Buildings,29-Jul-22,5105825607,Ameresco Limited,"17,453.41"
Manchester City Council,Regeneration Finance,Electricity,21-Jul-22,1907825749,Npower,"17,419.05"
Manchester City Council,Corporate Services,Postage,29-Jul-22,5105826414,Royal Mail Group Plc,"17,345.57"
Manchester City Council,Adult Social Care,Grant and subscriptions awarded,04-Jul-22,5105823106,On The Out CIC,"17,122.92"
Manchester City Council,Adult Social Care,Grant and subscriptions awarded,04-Jul-22,5105823107,On The Out CIC,"17,122.92"
Manchester City Council,Adult Social Care,Grant and subscriptions awarded,04-Jul-22,5105823108,On The Out CIC,"17,122.92"
Manchester City Council,Childrens & Education Services,Transport Coach Hire,21-Jul-22,5105825771,Redacted Personal Information,"17,018.48"
Manchester City Council,Childrens & Education Services,Payments for services,25-Jul-22,1907826899,Cambian Whinfell School Limited,"17,006.38"
Manchester City Council,Corporate Services,Fees,26-Jul-22,1907828504,Jacobs,"16,929.60"
Manchester City Council,Corporate Services,Fees,26-Jul-22,1700136431,Jacobs,"16,929.60"
Manchester City Council,Environment and Operations,Construction Works,27-Jul-22,5105826494,J.Hopkins (Contractors) Ltd.,"16,800.00"
Manchester City Council,Regeneration Finance,Professional fees,29-Jul-22,5105826933,GVA Grimley Ltd,"16,795.00"
Manchester City Council,Housing General Fund,Building Works,06-Jul-22,1907798215,UPS Building & Maintenance Ltd,"16,774.10"
Manchester City Council,Manchester Leisure,Gas,28-Jul-22,1907833194,Corona Energy Ltd,"16,746.70"
Manchester City Council,Chief Executives,Agency staff provision,13-Jul-22,5105824333,Michael Page International,"16,695.60"
Manchester City Council,Housing Revenue Account,West Gorton Mgmt Fee,19-Jul-22,5105825029,The Guinness Partnership Ltd,"16,666.00"
Manchester City Council,Highways Services,Payments to Sub-Contractors,15-Jul-22,5105824473,Rosgal Ltd,"16,647.80"
Manchester City Council,Adult Social Care,Third party payments relating to Voluntary Organisations,25-Jul-22,5105826078,Manchester Action On Street Health,"16,520.83"
Manchester City Council,Childrens & Education Services,Payments for services,25-Jul-22,1907826895,Cambian Whinfell School Limited,"16,457.79"
Manchester City Council,Adult Social Care,Grant and subscriptions awarded,29-Jul-22,5105826979,Manchester People First,"16,410.26"
Manchester City Council,Housing General Fund,Building Works,27-Jul-22,1907831628,MONARCH SOLCITIORS,"16,343.83"
Manchester City Council,Chief Executives,Agency staff provision,21-Jul-22,5105825816,Venn Group Ltd,"16,342.40"
Manchester City Council,Childrens & Education Services,Transport Coach Hire,20-Jul-22,5105825387,Parkway Cabs & Cars,"16,294.50"
Manchester City Council,Childrens & Education Services,Payments for services,15-Jul-22,5105824858,High Peak School Limited,"16,272.00"
Manchester City Council,Corporate Services,Professional fees,14-Jul-22,5105824772,Hutton Rostron Env,"16,200.00"
Manchester City Council,Manchester Leisure,External repairs and maintenance for buildings,11-Jul-22,5105823981,Laing O'Rourke Construction Ltd,"16,199.03"
Manchester City Council,Manchester Leisure,Equipment,05-Jul-22,1907796162,N-VIROL,"16,189.92"
Manchester City Council,Childrens & Education Services,Legal Fees,08-Jul-22,1907799026,Liberata,"16,146.00"
Manchester City Council,Housing Revenue Account,Council Dwelling Adaptations,11-Jul-22,5105824038,Rexel UK Ltd,"16,107.97"
Manchester City Council,Corporate Services,Works and associated costs for Land and Buildings,29-Jul-22,5105825609,Ameresco Limited,"16,036.23"
Manchester City Council,Corporate Services,Works and associated costs for Land and Buildings,18-Jul-22,5105824774,Turner & Townsend Project,"16,030.00"
Manchester City Council,Regeneration Finance,Security,19-Jul-22,5105825240,Showsec International Ltd,"16,017.60"
Manchester City Council,Chief Executives,Agency staff provision,22-Jul-22,5105826221,Hays Personnel,"15,894.01"
Manchester City Council,Childrens & Education Services,Payments for services,28-Jul-22,5105826809,Belmont School Ltd,"15,770.38"
Manchester City Council,Adult Social Care,Rents,18-Jul-22,5105824925,M & Q Properties Management Ltd,"15,620.05"
Manchester City Council,Childrens & Education Services,Payments for services,15-Jul-22,5105824871,High Peak School Limited,"15,605.33"
Manchester City Council,Regeneration Finance,Security,18-Jul-22,5105824991,Showsec International Ltd,"15,581.20"
Manchester City Council,Housing Revenue Account,Council Dwelling Adaptations,07-Jul-22,5105823682,Rexel UK Ltd,"15,535.47"
Manchester City Council,Regeneration Finance,I T Provision,06-Jul-22,5105823424,Insight Direct (Uk) Ltd,"15,353.52"
Manchester City Council,Childrens & Education Services,Payments for services,04-Jul-22,5105823146,Salford College,"15,300.00"
Manchester City Council,Childrens & Education Services,Payments for services,15-Jul-22,5105824822,Hopwood Hall College,"15,158.28"
Manchester City Council,Corporate Services,Works and associated costs for Land and Buildings,11-Jul-22,5105823768,Ove Arup & Partners Ltd,"15,129.60"
Manchester City Council,Chief Executives,Agency staff provision,11-Jul-22,5105823909,Triad Resourcing,"15,120.00"
Manchester City Council,Manchester Leisure,Grant and subscriptions awarded,29-Jul-22,5105826854,HOME,"15,085.25"
Manchester City Council,Adult Social Care,Third party payments relating to Voluntary Organisations,13-Jul-22,5105824470,Quays Housing,"15,068.92"
Manchester City Council,Adult Social Care,Third party payments relating to Voluntary Organisations,15-Jul-22,5105824805,Quays Housing,"15,068.92"
Manchester City Council,Corporate Services,Car Parking Permits,27-Jul-22,5105826417,Yunex Ltd,"15,067.00"
Manchester City Council,Childrens & Education Services,Professional fees,07-Jul-22,5105823715,Greenwich Leisure Limited,"15,000.00"
Manchester City Council,Manchester Leisure,Grant and subscriptions awarded,29-Jul-22,1907831650,Families Against Violence,"15,000.00"
Manchester City Council,Manchester Leisure,Gas,28-Jul-22,1907833022,Corona Energy Ltd,"14,885.74"
Manchester City Council,Regeneration Finance,External repairs and maintenance for buildings,21-Jul-22,5105825540,Passivsystems Ltd,"14,823.04"
Manchester City Council,Housing General Fund,Building Works,26-Jul-22,1907826541,Redacted Personal Information,"14,576.42"
Manchester City Council,Chief Executives,Printing,21-Jul-22,5105825902,Ricoh UK Ltd.,"14,524.90"
Manchester City Council,Adult Social Care,Rents,12-Jul-22,5105824174,M&D Residential Ltd,"14,512.12"
Manchester City Council,Environment and Operations,Construction Works,26-Jul-22,5105824595,SWECO UK Limited,"14,500.00"
Manchester City Council,Libraries and Theatres,Vehicle Plant Furniture and Equipment,22-Jul-22,5105826211,H Jenkinson & Co Ltd.,"14,498.51"
Manchester City Council,Adult Social Care,Third party payments relating to Voluntary Organisations,08-Jul-22,5105823344,DISC Ltd,"14,495.83"
Manchester City Council,Highways Services,Purchase of stores for re-distribution,27-Jul-22,5105826558,Grafton Merchanting GB,"14,490.00"
Manchester City Council,Adult Social Care,Third party payments relating to Voluntary Organisations,08-Jul-22,5105823830,Breakthrough Uk Ltd,"14,485.42"
Manchester City Council,Libraries and Theatres,Works and associated costs for Land and Buildings,25-Jul-22,5105826053,Faithful & Gould Ltd,"14,468.00"
Manchester City Council,Childrens & Education Services,Transport Coach Hire,25-Jul-22,5105825967,MCR Blackcab Ltd,"14,435.77"
Manchester City Council,Chief Executives,Training and Development,25-Jul-22,5105826105,Proventure Consulting,"14,297.00"
Manchester City Council,Adult Social Care,Third party payments relating to Voluntary Organisations,29-Jul-22,5105824974,Manchester Womens Aid,"14,284.83"
Manchester City Council,Adult Social Care,Rents,27-Jul-22,5105826539,Eeven Homes Ltd.,"14,249.01"
Manchester City Council,Adult Social Care,Third party payments relating to Voluntary Organisations,28-Jul-22,5105826811,The Shaw Centre,"14,092.66"
Manchester City Council,Regeneration Finance,Professional fees,29-Jul-22,5105826921,PPCP Ltd,"14,040.00"
Manchester City Council,Regeneration Finance,I T Provision,21-Jul-22,5105825469,Concerto Support Services,"14,000.00"
Manchester City Council,Adult Social Care,Third party payments relating to Voluntary Organisations,25-Jul-22,5105826093,Quays Housing,"13,962.83"
Manchester City Council,Adult Social Care,Third party payments relating to Voluntary Organisations,25-Jul-22,5105826094,Quays Housing,"13,962.83"
Manchester City Council,Chief Executives,Agency staff provision,13-Jul-22,5105824537,Liquid Personnel Ltd,"13,862.99"
Manchester City Council,Childrens & Education Services,Payments for services,29-Jul-22,5105826972,National Offender Mgt Services,"13,860.00"
Manchester City Council,Chief Executives,Vehicle Plant Furniture and Equipment,07-Jul-22,5105823650,Insight Direct (Uk) Ltd,"13,826.11"
Manchester City Council,Adult Social Care,Rents,28-Jul-22,5105826727,Eeven Homes Ltd.,"13,631.87"
Manchester City Council,Corporate Services,Fees,22-Jul-22,1907822816,Jacobs,"13,540.50"
Manchester City Council,Hospitality + Trading Services,Security,08-Jul-22,5105823043,Showsec International Ltd,"13,538.24"
Manchester City Council,Manchester Leisure,Equipment,13-Jul-22,5105824581,MGB Plastics Limited,"13,500.00"
Manchester City Council,Manchester Leisure,Equipment,14-Jul-22,5105824585,MGB Plastics Limited,"13,500.00"
Manchester City Council,Manchester Leisure,Equipment,18-Jul-22,5105824589,MGB Plastics Limited,"13,500.00"
Manchester City Council,Corporate Services,Professional fees,29-Jul-22,5105826889,Mace Cost Consultancy Ltd,"13,426.00"
Manchester City Council,Adult Social Care,Rents,29-Jul-22,5105824434,Jigsaw Homes North,"13,375.00"
Manchester City Council,Childrens Services,Works and associated costs for Land and Buildings,29-Jul-22,5105826963,Mace Ltd,"13,365.00"
Manchester City Council,Adult Social Care,Bed & Breakfast Acc,27-Jul-22,5105826612,Molesworth Hotel,"13,351.00"
Manchester City Council,Childrens & Education Services,Furniture,07-Jul-22,5105823791,H Jenkinson & Co Ltd.,"13,349.25"
Manchester City Council,Childrens & Education Services,Payments for services,28-Jul-22,5105826740,Reed Employment Plc,"13,344.16"
Manchester City Council,Adult Social Care,Supporting People Payments,25-Jul-22,5105825734,Great Places Housing Association,"13,206.24"
Manchester City Council,Adult Social Care,Supporting People Payments,29-Jul-22,5105826350,Great Places Housing Association,"13,206.24"
Manchester City Council,Adult Social Care,Supporting People Payments,29-Jul-22,5105826421,Great Places Housing Association,"13,206.24"
Manchester City Council,Adult Social Care,Supporting People Payments,29-Jul-22,5105826422,Great Places Housing Association,"13,206.24"
Manchester City Council,Hospitality + Trading Services,Electricity,21-Jul-22,1907825696,Npower,"13,155.39"
Manchester City Council,Housing General Fund,Building Works,25-Jul-22,1907822665,UPS Building & Maintenance Ltd,"13,143.82"
Manchester City Council,Hospitality + Trading Services,Security,22-Jul-22,5105825872,Showsec International Ltd,"13,142.00"
Manchester City Council,Corporate Services,Works and associated costs for Land and Buildings,08-Jul-22,5105823131,Rider Levett Bucknall UK Ltd,"13,090.00"
Manchester City Council,Adult Social Care,Rents,21-Jul-22,5105825730,Eeven Homes Ltd.,"13,089.01"
Manchester City Council,Childrens & Education Services,Legal Fees,20-Jul-22,1907824740,Liberata,"13,077.00"
Manchester City Council,Regeneration Finance,I T Provision,14-Jul-22,5105824643,Insight Direct (Uk) Ltd,"13,059.40"
Manchester City Council,Regeneration Finance,I T Provision,18-Jul-22,5105824117,Insight Direct (Uk) Ltd,"13,059.40"
Manchester City Council,Adult Social Care,Payments for services,29-Jul-22,5105823581,Age Concern Manchester,"13,055.70"
Manchester City Council,Environment and Operations,Construction Works,29-Jul-22,5105825635,SWECO UK Limited,"13,023.60"
Manchester City Council,Regeneration Finance,Water - Unmetered,21-Jul-22,1907825227,Anglian Water Business (National),"12,970.63"
Manchester City Council,Regeneration Finance,Water - Unmetered,21-Jul-22,1907825207,Anglian Water Business (National),"12,970.63"
Manchester City Council,Manchester Leisure,Electricity,21-Jul-22,1907825731,Npower,"12,968.29"
Manchester City Council,Housing Revenue Account,Council Dwelling Adaptations,22-Jul-22,5105825988,A Connolly Limited,"12,967.23"
Manchester City Council,Corporate Services,Vehicle Costs,11-Jul-22,1907812416,Cyclescheme Ltd,"12,890.67"
Manchester City Council,Housing Revenue Account,Council Dwelling Adaptations,14-Jul-22,5105824712,Rexel UK Ltd,"12,856.27"
Manchester City Council,Adult Social Care,Rents,28-Jul-22,5105826757,K L Properties,"12,828.84"
Manchester City Council,Adult Social Care,Rents,11-Jul-22,5105823264,K L Properties,"12,781.81"
Manchester City Council,Childrens & Education Services,Legal Fees,20-Jul-22,1907824768,Liberata,"12,745.00"
Manchester City Council,Childrens & Education Services,Transport Coach Hire,22-Jul-22,5105823144,Sumi Travel Ltd.,"12,723.00"
Manchester City Council,Adult Social Care,Rents,12-Jul-22,5105824228,Eeven Homes Ltd.,"12,669.01"
Manchester City Council,Environment and Operations,Construction Works,27-Jul-22,5105826500,J.Hopkins (Contractors) Ltd.,"12,650.00"
Manchester City Council,Adult Social Care,Bed & Breakfast Acc,14-Jul-22,5105824634,247Hotel.Com,"12,613.33"
Manchester City Council,Adult Social Care,Third party payments to Health Authority,20-Jul-22,1907819080,Northern Care Alliance NHS FT,"12,611.15"
Manchester City Council,Adult Social Care,Rents,20-Jul-22,5105825536,K L Properties,"12,608.84"
Manchester City Council,Housing General Fund,Building Works,19-Jul-22,1907822662,Pollock Lifts Ltd,"12,577.00"
Manchester City Council,Highways Services,Payments to Sub-Contractors,11-Jul-22,5105824196,Clearway Drainage Systems Ltd,"12,530.00"
Manchester City Council,Highways Services,Payments to Sub-Contractors,12-Jul-22,5105824192,Clearway Drainage Systems Ltd,"12,530.00"
Manchester City Council,Manchester Leisure,Electricity,21-Jul-22,1907825729,Npower,"12,502.94"
Manchester City Council,Childrens & Education Services,Transport Coach Hire,22-Jul-22,5105825388,Youbus Ltd,"12,481.00"
Manchester City Council,Chief Executives,Printing,11-Jul-22,5105823844,Astra Signs,"12,415.00"
Manchester City Council,Corporate Services,Works and associated costs for Land and Buildings,14-Jul-22,5105824743,F Parkinson Limited,"12,346.47"
Manchester City Council,Housing Revenue Account,Council Dwelling Adaptations,11-Jul-22,5105823967,Moores Furniture Group Limited,"12,309.61"
Manchester City Council,Regeneration Finance,Electricity,21-Jul-22,1907825734,Npower,"12,151.16"
Manchester City Council,Chief Executives,Vehicle Plant Furniture and Equipment,29-Jul-22,5105826440,XMA Limited,"12,129.00"
Manchester City Council,Manchester Leisure,Responsive Repairs Work,13-Jul-22,5105824559,EQUANS Regeneration Limited,"12,053.88"
Manchester City Council,Highways Services,Professional fees,21-Jul-22,5105825723,A T G Access Ltd,"12,045.15"
Manchester City Council,Highways Services,Professional fees,29-Jul-22,5105826925,A T G Access Ltd,"12,045.15"
Manchester City Council,Chief Executives,Works and associated costs for Land and Buildings,21-Jul-22,5105825408,Gardiner & Theobald LLP,"12,000.00"
Manchester City Council,Chief Executives,Works and associated costs for Land and Buildings,21-Jul-22,5105825409,Gardiner & Theobald LLP,"12,000.00"
Manchester City Council,Chief Executives,Works and associated costs for Land and Buildings,21-Jul-22,5105825410,Gardiner & Theobald LLP,"12,000.00"
Manchester City Council,Manchester Leisure,Grant and subscriptions awarded,18-Jul-22,1907819146,Big Life Schools,"12,000.00"
Manchester City Council,Manchester Leisure,Reuse credits,21-Jul-22,5105824324,Biffa Municipal Limited,"11,925.00"
Manchester City Council,Corporate Services,Hire of Equipment,29-Jul-22,5105826908,Flowbird Smart City Uk Ltd,"11,824.13"
Manchester City Council,Adult Social Care,Third party payments to Health Authority,20-Jul-22,1907818983,Northern Care Alliance NHS FT,"11,802.81"
Manchester City Council,Regeneration Finance,Water - Metered,21-Jul-22,1907825376,Anglian Water Business (National),"11,696.95"
Manchester City Council,Regeneration Finance,Electricity,21-Jul-22,1907825750,Npower,"11,677.00"
Manchester City Council,Childrens & Education Services,Third party payments to other Local Authorities,06-Jul-22,5105823390,Sale High School,"11,676.00"
Manchester City Council,Corporate Services,Transport Taxis,11-Jul-22,1907814563,Street Cars,"11,582.10"
Manchester City Council,Adult Social Care,Rents,29-Jul-22,5105826862,United Property Management Ltd,"11,550.00"
Manchester City Council,Housing Revenue Account,Council Dwelling Adaptations,11-Jul-22,5105823948,Pollock Lifts Ltd,"11,507.00"
Manchester City Council,Manchester Leisure,Equipment,04-Jul-22,5105823112,Acorn Construction (Yorkshire) Ltd,"11,470.00"
Manchester City Council,Regeneration Finance,Electricity,21-Jul-22,1907825692,Npower,"11,465.00"
Manchester City Council,Childrens & Education Services,Third party payments to other Local Authorities,28-Jul-22,5105826784,Outwood Primary School,"11,445.00"
Manchester City Council,Childrens & Education Services,Legal Fees,08-Jul-22,1907799021,Liberata,"11,434.00"
Manchester City Council,Chief Executives,Works and associated costs for Land and Buildings,01-Jul-22,5105823032,Turner & Townsend Project,"11,400.00"
Manchester City Council,Corporate Services,Professional fees,07-Jul-22,5105823584,NE1 Procurement Services Limited,"11,400.00"
Manchester City Council,Housing Revenue Account,Professional fees,19-Jul-22,5105825157,Capita Property & Infras'ture Ltd,"11,365.00"
Manchester City Council,Housing Revenue Account,Council Dwelling Adaptations,22-Jul-22,5105825921,Pts Plumbing Trade Supplies,"11,333.12"
Manchester City Council,Adult Social Care,Bed & Breakfast Acc,13-Jul-22,5105824439,247Hotel.Com,"11,325.00"
Manchester City Council,Childrens & Education Services,Payments for services,11-Jul-22,5105824032,Reed Employment Plc,"11,275.67"
Manchester City Council,Corporate Services,Works and associated costs for Land and Buildings,29-Jul-22,5105823642,Network Rail Infrastructure Ltd,"11,212.26"
Manchester City Council,Adult Social Care,Bed & Breakfast Acc,18-Jul-22,5105824927,Redacted Personal Information,"11,200.00"
Manchester City Council,Highways Services,Legal Fees,21-Jul-22,1907826540,Cheadle Solicitors,"11,195.00"
Manchester City Council,Adult Social Care,Supporting People Payments,29-Jul-22,5105826184,Richmond Fellowship,"11,088.03"
Manchester City Council,Adult Social Care,Supporting People Payments,29-Jul-22,5105826185,Richmond Fellowship,"11,088.03"
Manchester City Council,Adult Social Care,Supporting People Payments,29-Jul-22,5105826186,Richmond Fellowship,"11,088.03"
Manchester City Council,Corporate Services,Legal Fees,29-Jul-22,1907834283,EMERALD LAW,"11,000.00"
Manchester City Council,Highways Services,Payments to Sub-Contractors,21-Jul-22,5105825668,Rosgal Ltd,"10,982.75"
Manchester City Council,Corporate Services,Professional fees,29-Jul-22,5105823323,Gleeds Management Services Limited,"10,962.62"
Manchester City Council,Childrens & Education Services,Third party payments to other Local Authorities,12-Jul-22,5105824312,The Orchards School,"10,890.00"
Manchester City Council,Corporate Services,Bank Charges,25-Jul-22,1907827001,Capita Business Services Ltd,"10,882.22"
Manchester City Council,Manchester Leisure,Payments to Sub-Contractors,19-Jul-22,5105825074,WSP UK Limited,"10,848.00"
Manchester City Council,Hospitality + Trading Services,Electricity,28-Jul-22,1907832523,Scottish & Southern Energy Plc,"10,833.91"
Manchester City Council,Chief Executives,Works and associated costs for Land and Buildings,25-Jul-22,5105826174,Turner & Townsend Project,"10,830.00"
Manchester City Council,Chief Executives,Works and associated costs for Land and Buildings,29-Jul-22,5105826896,Pierre Angulaire Limited,"10,815.00"
Manchester City Council,Childrens & Education Services,Transport Coach Hire,29-Jul-22,5105826273,Galaxy Transport (Manchester) Ltd,"10,800.00"
Manchester City Council,Manchester Leisure,Payments to Sub-Contractors,11-Jul-22,5105823910,Greenfingers Landscape Ltd,"10,750.47"
Manchester City Council,Manchester Leisure,Payments to Sub-Contractors,29-Jul-22,5105824163,Greenfingers Landscape Ltd,"10,750.47"
Manchester City Council,Highways Services,Payments to Sub-Contractors,11-Jul-22,5105824195,Clearway Drainage Systems Ltd,"10,740.00"
Manchester City Council,Childrens & Education Services,Transport Coach Hire,22-Jul-22,5105825625,Redacted Personal Information,"10,719.00"
Manchester City Council,Corporate Services,Hire of Equipment,29-Jul-22,5105826911,Flowbird Smart City Uk Ltd,"10,599.90"
Manchester City Council,Chief Executives,Agency staff provision,21-Jul-22,5105825759,NES UK Limited,"10,550.51"
Manchester City Council,Childrens & Education Services,Pay School Budget,04-Jul-22,5105823152,Manchester Secondary PRU,"10,535.00"
Manchester City Council,Chief Executives,Works and associated costs for Land and Buildings,29-Jul-22,5105826714,Charcoalblue LLP,"10,500.00"
Manchester City Council,Manchester Leisure,Electricity,21-Jul-22,1907825674,Npower,"10,428.15"
Manchester City Council,Regeneration Finance,Rents,21-Jul-22,1907824785,Savills Commercial Ltd,"10,413.38"
Manchester City Council,Childrens & Education Services,Transport Coach Hire,25-Jul-22,5105825965,MCR Blackcab Ltd,"10,252.16"
Manchester City Council,Adult Social Care,Supporting People Payments,19-Jul-22,5105825258,Mosscare St Vincent's Housing,"10,250.00"
Manchester City Council,Adult Social Care,Supporting People Payments,19-Jul-22,5105825259,Mosscare St Vincent's Housing,"10,250.00"
Manchester City Council,Corporate Services,Legal Fees,28-Jul-22,1907831667,Bond Turner Solicitors,"10,250.00"
Manchester City Council,Chief Executives,Postage,13-Jul-22,5105824560,Quadient Ltd (Credifon),"10,234.34"
Manchester City Council,Chief Executives,Expenditure re Internal Trading Ordered Externally,11-Jul-22,5105823980,Civica Election Services,"10,188.59"
Manchester City Council,Childrens & Education Services,Legal Fees,08-Jul-22,1907799025,Liberata,"10,175.00"
Manchester City Council,Manchester Leisure,Grant and subscriptions awarded,29-Jul-22,1907831748,Family Unit Trust,"10,170.00"
Manchester City Council,Manchester Leisure,Contract Cleaning External,12-Jul-22,5105824134,Clearview Event Services Limited,"10,162.50"
Manchester City Council,Regeneration Finance,Professional fees,25-Jul-22,5105826240,Jacobs UK Ltd,"10,119.25"
Manchester City Council,Adult Social Care,Bed & Breakfast Acc,15-Jul-22,5105824148,Medlock House Ltd,"10,094.00"
Manchester City Council,Environment and Operations,Construction Works,07-Jul-22,5105823718,Wilde Consultants Ltd,"10,073.48"
Manchester City Council,Chief Executives,Vehicle Plant Furniture and Equipment,14-Jul-22,5105824150,Insight Direct (Uk) Ltd,"10,035.00"
Manchester City Council,Childrens & Education Services,Payments for services,04-Jul-22,5105823121,Cedar House School,"10,008.67"
Manchester City Council,Manchester Leisure,Professional fees,25-Jul-22,5105826121,Huq Industries Ltd,"10,000.00"
Manchester City Council,Childrens & Education Services,Legal Fees,06-Jul-22,1907798339,J F LAW LTD,"10,000.00"
Manchester City Council,Chief Executives,Advertising,06-Jul-22,1907793766,Ocean Outdoor UK Ltd,"10,000.00"
Manchester City Council,Manchester Leisure,Legal Fees,21-Jul-22,1907824800,Driscoll Kingston,"10,000.00"
Manchester City Council,Manchester Leisure,Legal Fees,21-Jul-22,1907814560,High Street Solicitors,"10,000.00"
Manchester City Council,Regeneration Finance,Professional fees,19-Jul-22,5105825032,"Knight, Kavanagh & Page","9,962.50"
Manchester City Council,Adult Social Care,Third party payments to Health Authority,28-Jul-22,5105826382,Greater Manchester Mental Health,"9,961.76"
Manchester City Council,Adult Social Care,Third party payments to Health Authority,29-Jul-22,5105826734,Greater Manchester Mental Health,"9,961.76"
Manchester City Council,Environment and Operations,Construction Works,29-Jul-22,5105823381,Balfour Beatty Living Places Ltd,"9,885.00"
Manchester City Council,Hospitality + Trading Services,Electricity,21-Jul-22,1907825695,Npower,"9,773.92"
Manchester City Council,Adult Social Care,Third party payments to Health Authority,20-Jul-22,1907819084,Northern Care Alliance NHS FT,"9,701.44"
Manchester City Council,Environment and Operations,Construction Works,27-Jul-22,5105826497,J.Hopkins (Contractors) Ltd.,"9,700.00"
Manchester City Council,Childrens & Education Services,Carer Support Payments ,12-Jul-22,1907814542,Care Solutions Recruitment Agency L,"9,699.55"
Manchester City Council,Adult Social Care,Payments for services,29-Jul-22,5105823581,Age Concern Manchester,"9,696.31"
Manchester City Council,Highways Services,Professional fees,15-Jul-22,5105824670,Waterman Aspen Ltd,"9,680.00"
Manchester City Council,Manchester Leisure,Payments for services,11-Jul-22,5105823535,Manchester Metropolitan University,"9,675.00"
Manchester City Council,Housing Revenue Account,Professional fees,06-Jul-22,5105823364,Oakleaf Surveying Limited,"9,639.50"
Manchester City Council,Regeneration Finance,Professional fees,18-Jul-22,5105824995,Redacted Personal Information,"9,625.00"
Manchester City Council,Hospitality + Trading Services,Hire of Machinery,05-Jul-22,5105823431,Fast Hire UK,"9,618.33"
Manchester City Council,Corporate Services,Fees,19-Jul-22,1907813916,Newlyn Plc,"9,614.90"
Manchester City Council,Adult Social Care,Third party payments to Health Authority,20-Jul-22,1907819077,Northern Care Alliance NHS FT,"9,553.08"
Manchester City Council,Childrens & Education Services,Payments for services,29-Jul-22,5105827002,National Offender Mgt Services,"9,517.00"
Manchester City Council,Childrens & Education Services,Payments for services,29-Jul-22,5105827006,National Offender Mgt Services,"9,517.00"
Manchester City Council,Environment and Operations,Construction Works,27-Jul-22,5105826498,J.Hopkins (Contractors) Ltd.,"9,492.96"
Manchester City Council,Manchester Leisure,Electricity,21-Jul-22,1907825690,Npower,"9,484.60"
Manchester City Council,Housing Revenue Account,Council Dwelling Adaptations,14-Jul-22,5105824609,Rexel UK Ltd,"9,481.66"
Manchester City Council,Adult Social Care,Professional fees,19-Jul-22,5105825060,Gaddum Centre,"9,415.00"
Manchester City Council,Adult Social Care,Professional fees,29-Jul-22,5105826960,Coffee4Craig Ltd,"9,405.70"
Manchester City Council,Corporate Services,Professional fees,04-Jul-22,5105823014,Pennine Care NHS Trust,"9,385.00"
Manchester City Council,Childrens Services,Works and associated costs for Land and Buildings,29-Jul-22,5105826964,John Turner Construction Group,"9,384.69"
Manchester City Council,Hospitality + Trading Services,Building Materials for direct delivery,21-Jul-22,5105825742,Killgerm Chemicals Ltd,"9,370.13"
Manchester City Council,Manchester Leisure,Gas,28-Jul-22,1907832865,Corona Energy Ltd,"9,309.80"
Manchester City Council,Adult Social Care,Rents,12-Jul-22,5105824155,AJD Property Limited,"9,306.70"
Manchester City Council,Manchester Leisure,Payments to Sub-Contractors,29-Jul-22,5105823560,M247 UK Ltd,"9,281.44"
Manchester City Council,Highways Services,Payments to Sub-Contractors,21-Jul-22,5105825572,Rosgal Ltd,"9,281.08"
Manchester City Council,Highways Services,Professional fees,15-Jul-22,5105824675,Waterman Aspen Ltd,"9,262.50"
Manchester City Council,Manchester Leisure,Cash Collection,01-Jul-22,5105823037,Wythenshawe Forum Trust Ltd,"9,242.20"
Manchester City Council,Childrens & Education Services,Payments for services,29-Jul-22,5105826968,National Offender Mgt Services,"9,210.00"
Manchester City Council,Childrens & Education Services,Payments for services,29-Jul-22,5105826969,National Offender Mgt Services,"9,210.00"
Manchester City Council,Childrens & Education Services,Payments for services,29-Jul-22,5105826970,National Offender Mgt Services,"9,210.00"
Manchester City Council,Adult Social Care,Bed & Breakfast Acc,14-Jul-22,5105824146,Medlock House Ltd,"9,163.00"
Manchester City Council,Childrens & Education Services,Payments for services,13-Jul-22,5105824411,SMS Coaching Ltd,"9,150.00"
Manchester City Council,Childrens & Education Services,Payments for services,21-Jul-22,5105825711,Enhance EHC Ltd,"9,148.18"
Manchester City Council,Manchester Leisure,Payments to Sub-Contractors,29-Jul-22,5105824982,M247 UK Ltd,"9,136.48"
Manchester City Council,Chief Executives,Professional fees,15-Jul-22,5105824229,Kimpton Clocktower Hotel,"9,089.17"
Manchester City Council,Highways Services,Payments to Sub-Contractors,14-Jul-22,5105824623,Northern Marking Limited,"9,074.30"
Manchester City Council,Corporate Services,Professional fees,11-Jul-22,5105823128,Mace Cost Consultancy Ltd,"9,068.00"
Manchester City Council,Manchester Leisure,Electricity,21-Jul-22,1907825711,Npower,"9,006.64"
Manchester City Council,Chief Executives,Agency staff provision,21-Jul-22,5105825733,New Street Consulting Group,"9,000.00"
Manchester City Council,Highways Services,Compensation Payments,05-Jul-22,1907796103,SHELDON DAVIDSON Solicitors,"9,000.00"
Manchester City Council,Highways Services,Compensation Payments,05-Jul-22,1907796102,Ward & Rider Ltd,"9,000.00"
Manchester City Council,Housing Revenue Account,Council Dwelling Adaptations,15-Jul-22,5105824918,Pts Plumbing Trade Supplies,"8,965.08"
Manchester City Council,Corporate Services,Postage,07-Jul-22,5105823255,Royal Mail Group Plc,"8,906.77"
Manchester City Council,Hospitality + Trading Services,Goods purchased for resale in Council outlets,11-Jul-22,5105824008,Obitus,"8,880.00"
Manchester City Council,Housing Revenue Account,Gas,28-Jul-22,1907833191,Corona Energy Ltd,"8,879.19"
Manchester City Council,Adult Social Care,Third party payments relating to Voluntary Organisations,21-Jul-22,5105825802,Saheli,"8,875.91"
Manchester City Council,Childrens & Education Services,Payments for services,13-Jul-22,5105824422,The Together Trust,"8,869.04"
Manchester City Council,Adult Social Care,Bed & Breakfast Acc,18-Jul-22,5105824926,Hala Guest House,"8,855.00"
Manchester City Council,Hospitality + Trading Services,Goods purchased for resale in Council outlets,11-Jul-22,5105824010,Obitus,"8,846.70"
Manchester City Council,Highways Services,Professional fees,29-Jul-22,5105826861,Canal & River Trust,"8,834.34"
Manchester City Council,Corporate Services,Professional fees,14-Jul-22,5105823127,Mace Cost Consultancy Ltd,"8,812.00"
Manchester City Council,Chief Executives,Agency staff provision,22-Jul-22,5105825909,Ashberry Recruitment Ltd,"8,807.76"
Manchester City Council,Regeneration Finance,Water - Metered,21-Jul-22,1907825401,Anglian Water Business (National),"8,801.36"
Manchester City Council,Adult Social Care,Furniture,13-Jul-22,5105824368,Locata (Housing Services) Ltd,"8,800.00"
Manchester City Council,Highways Services,Professional fees,15-Jul-22,5105824668,Waterman Aspen Ltd,"8,785.00"
Manchester City Council,Regeneration Finance,Removal of Vehicle,07-Jul-22,1907789230,PortalPlanQuest Ltd,"8,778.00"
Manchester City Council,Childrens & Education Services,Payments for services,29-Jul-22,5105827035,Keys PCE Limited,"8,775.98"
Manchester City Council,Corporate Services,Professional fees,13-Jul-22,5105824385,Pick Everard,"8,769.81"
Manchester City Council,Environment and Operations,Construction Works,27-Jul-22,5105826499,J.Hopkins (Contractors) Ltd.,"8,750.00"
Manchester City Council,Corporate Services,Professional fees,29-Jul-22,5105826890,Mace Cost Consultancy Ltd,"8,746.00"
Manchester City Council,Regeneration Finance,Electricity,08-Jul-22,1907779884,Corona Energy Ltd,"8,742.49"
Manchester City Council,Regeneration Finance,Electricity,21-Jul-22,1907825951,Scottish & Southern Energy Plc,"8,727.39"
Manchester City Council,Chief Executives,Agency staff provision,20-Jul-22,5105825445,Ashberry Recruitment Ltd,"8,717.01"
Manchester City Council,Childrens & Education Services,Payments for services,04-Jul-22,5105823147,SMS Coaching Ltd,"8,670.00"
Manchester City Council,Childrens & Education Services,Legal Fees,20-Jul-22,1907824765,Liberata,"8,638.00"
Manchester City Council,Childrens & Education Services,Third party payments to other Local Authorities,25-Jul-22,5105826278,New Bridge School,"8,619.92"
Manchester City Council,Manchester Leisure,Other Insurance,29-Jul-22,1907831754,Aon Ltd,"8,613.69"
Manchester City Council,Corporate Services,Legal Fees,14-Jul-22,1907818973,SBW LAW,"8,594.60"
Manchester City Council,Highways Services,Professional fees,15-Jul-22,5105824671,Waterman Aspen Ltd,"8,556.00"
Manchester City Council,Manchester Leisure,Cash Collection,21-Jul-22,1907822782,Belle Vue Speedway Limited,"8,524.50"
Manchester City Council,Regeneration Finance,Professional fees,25-Jul-22,5105826240,Jacobs UK Ltd,"8,495.10"
Manchester City Council,Childrens & Education Services,Payments for services,13-Jul-22,5105824419,Keys PCE Limited,"8,492.89"
Manchester City Council,Chief Executives,Agency staff provision,29-Jul-22,5105826937,The Oyster Partnership Limited,"8,470.41"
Manchester City Council,Highways Services,Professional fees,15-Jul-22,5105824677,Waterman Aspen Ltd,"8,453.25"
Manchester City Council,Manchester Leisure,Electricity,21-Jul-22,1907825677,Npower,"8,452.10"
Manchester City Council,Adult Social Care,Third party payments relating to Voluntary Organisations,27-Jul-22,5105826559,Manchester Womens Aid,"8,428.00"
Manchester City Council,Childrens & Education Services,Payments for services,04-Jul-22,5105823151,Thompsons Academy Ltd,"8,400.00"
Manchester City Council,Highways Services,Payments to Sub-Contractors,21-Jul-22,5105824301,Northern Marking Limited,"8,395.66"
Manchester City Council,Manchester Leisure,Grant and subscriptions awarded,29-Jul-22,5105826364,Families Against Violence,"8,388.00"
Manchester City Council,Housing General Fund,Building Works,25-Jul-22,1907822669,UPS Building & Maintenance Ltd,"8,387.05"
Manchester City Council,Manchester Leisure,Payments to Sub-Contractors,25-Jul-22,5105826119,Scrutiny Cleaning Services,"8,373.30"
Manchester City Council,Environment and Operations,Construction Works,26-Jul-22,5105826488,J.Hopkins (Contractors) Ltd.,"8,368.90"
Manchester City Council,Regeneration Finance,Furniture,22-Jul-22,5105826206,H Jenkinson & Co Ltd.,"8,348.67"
Manchester City Council,Regeneration Finance,Contract Cleaning External,18-Jul-22,5105825025,Westgrove Support Services Ltd,"8,324.77"
Manchester City Council,Regeneration Finance,Professional fees,25-Jul-22,5105826267,ASP Events Ltd,"8,300.00"
Manchester City Council,Housing Revenue Account,Council Dwelling Adaptations,11-Jul-22,5105823978,Rexel UK Ltd,"8,295.43"
Manchester City Council,Childrens & Education Services,Transport Coach Hire,15-Jul-22,5105823317,New City Cars Ltd,"8,250.00"
Manchester City Council,Manchester Leisure,Gas,28-Jul-22,1907833054,Corona Energy Ltd,"8,246.71"
Manchester City Council,Hospitality + Trading Services,Building Materials for direct delivery,13-Jul-22,5105824376,EQUANS Services Limited,"8,243.10"
Manchester City Council,Adult Social Care,Payments for services,29-Jul-22,5105824638,Care Concepts Ltd,"8,239.68"
Manchester City Council,Housing Revenue Account,Council Dwelling Adaptations,11-Jul-22,5105823979,Rexel UK Ltd,"8,222.83"
Manchester City Council,Manchester Leisure,Gas,28-Jul-22,1907832771,Corona Energy Ltd,"8,187.97"
Manchester City Council,Adult Social Care,Supporting People Payments,19-Jul-22,5105823551,Wythenshawe Community Housing Group,"8,175.00"
Manchester City Council,Adult Social Care,Third party payments relating to Voluntary Organisations,07-Jul-22,5105823614,Greater Manchester Immigration Aid,"8,158.00"
Manchester City Council,Chief Executives,Professional fees,18-Jul-22,5105824983,Anthesis Group,"8,121.00"
Manchester City Council,Regeneration Finance,Professional fees,11-Jul-22,5105823959,PPCP Ltd,"8,100.00"
Manchester City Council,Housing Revenue Account,Gas,28-Jul-22,1907832851,Corona Energy Ltd,"8,086.16"
Manchester City Council,Environment and Operations,Construction Works,07-Jul-22,5105823720,Wilde Consultants Ltd,"8,037.43"
Manchester City Council,Childrens & Education Services,Third party payments to other Local Authorities,28-Jul-22,5105826832,Blessed Thomas Holford School,"8,032.08"
Manchester City Council,Corporate Services,Postage,29-Jul-22,5105826929,Royal Mail Group Plc,"8,006.25"
Manchester City Council,Manchester Leisure,Grant and subscriptions awarded,18-Jul-22,5105824952,The Pankhurst Centre,"8,000.00"
Manchester City Council,Manchester Leisure,Special Event,05-Jul-22,1907792405,Manchester Carnival Together,"8,000.00"
Manchester City Council,Childrens & Education Services,Payments for services,29-Jul-22,5105827004,National Offender Mgt Services,"7,982.00"
Manchester City Council,Childrens & Education Services,Payments for services,29-Jul-22,5105827009,National Offender Mgt Services,"7,982.00"
Manchester City Council,Manchester Leisure,Gas,28-Jul-22,1907832864,Corona Energy Ltd,"7,976.91"
Manchester City Council,Highways Services,Compensation Payments,01-Jul-22,1907793852,Simpson Millar LLP,"7,945.00"
Manchester City Council,Highways Services,Compensation Payments,04-Jul-22,1907794042,Simpson Millar LLP,"7,945.00"
Manchester City Council,Adult Social Care,I T Provision,25-Jul-22,5105825991,Percy Westhead & Company,"7,937.50"
Manchester City Council,Regeneration Finance,Electricity,21-Jul-22,1907825875,Scottish & Southern Energy Plc,"7,904.58"
Manchester City Council,Corporate Services,Professional fees,22-Jul-22,5105825818,S.I.Sealy Associates Ltd,"7,830.00"
Manchester City Council,Environment and Operations,Construction Works,26-Jul-22,5105826490,J.Hopkins (Contractors) Ltd.,"7,821.79"
Manchester City Council,Highways Services,Payments to Sub-Contractors,11-Jul-22,5105823636,Rosgal Ltd,"7,800.00"
Manchester City Council,Highways Services,Payments to Sub-Contractors,18-Jul-22,5105824500,Rosgal Ltd,"7,800.00"
Manchester City Council,Regeneration Finance,Professional fees,18-Jul-22,5105824996,Redacted Personal Information,"7,775.00"
Manchester City Council,Manchester Leisure,Subsistence and Conference Expenses,19-Jul-22,5105825246,Corporate & Sporting Events,"7,741.67"
Manchester City Council,Corporate Services,Collection Commision,22-Jul-22,5105825798,Verrus (UK) T/A paybyphone,"7,734.50"
Manchester City Council,Chief Executives,Grant and subscriptions awarded,27-Jul-22,5105826530,Company Chameleon Limited,"7,687.50"
Manchester City Council,Corporate Services,Postage,26-Jul-22,5105826400,Royal Mail Group Plc,"7,666.11"
Manchester City Council,Chief Executives,Grant Payments,14-Jul-22,5105823318,Tameside Metropolitan Bouough,"7,650.00"
Manchester City Council,Adult Social Care,Furniture,08-Jul-22,5105823786,Wythenshawe Community Housing Group,"7,646.53"
Manchester City Council,Childrens & Education Services,Payments for services,13-Jul-22,5105824412,SMS Coaching Ltd,"7,625.00"
Manchester City Council,Manchester Leisure,Gas,28-Jul-22,1907833195,Corona Energy Ltd,"7,560.08"
Manchester City Council,Chief Executives,Agency staff provision,11-Jul-22,5105824043,Ashberry Recruitment Ltd,"7,555.88"
Manchester City Council,Regeneration Finance,Gas,28-Jul-22,1907832914,Corona Energy Ltd,"7,522.04"
Manchester City Council,Regeneration Finance,Professional fees,29-Jul-22,5105826967,Counter Context Limited,"7,506.66"
Manchester City Council,Housing Revenue Account,Council Dwelling Adaptations,20-Jul-22,5105825439,Pts Plumbing Trade Supplies,"7,505.20"
Manchester City Council,Adult Social Care,Personal needs of client,22-Jul-22,5105825875,Tunstall Healthcare (UK) Ltd,"7,501.51"
Manchester City Council,Adult Social Care,Supporting People Payments,07-Jul-22,5105823620,Age Concern Manchester,"7,500.00"
Manchester City Council,Childrens & Education Services,Third party payments relating to Voluntary Organisations,28-Jul-22,5105826799,Talbot House Support Centre,"7,500.00"
Manchester City Council,Childrens & Education Services,Third party payments relating to Voluntary Organisations,12-Jul-22,5105823246,Salford Royal Hospitals Nhs Trust,"7,500.00"
Manchester City Council,Childrens & Education Services,Third party payments relating to Voluntary Organisations,13-Jul-22,5105824360,Salford Royal Hospitals Nhs Trust,"7,500.00"
Manchester City Council,Regeneration Finance,Grant and subscriptions awarded,14-Jul-22,5105824597,Your Employment Service CIC (YES),"7,500.00"
Manchester City Council,Insurance Fund,Insurance,27-Jul-22,1907826708,Thompsons Solicitors,"7,500.00"
Manchester City Council,Chief Executives,Agency staff provision,18-Jul-22,5105824979,Tripod Partners,"7,497.85"
Manchester City Council,Highways Services,Professional fees,15-Jul-22,5105824672,Waterman Aspen Ltd,"7,469.00"
Manchester City Council,Adult Social Care,Furniture,06-Jul-22,5105823396,Wythenshawe Community Housing Group,"7,434.37"
Manchester City Council,Highways Services,Professional fees,15-Jul-22,5105824676,Waterman Aspen Ltd,"7,386.72"
Manchester City Council,Childrens & Education Services,Payments for services,29-Jul-22,5105826973,National Offender Mgt Services,"7,368.00"
Manchester City Council,Childrens & Education Services,Payments for services,29-Jul-22,5105827003,National Offender Mgt Services,"7,368.00"
Manchester City Council,Manchester Leisure,Other Allowances,06-Jul-22,1907794932,Tusker Direct,"7,345.87"
Manchester City Council,Childrens & Education Services,Third party payments to other Local Authorities,25-Jul-22,5105825541,New Bridge School,"7,291.90"
Manchester City Council,Adult Social Care,Supporting People Payments,14-Jul-22,5105824603,One Manchester Limited,"7,281.00"
Manchester City Council,Housing Revenue Account,Council Dwelling Adaptations,14-Jul-22,5105824611,Rexel UK Ltd,"7,270.70"
Manchester City Council,Chief Executives,Agency staff provision,19-Jul-22,5105825263,Osborne Richardson,"7,251.30"
Manchester City Council,Corporate Services,Fees,13-Jul-22,1907789168,Bristow & Sutor,"7,248.20"
Manchester City Council,Childrens & Education Services,Payments for services,18-Jul-22,5105824955,H.G. Care Services Ltd,"7,245.00"
Manchester City Council,Corporate Services,Works and associated costs for Land and Buildings,29-Jul-22,5105825610,Ameresco Limited,"7,225.44"
Manchester City Council,Childrens & Education Services,Transport Coach Hire,22-Jul-22,5105825828,MS Minibuses Ltd,"7,161.00"
Manchester City Council,Corporate Services,Professional fees,06-Jul-22,5105823485,Kepczyk Pearce Sanderson Limited,"7,140.00"
Manchester City Council,Highways Services,Professional fees,20-Jul-22,5105825221,Wilde Consultants Ltd,"7,128.00"
Manchester City Council,Housing General Fund,Building Works,19-Jul-22,1907822656,Stannah Lift Services Ltd,"7,123.39"
Manchester City Council,Childrens & Education Services,Payments for services,25-Jul-22,5105826034,H.G. Care Services Ltd,"7,087.75"
Manchester City Council,Childrens & Education Services,Payments for services,22-Jul-22,5105824881,Brentwood Community College,"7,047.75"
Manchester City Council,Childrens & Education Services,Payments for services,13-Jul-22,5105824421,The Together Trust,"7,027.87"
Manchester City Council,Childrens & Education Services,Payments for services,28-Jul-22,5105826808,The Together Trust,"7,027.40"
Manchester City Council,Regeneration Finance,Legal Fees,05-Jul-22,5105823347,No 5 Chambers Ltd,"7,000.00"
Manchester City Council,Housing General Fund,Building Works,06-Jul-22,1907798213,Stannah Lift Services Ltd,"6,991.00"
Manchester City Council,Manchester Leisure,ICT Sup & Maintnance,20-Jul-22,5105825454,8x8 UK Ltd,"6,990.45"
Manchester City Council,Environment and Operations,Construction Works,28-Jul-22,5105824867,Civic Engineers,"6,950.00"
Manchester City Council,Chief Executives,Advertising,28-Jul-22,5105826754,Reach Publishing Services Ltd,"6,939.48"
Manchester City Council,Highways Services,Legal Fees,20-Jul-22,1907824775,Peter Warburton T/a PJW LEGAL,"6,934.00"
Manchester City Council,Highways Services,Professional fees,29-Jul-22,5105825990,Waterman Infrastructure and,"6,931.26"
Manchester City Council,Housing Revenue Account,Council Dwelling Adaptations,21-Jul-22,5105825700,Rothwell Plumbing Services Ltd,"6,920.57"
Manchester City Council,Housing Revenue Account,Council Dwelling Adaptations,07-Jul-22,5105823613,Moores Furniture Group Limited,"6,888.81"
Manchester City Council,Adult Social Care,Payments for services,12-Jul-22,5105824121,FoodSync CIC,"6,881.00"
Manchester City Council,Regeneration Finance,Water - Unmetered,21-Jul-22,1907825180,Anglian Water Business (National),"6,827.06"
Manchester City Council,Regeneration Finance,Water - Unmetered,21-Jul-22,1907825208,Anglian Water Business (National),"6,827.06"
Manchester City Council,Regeneration Finance,Water - Unmetered,21-Jul-22,1907825224,Anglian Water Business (National),"6,827.06"
Manchester City Council,Regeneration Finance,Water - Unmetered,21-Jul-22,1907825196,Anglian Water Business (National),"6,827.06"
Manchester City Council,Regeneration Finance,Water - Unmetered,21-Jul-22,1907825214,Anglian Water Business (National),"6,827.06"
Manchester City Council,Regeneration Finance,Water - Unmetered,21-Jul-22,1907825190,Anglian Water Business (National),"6,827.06"
Manchester City Council,Regeneration Finance,Water - Unmetered,21-Jul-22,1907825200,Anglian Water Business (National),"6,827.06"
Manchester City Council,Manchester Leisure,Reuse credits,21-Jul-22,5105824323,Biffa Municipal Limited,"6,825.00"
Manchester City Council,Childrens & Education Services,Grant Payments,12-Jul-22,1907799001,PAYPOINT NETWORK LTD,"6,825.00"
Manchester City Council,Chief Executives,Funeral and coroner related services,14-Jul-22,5105824627,Kane Funeral Services,"6,820.00"
Manchester City Council,Chief Executives,Postage,13-Jul-22,5105824252,Whistl North Ltd,"6,816.04"
Manchester City Council,Childrens & Education Services,Payments for services,13-Jul-22,5105824415,Keys PCE Limited,"6,801.39"
Manchester City Council,Childrens & Education Services,Payments for services,29-Jul-22,5105827020,Keys PCE Limited,"6,801.39"
Manchester City Council,Childrens & Education Services,Professional fees,15-Jul-22,5105824840,Redacted Personal Information,"6,800.00"
Manchester City Council,Childrens & Education Services,Transport Coach Hire,25-Jul-22,5105826305,Street Cars,"6,796.00"
Manchester City Council,Highways Services,Electricity,21-Jul-22,1907826045,Haven Power Ltd,"6,787.19"
Manchester City Council,Highways Services,Payments to Sub-Contractors,11-Jul-22,5105823632,Rosgal Ltd,"6,774.30"
Manchester City Council,Childrens & Education Services,Payments for services,04-Jul-22,5105823110,Cedar House School,"6,767.25"
Manchester City Council,Childrens & Education Services,Payments for services,18-Jul-22,5105824959,H.G. Care Services Ltd,"6,766.75"
Manchester City Council,Manchester Leisure,Grant and subscriptions awarded,29-Jul-22,1907831747,Rainbow Surprise,"6,765.00"
Manchester City Council,Corporate Services,Legal Fees,11-Jul-22,1907796523,Antony Hodari Holding Ltd,"6,750.00"
Manchester City Council,Manchester Leisure,ICT Sup & Maintnance,11-Jul-22,5105823788,8x8 UK Ltd,"6,741.84"
Manchester City Council,Housing Revenue Account,Council Dwelling Adaptations,07-Jul-22,5105823590,Moores Furniture Group Limited,"6,735.68"
Manchester City Council,Adult Social Care,Grant and subscriptions awarded,11-Jul-22,5105823559,Manchester Action On Street Health,"6,717.00"
Manchester City Council,Childrens & Education Services,Payments for services,18-Jul-22,5105824958,H.G. Care Services Ltd,"6,706.00"
Manchester City Council,Adult Social Care,Third party payments to Health Authority,20-Jul-22,1907819075,Northern Care Alliance NHS FT,"6,693.62"
Manchester City Council,Childrens & Education Services,Payments for services,25-Jul-22,5105826031,H.G. Care Services Ltd,"6,676.75"
Manchester City Council,Adult Social Care,Third party payments relating to Voluntary Organisations,06-Jul-22,5105823366,DISC Ltd,"6,674.00"
Manchester City Council,Adult Social Care,Third party payments relating to Voluntary Organisations,05-Jul-22,5105823346,DISC Ltd,"6,666.00"
Manchester City Council,Adult Social Care,Third party payments relating to Voluntary Organisations,06-Jul-22,5105823365,DISC Ltd,"6,666.00"
Manchester City Council,Adult Social Care,Third party payments relating to Voluntary Organisations,29-Jul-22,5105823367,DISC Ltd,"6,666.00"
Manchester City Council,Childrens & Education Services,Payments for services,18-Jul-22,5105824957,H.G. Care Services Ltd,"6,661.00"
Manchester City Council,Highways Services,Payments to Sub-Contractors,18-Jul-22,5105824496,Bike Right,"6,660.00"
Manchester City Council,Childrens & Education Services,Payments for services,25-Jul-22,5105826050,H.G. Care Services Ltd,"6,624.00"
Manchester City Council,Childrens & Education Services,Payments for services,25-Jul-22,5105826086,H.G. Care Services Ltd,"6,624.00"
Manchester City Council,Childrens & Education Services,Transport Coach Hire,21-Jul-22,5105825704,MCR Elite Taxis Ltd,"6,551.50"
Manchester City Council,Adult Social Care,Third party payments to Health Authority,20-Jul-22,1907819082,Northern Care Alliance NHS FT,"6,514.01"
Manchester City Council,Housing Revenue Account,Council Dwelling Adaptations,07-Jul-22,5105823553,Rexel UK Ltd,"6,503.76"
Manchester City Council,Regeneration Finance,Legal Fees,28-Jul-22,5105826744,Savills Commercial Ltd,"6,500.00"
Manchester City Council,Manchester Leisure,Gas,28-Jul-22,1907832995,Corona Energy Ltd,"6,495.83"
Manchester City Council,Adult Social Care,Third party payments relating to Voluntary Organisations,19-Jul-22,5105825250,Talbot House Support Centre,"6,469.08"
Manchester City Council,Adult Social Care,Third party payments relating to Voluntary Organisations,19-Jul-22,5105825251,Talbot House Support Centre,"6,469.08"
Manchester City Council,Chief Executives,Agency staff provision,29-Jul-22,5105826934,The Oyster Partnership Limited,"6,445.79"
Manchester City Council,Manchester Leisure,Electricity,21-Jul-22,1907825851,Scottish & Southern Energy Plc,"6,432.23"
Manchester City Council,Chief Executives,Works and associated costs for Land and Buildings,07-Jul-22,5105823703,WSP UK Limited,"6,417.50"
Manchester City Council,Childrens & Education Services,Payments for services,25-Jul-22,5105826063,H.G. Care Services Ltd,"6,408.00"
Manchester City Council,Manchester Leisure,Payments to Sub-Contractors,28-Jul-22,5105826568,Arboricultural Services Treework,"6,400.00"
Manchester City Council,Regeneration Finance,Taxi Vehicle Materia,22-Jul-22,5105823330,New Auto Ltd T/A Mogo (Uk),"6,370.00"
Manchester City Council,Manchester Leisure,Gas,28-Jul-22,1907833077,Corona Energy Ltd,"6,363.97"
Manchester City Council,Chief Executives,Agency staff provision,29-Jul-22,5105826936,The Oyster Partnership Limited,"6,347.65"
Manchester City Council,Adult Social Care,Third party payments relating to Voluntary Organisations,04-Jul-22,5105823209,Manchester Womens Aid,"6,340.66"
Manchester City Council,Adult Social Care,Third party payments relating to Voluntary Organisations,19-Jul-22,5105824976,Manchester Womens Aid,"6,340.66"
Manchester City Council,Hospitality + Trading Services,Water - Metered,21-Jul-22,1907825427,Anglian Water Business (National),"6,340.53"
Manchester City Council,Adult Social Care,Third party payments relating to Voluntary Organisations,08-Jul-22,5105823726,Saheli,"6,259.75"
Manchester City Council,Adult Social Care,Third party payments relating to Voluntary Organisations,08-Jul-22,5105823729,Saheli,"6,259.75"
Manchester City Council,Adult Social Care,Third party payments relating to Voluntary Organisations,08-Jul-22,5105823738,Saheli,"6,259.75"
Manchester City Council,Corporate Services,Storage Costs,22-Jul-22,5105825791,Oasis UK formerly Box-It (NW),"6,245.94"
Manchester City Council,Chief Executives,Professional fees,04-Jul-22,5105823203,Waddington & Son Solicitors,"6,237.50"
Manchester City Council,Housing General Fund,Building Works,19-Jul-22,1907822667,Stannah Lift Services Ltd,"6,194.00"
Manchester City Council,Housing General Fund,Building Works,20-Jul-22,1907824614,Stannah Lift Services Ltd,"6,159.00"
Manchester City Council,Childrens & Education Services,Payments for services,04-Jul-22,5105823148,SMS Coaching Ltd,"6,100.00"
Manchester City Council,Childrens & Education Services,Transport Coach Hire,25-Jul-22,5105826000,MCR Blackcab Ltd,"6,059.96"
Manchester City Council,Chief Executives,Agency staff provision,22-Jul-22,5105825908,Ashberry Recruitment Ltd,"6,042.54"
Manchester City Council,Childrens & Education Services,Payments for services,18-Jul-22,5105824956,H.G. Care Services Ltd,"6,024.00"
Manchester City Council,Childrens & Education Services,Electricity,21-Jul-22,1907825871,Scottish & Southern Energy Plc,"6,003.33"
Manchester City Council,Regeneration Finance,Professional fees,11-Jul-22,5105823962,Savills (UK) Ltd,"6,000.00"
Manchester City Council,Adult Social Care,Training and Development,27-Jul-22,5105826550,Disabled Living,"6,000.00"
Manchester City Council,Regeneration Finance,Legal Fees,13-Jul-22,1907818043,Landmark Chambers,"6,000.00"
Manchester City Council,Highways Services,Legal Fees,06-Jul-22,1907798340,Thompsons Solicitors LLP Manchester,"6,000.00"
Manchester City Council,Corporate Services,Legal Fees,20-Jul-22,1907822777,Satchell Moran Solicitors,"6,000.00"
Manchester City Council,Manchester Leisure,Grant and subscriptions awarded,26-Jul-22,1907827010,Projekts MCR,"6,000.00"
Manchester City Council,Highways Services,Professional fees,15-Jul-22,5105824674,Waterman Aspen Ltd,"5,996.50"
Manchester City Council,Regeneration Finance,Grant and subscriptions awarded,05-Jul-22,5105823295,Mustafia Sharif Charity,"5,970.00"
Manchester City Council,Manchester Leisure,Other Insurance,01-Jul-22,1907793851,Aon Ltd,"5,960.34"
Manchester City Council,Adult Social Care,Professional fees,21-Jul-22,5105825611,Access UK Ltd,"5,926.85"
Manchester City Council,Regeneration Finance,External repairs and maintenance for buildings,19-Jul-22,5105825256,Victoria Baths Trust,"5,915.47"
Manchester City Council,Environment and Operations,Construction Works,29-Jul-22,5105825995,Turner & Townsend Project,"5,900.70"
Manchester City Council,Childrens & Education Services,Third party payments to other Local Authorities,11-Jul-22,5105823961,Reddish Vale High School,"5,894.00"
Manchester City Council,Regeneration Finance,Security,14-Jul-22,5105824687,MITIE SECURITY LIMITED,"5,882.35"
Manchester City Council,Corporate Services,Works and associated costs for Land and Buildings,11-Jul-22,5105823769,Ove Arup & Partners Ltd,"5,880.00"
Manchester City Council,Housing General Fund,Building Works,06-Jul-22,1907798210,Stannah Lift Services Ltd,"5,875.00"
Manchester City Council,Adult Social Care,Bed & Breakfast Acc,12-Jul-22,5105824276,Fairways Lodge,"5,845.00"
Manchester City Council,Chief Executives,Agency staff provision,19-Jul-22,5105825284,G2V Recruitment Grp t/a Vivid Resou,"5,825.95"
Manchester City Council,Highways Services,Payments to Sub-Contractors,15-Jul-22,5105824408,Rosgal Ltd,"5,824.20"
Manchester City Council,Manchester Leisure,Electricity,21-Jul-22,1907825733,Npower,"5,810.14"
Manchester City Council,Highways Services,Legal Fees,05-Jul-22,1907796103,SHELDON DAVIDSON Solicitors,"5,806.60"
Manchester City Council,Regeneration Finance,Electricity,21-Jul-22,1907826011,Scottish & Southern Energy Plc,"5,777.58"
Manchester City Council,Chief Executives,Printing,11-Jul-22,5105823877,Access Point Ltd,"5,772.00"
Manchester City Council,Adult Social Care,Bed & Breakfast Acc,11-Jul-22,5105824051,Medlock House Ltd,"5,733.00"
Manchester City Council,Manchester Leisure,Payments to Sub-Contractors,19-Jul-22,5105825103,Arboricultural Services Treework,"5,720.00"
Manchester City Council,Manchester Leisure,Equipment,14-Jul-22,1907818154,Highline Adventure Ltd,"5,700.00"
Manchester City Council,Manchester Leisure,Electricity,21-Jul-22,1907825852,Scottish & Southern Energy Plc,"5,677.46"
Manchester City Council,Housing General Fund,Building Works,19-Jul-22,1907822657,Stannah Lift Services Ltd,"5,662.00"
Manchester City Council,Corporate Services,Cash Collection,21-Jul-22,5105825741,NSL Ltd,"5,635.32"
Manchester City Council,Adult Social Care,Professional fees,25-Jul-22,5105826251,ANS Group Plc,"5,625.00"
Manchester City Council,Adult Social Care,Bed & Breakfast Acc,12-Jul-22,5105824272,Fairways Lodge,"5,610.00"
Manchester City Council,Manchester Leisure,Contract Cleaning External,11-Jul-22,5105823690,Scrutiny Cleaning Services,"5,593.84"
Manchester City Council,Adult Social Care,Bed & Breakfast Acc,13-Jul-22,5105824516,Redacted Personal Information,"5,570.00"
Manchester City Council,Adult Social Care,Third party payments relating to Voluntary Organisations,19-Jul-22,5105825138,DISC Ltd,"5,545.00"
Manchester City Council,Adult Social Care,Third party payments relating to Voluntary Organisations,19-Jul-22,5105825139,DISC Ltd,"5,545.00"
Manchester City Council,Adult Social Care,Third party payments relating to Voluntary Organisations,19-Jul-22,5105825140,DISC Ltd,"5,545.00"
Manchester City Council,Childrens & Education Services,Payments for services,25-Jul-22,5105826059,H.G. Care Services Ltd,"5,530.00"
Manchester City Council,Manchester Leisure,Electricity,21-Jul-22,1907825754,Npower,"5,528.96"
Manchester City Council,Regeneration Finance,Electricity,21-Jul-22,1907825697,Npower,"5,525.40"
Manchester City Council,Environment and Operations,Construction Works,04-Jul-22,5105823060,Wilde Consultants Ltd,"5,523.75"
Manchester City Council,Childrens & Education Services,Carer Support Payments ,29-Jul-22,5105827091,ABL Health Ltd,"5,500.00"
Manchester City Council,Chief Executives,Vehicle Plant Furniture and Equipment,29-Jul-22,5105826461,XMA Limited,"5,486.40"
Manchester City Council,Regeneration Finance,Electricity,21-Jul-22,1907825673,Npower,"5,469.16"
Manchester City Council,Manchester Leisure,Payments to Sub-Contractors,11-Jul-22,5105824107,Community Security (North West),"5,463.72"
Manchester City Council,Manchester Leisure,Refuse Collection,15-Jul-22,5105823669,Ramora Ltd,"5,444.68"
Manchester City Council,Housing General Fund,Building Works,19-Jul-22,1907822654,Stannah Lift Services Ltd,"5,443.00"
Manchester City Council,Housing Revenue Account,Council Dwelling Adaptations,06-Jul-22,5105823500,Pts Plumbing Trade Supplies,"5,440.97"
Manchester City Council,Corporate Services,Vehicle Plant Furniture and Equipment,12-Jul-22,5105824139,T.I.S. Limited,"5,434.80"
Manchester City Council,Manchester Leisure,Grounds Maintenance,19-Jul-22,5105825179,Tivoli Group Ltd,"5,429.64"
Manchester City Council,Manchester Leisure,Grounds Maintenance,20-Jul-22,5105825327,Tivoli Group Ltd,"5,429.64"
Manchester City Council,Highways Services,Payments to Sub-Contractors,20-Jul-22,5105825080,Utilities Design & Planning Ltd,"5,415.92"
Manchester City Council,Housing General Fund,Building Works,19-Jul-22,1907822660,Stannah Lift Services Ltd,"5,415.00"
Manchester City Council,Adult Social Care,Equipment,19-Jul-22,5105825108,Mangar International Ltd/Winncare,"5,400.00"
Manchester City Council,Manchester Leisure,Electricity,21-Jul-22,1907825708,Npower,"5,381.84"
Manchester City Council,Childrens & Education Services,Payments for services,04-Jul-22,5105823123,Manchester High School For Girls,"5,380.00"
Manchester City Council,Corporate Services,Fees,25-Jul-22,1907826427,ASW Legal Limited,"5,378.27"
Manchester City Council,Environment and Operations,Construction Works,29-Jul-22,5105823388,Balfour Beatty Living Places Ltd,"5,375.61"
Manchester City Council,Adult Social Care,Third party payments to Health Authority,20-Jul-22,1907819076,Northern Care Alliance NHS FT,"5,355.82"
Manchester City Council,Childrens & Education Services,Training and Development,26-Jul-22,5105826367,Vision Aid Technologies,"5,340.00"
Manchester City Council,Chief Executives,Printing,14-Jul-22,5105824590,Global Document Systems Ltd,"5,340.00"
Manchester City Council,Housing Revenue Account,Council Dwelling Adaptations,01-Jul-22,5105823022,Fieldway Supplies Ltd,"5,336.38"
Manchester City Council,Regeneration Finance,Hire of Premises,29-Jul-22,5105826257,King's House Conference (Gtr Mcr),"5,317.50"
Manchester City Council,Regeneration Finance,Gas,28-Jul-22,1907832737,Corona Energy Ltd,"5,311.07"
Manchester City Council,Childrens & Education Services,Payments for services,15-Jul-22,5105824781,Bolton College,"5,302.33"
Manchester City Council,Manchester Leisure,Electricity,21-Jul-22,1907825850,Scottish & Southern Energy Plc,"5,300.23"
Manchester City Council,Childrens & Education Services,Payments for services,15-Jul-22,5105824836,Redacted Personal Information,"5,298.90"
Manchester City Council,Manchester Leisure,Gas,28-Jul-22,1907832997,Corona Energy Ltd,"5,291.60"
Manchester City Council,Corporate Services,Works and associated costs for Land and Buildings,20-Jul-22,1907822735,Aon UK Limited,"5,275.87"
Manchester City Council,Childrens & Education Services,Payments for services,05-Jul-22,5105823315,National Offender Mgt Services,"5,271.00"
Manchester City Council,Adult Social Care,Professional fees,19-Jul-22,5105825093,Daisy Corporate Services Trading,"5,270.46"
Manchester City Council,Childrens & Education Services,Payments for services,25-Jul-22,5105826237,Nugent,"5,254.74"
Manchester City Council,Highways Services,Payments to Sub-Contractors,29-Jul-22,5105824462,Rosgal Ltd,"5,215.70"
Manchester City Council,Environment and Operations,Construction Works,29-Jul-22,5105823384,Balfour Beatty Living Places Ltd,"5,211.98"
Manchester City Council,Insurance Fund,Insurance,19-Jul-22,1907822805,Catholic Church Insurance Assoc.,"5,198.28"
Manchester City Council,Hospitality + Trading Services,Goods purchased for resale in Council outlets,11-Jul-22,5105823688,Albert Jones Memorials,"5,169.00"
Manchester City Council,Adult Social Care,Supported Accommodation,08-Jul-22,5105823789,Wythenshawe Community Housing Group,"5,167.23"
Manchester City Council,Childrens & Education Services,Payments for services,26-Jul-22,5105826377,Teenage Works,"5,164.09"
Manchester City Council,Adult Social Care,Professional fees,05-Jul-22,5105823248,Access UK Ltd,"5,153.97"
Manchester City Council,Childrens & Education Services,Professional fees,04-Jul-22,5105823241,Weightmans LLP Solicitors,"5,143.75"
Manchester City Council,Childrens & Education Services,Transport Coach Hire,14-Jul-22,5105823328,AA Buses,"5,132.00"
Manchester City Council,Childrens & Education Services,Transport Coach Hire,29-Jul-22,5105823672,School Transport Solutions,"5,126.00"
Manchester City Council,Housing General Fund,Building Works,06-Jul-22,1907798212,Stannah Lift Services Ltd,"5,122.00"
Manchester City Council,Housing Revenue Account,Council Dwelling Adaptations,11-Jul-22,5105823977,Rexel UK Ltd,"5,121.82"
Manchester City Council,Childrens & Education Services,Transport Coach Hire,28-Jul-22,5105825249,Redacted Personal Information,"5,119.92"
Manchester City Council,Regeneration Finance,Gas,28-Jul-22,1907832915,Corona Energy Ltd,"5,117.11"
Manchester City Council,Housing Revenue Account,Council Dwelling Adaptations,11-Jul-22,5105823829,Stannah Lift Services Ltd,"5,107.00"
Manchester City Council,Adult Social Care,Rents,13-Jul-22,5105824493,M&D Residential Ltd,"5,085.63"
Manchester City Council,Manchester Leisure,Grant and subscriptions awarded,21-Jul-22,5105825726,Manchester Carnival Together CIC,"5,070.00"
Manchester City Council,Adult Social Care,Bed & Breakfast Acc,11-Jul-22,5105824029,Medlock House Ltd,"5,047.00"
Manchester City Council,Adult Social Care,Equipment,19-Jul-22,5105825051,NRS Healthcare,"5,026.40"
Manchester City Council,Manchester Leisure,Gas,28-Jul-22,1907832773,Corona Energy Ltd,"5,021.15"
Manchester City Council,Corporate Services,Professional fees,25-Jul-22,5105826148,Pick Everard,"5,011.32"
Manchester City Council,Corporate Services,Works and associated costs for Land and Buildings,18-Jul-22,5105824998,Barcham Trees Plc,"5,011.00"
Manchester City Council,Manchester Leisure,Grant and subscriptions awarded,20-Jul-22,5105825183,Contact Theatre Company,"5,000.00"
Manchester City Council,Chief Executives,Grant and subscriptions awarded,19-Jul-22,5105825028,Brighter Sound Ltd,"5,000.00"
Manchester City Council,Chief Executives,Agency staff provision,21-Jul-22,5105825899,Ricoh UK Ltd.,"5,000.00"
Manchester City Council,Chief Executives,Licences Purchase,21-Jul-22,5105825897,Ricoh UK Ltd.,"5,000.00"
Manchester City Council,Childrens & Education Services,Payments for services,04-Jul-22,5105823150,Thompsons Academy Ltd,"5,000.00"
Manchester City Council,Childrens & Education Services,Payments for services,13-Jul-22,5105824413,SMS Coaching Ltd,"5,000.00"
Manchester City Council,Manchester Leisure,Grant and subscriptions awarded,21-Jul-22,5105825725,Cavendish School PTA,"5,000.00"
Manchester City Council,Adult Social Care,"Consumable items eg Toilet rolls, soap etc",08-Jul-22,1907812935,HOTEL AT BOOKING.COM,"4,967.58"
Manchester City Council,Childrens & Education Services,Payments for services,25-Jul-22,1907826893,Cambian Whinfell School Limited,"4,937.34"
Manchester City Council,Regeneration Finance,Refuse Collection,18-Jul-22,1907818537,Shred-It Ltd,"4,933.10"
Manchester City Council,Housing Revenue Account,Council Dwelling Adaptations,11-Jul-22,5105824036,Moores Furniture Group Limited,"4,912.16"
Manchester City Council,Childrens & Education Services,Payments for services,29-Jul-22,5105827010,National Offender Mgt Services,"4,912.00"
Manchester City Council,Manchester Leisure,Testing Fees,29-Jul-22,5105826023,County Scientific Services,"4,901.00"
Manchester City Council,Chief Executives,Professional fees,22-Jul-22,1907826529,Field Court Chambers,"4,900.00"
Manchester City Council,Adult Social Care,Payments for services,15-Jul-22,5105824788,Turning Point,"4,893.00"
Manchester City Council,Adult Social Care,"Consumable items eg Toilet rolls, soap etc",08-Jul-22,1907813166,MILTON MANCHESTER HOTE,"4,847.00"
Manchester City Council,Adult Social Care,Third party payments to Health Authority,20-Jul-22,1907819110,Northern Care Alliance NHS FT,"4,846.06"
Manchester City Council,Manchester Leisure,Grant and subscriptions awarded,11-Jul-22,5105823874,Barlow Moor Community Association,"4,825.00"
Manchester City Council,Manchester Leisure,Professional fees,27-Jul-22,5105826624,British Taekwondo Limited,"4,798.73"
Manchester City Council,Regeneration Finance,Water - Metered,21-Jul-22,1907825456,Anglian Water Business (National),"4,784.08"
Manchester City Council,Childrens & Education Services,Third party payments to other Local Authorities,25-Jul-22,5105826261,North Cheshire,"4,778.00"
Manchester City Council,Manchester Leisure,Responsive Repairs Work,13-Jul-22,5105824545,EQUANS Regeneration Limited,"4,769.44"
Manchester City Council,Childrens & Education Services,Transport Coach Hire,25-Jul-22,5105826014,MCR Blackcab Ltd,"4,751.60"
Manchester City Council,Housing Revenue Account,Council Dwelling Adaptations,06-Jul-22,5105823494,Pts Plumbing Trade Supplies,"4,747.28"
Manchester City Council,Childrens & Education Services,Transport Coach Hire,29-Jul-22,5105825758,Club Radio Cars Manchester Ltd,"4,739.60"
Manchester City Council,Hospitality + Trading Services,Water - Metered,21-Jul-22,1907825414,Anglian Water Business (National),"4,734.39"
Manchester City Council,Adult Social Care,Payments for services,15-Jul-22,5105824785,ADFERIAD RECOVERY,"4,725.00"
Manchester City Council,Childrens & Education Services,Payments for services,13-Jul-22,5105824478,Time Specialist Support Ltd,"4,719.75"
Manchester City Council,Childrens & Education Services,Payments for services,26-Jul-22,5105826486,Time Specialist Support Ltd,"4,719.75"
Manchester City Council,Housing Revenue Account,Electricity,21-Jul-22,1907826042,Haven Power Ltd,"4,707.30"
Manchester City Council,Corporate Services,Professional fees,21-Jul-22,5105825319,Faithful & Gould Ltd,"4,702.24"
Manchester City Council,Corporate Services,Professional fees,21-Jul-22,5105825640,Faithful & Gould Ltd,"4,702.24"
Manchester City Council,Manchester Leisure,Grant and subscriptions awarded,14-Jul-22,5105824666,Brunswick Parish Church,"4,693.00"
Manchester City Council,Childrens & Education Services,Professional fees,29-Jul-22,5105827018,Ability Smart Ltd,"4,690.00"
Manchester City Council,Corporate Services,Professional fees,29-Jul-22,5105826888,Mace Cost Consultancy Ltd,"4,682.00"
Manchester City Council,Highways Services,Payments to Sub-Contractors,19-Jul-22,5105825155,Rosgal Ltd,"4,680.00"
Manchester City Council,Adult Social Care,Rents,11-Jul-22,5105823538,Wythenshawe Community Housing Group,"4,674.38"
Manchester City Council,Adult Social Care,Rents,11-Jul-22,5105823537,Wythenshawe Community Housing Group,"4,674.38"
Manchester City Council,Adult Social Care,Rents,11-Jul-22,5105823539,Wythenshawe Community Housing Group,"4,674.38"
Manchester City Council,Adult Social Care,Rents,11-Jul-22,5105823536,Wythenshawe Community Housing Group,"4,674.38"
Manchester City Council,Adult Social Care,Rents,11-Jul-22,5105823554,Wythenshawe Community Housing Group,"4,674.38"
Manchester City Council,Regeneration Finance,Electricity,21-Jul-22,1907825698,Npower,"4,655.15"
Manchester City Council,Manchester Leisure,Payments to Sub-Contractors,25-Jul-22,5105826118,Scrutiny Cleaning Services,"4,653.60"
Manchester City Council,Housing General Fund,Building Works,06-Jul-22,1907798216,Stannah Lift Services Ltd,"4,653.00"
Manchester City Council,Housing Revenue Account,Council Dwelling Adaptations,20-Jul-22,5105825441,Pts Plumbing Trade Supplies,"4,640.98"
Manchester City Council,Highways Services,Professional fees,15-Jul-22,5105824679,Waterman Aspen Ltd,"4,622.50"
Manchester City Council,Manchester Leisure,Legal Fees,04-Jul-22,1907794128,Peasegoods,"4,600.00"
Manchester City Council,Housing General Fund,Building Works,19-Jul-22,1907822659,Stannah Lift Services Ltd,"4,583.00"
Manchester City Council,Childrens & Education Services,Payments for services,15-Jul-22,5105824842,SMS Coaching Ltd,"4,575.00"
Manchester City Council,Manchester Leisure,Electricity,21-Jul-22,1907825853,Scottish & Southern Energy Plc,"4,572.11"
Manchester City Council,Manchester Leisure,Agency staff provision,29-Jul-22,5105827116,Manchester Art Gallery,"4,560.00"
Manchester City Council,Regeneration Finance,External repairs and maintenance for buildings,12-Jul-22,5105824315,Victoria Baths Trust,"4,546.81"
Manchester City Council,Highways Services,Payments to Sub-Contractors,29-Jul-22,5105824356,SWARCO Traffic Ltd,"4,542.72"
Manchester City Council,Chief Executives,Machinery and equipment repairs,01-Jul-22,5105823053,Quadient UK Ltd (Consumables),"4,518.90"
Manchester City Council,Childrens & Education Services,Payments for services,21-Jul-22,5105825710,Chaigeley Education Foundation,"4,518.18"
Manchester City Council,Insurance Fund,Insurance,27-Jul-22,1907828546,Trade Union Legal LLP,"4,513.00"
Manchester City Council,Hospitality + Trading Services,Equipment,08-Jul-22,1907796286,BARLOW TRAILERS LTD,"4,512.00"
Manchester City Council,Hospitality + Trading Services,Equipment,11-Jul-22,1907813918,BARLOW TRAILERS LTD,"4,512.00"
Manchester City Council,Chief Executives,Grant and subscriptions awarded,14-Jul-22,5105824695,Reform Radio CIC,"4,500.00"
Manchester City Council,Childrens & Education Services,Transport Coach Hire,21-Jul-22,5105825222,Liddle Hackney Carriage,"4,500.00"
Manchester City Council,Highways Services,Compensation Payments,27-Jul-22,1907831626,Redacted Personal Information,"4,500.00"
Manchester City Council,Childrens Services,Works and associated costs for Land and Buildings,27-Jul-22,1907767880,Envirosolutions Ltd,"4,500.00"
Manchester City Council,Corporate Services,Works and associated costs for Land and Buildings,14-Jul-22,5105824685,Barcham Trees Plc,"4,497.00"
Manchester City Council,Corporate Services,Professional fees,29-Jul-22,5105826887,Mace Cost Consultancy Ltd,"4,487.00"
Manchester City Council,Highways Services,Professional fees,22-Jul-22,5105825876,Wilde Consultants Ltd,"4,471.50"
Manchester City Council,Corporate Services,Vehicle Costs,07-Jul-22,1907798985,Cyclescheme Ltd,"4,461.67"
Manchester City Council,Chief Executives,Professional fees,11-Jul-22,5105823872,Transport for Greater Manchester,"4,444.40"
Manchester City Council,Chief Executives,Professional fees,04-Jul-22,5105823198,Waddington & Son Solicitors,"4,439.25"
Manchester City Council,Manchester Leisure,"Consumable items eg Toilet rolls, soap etc",05-Jul-22,1907796192,VERMILION,"4,435.00"
Manchester City Council,Hospitality + Trading Services,Insurance,27-Jul-22,1907826887,Zurich Municipal,"4,421.99"
Manchester City Council,Childrens & Education Services,Carer Support Payments ,29-Jul-22,5105827092,ABL Health Ltd,"4,400.00"
Manchester City Council,Adult Social Care,Grant and subscriptions awarded,22-Jul-22,5105825867,On The Out CIC,"4,387.00"
Manchester City Council,Manchester Leisure,Legal Fees,01-Jul-22,1907794251,Driscoll Kingston,"4,384.31"
Manchester City Council,Highways Services,Professional fees,29-Jul-22,5105823588,Kainos Software Ltd,"4,375.00"
Manchester City Council,Adult Social Care,Rents,14-Jul-22,5105824152,Housing Social Ltd,"4,359.01"
Manchester City Council,Adult Social Care,Rents,22-Jul-22,5105825966,Housing Social Ltd,"4,359.01"
Manchester City Council,Adult Social Care,Bed & Breakfast Acc,18-Jul-22,5105824933,Redacted Personal Information,"4,340.00"
Manchester City Council,Chief Executives,Works and associated costs for Land and Buildings,29-Jul-22,5105827121,Building Design Partnership Limited,"4,334.84"
Manchester City Council,Chief Executives,Funeral and coroner related services,22-Jul-22,5105825972,Uni Hospital of South Mcr,"4,313.00"
Manchester City Council,Regeneration Finance,Electricity,21-Jul-22,1907825709,Npower,"4,309.61"
Manchester City Council,Manchester Leisure,Works and associated costs for Land and Buildings,18-Jul-22,5105824345,ISG Construction Limited,"4,309.26"
Manchester City Council,Regeneration Finance,Professional fees,14-Jul-22,1907818970,DWF LLP,"4,305.00"
Manchester City Council,Chief Executives,Works and associated costs for Land and Buildings,29-Jul-22,5105827122,Building Design Partnership Limited,"4,297.58"
Manchester City Council,Manchester Leisure,Electricity,21-Jul-22,1907825727,Npower,"4,283.93"
Manchester City Council,Housing General Fund,Building Works,19-Jul-22,1907822658,Stannah Lift Services Ltd,"4,283.00"
Manchester City Council,Manchester Leisure,Agency staff provision,29-Jul-22,5105827115,Manchester Art Gallery,"4,267.50"
Manchester City Council,Housing Revenue Account,Council Dwelling Adaptations,11-Jul-22,5105824040,Pts Plumbing Trade Supplies,"4,250.52"
Manchester City Council,Manchester Leisure,Grant and subscriptions awarded,12-Jul-22,5105824243,Cheetham Cultural Festival T/a,"4,250.00"
Manchester City Council,Childrens & Education Services,Payments for services,11-Jul-22,5105823700,Fairfield Care Ltd,"4,247.20"
Manchester City Council,Childrens & Education Services,Transport Coach Hire,29-Jul-22,5105823673,School Transport Solutions,"4,218.00"
Manchester City Council,Manchester Leisure,Electricity,21-Jul-22,1907825686,Npower,"4,204.95"
Manchester City Council,Childrens & Education Services,Subsistence and Conference Expenses,05-Jul-22,5105823279,Inclusive Choice,"4,200.00"
Manchester City Council,Chief Executives,Hire of Equipment,29-Jul-22,5105826892,dbnAudile Limited,"4,200.00"
Manchester City Council,Adult Social Care,"Consumable items eg Toilet rolls, soap etc",08-Jul-22,1907812590,MILTON MANCHESTER HOTE,"4,155.00"
Manchester City Council,Regeneration Finance,Gas,28-Jul-22,1907833090,Corona Energy Ltd,"4,141.67"
Manchester City Council,Corporate Services,Works and associated costs for Land and Buildings,29-Jul-22,5105825607,Ameresco Limited,"4,136.24"
Manchester City Council,Childrens & Education Services,Transport Coach Hire,25-Jul-22,5105825981,MCR Blackcab Ltd,"4,125.92"
Manchester City Council,Highways Services,Legal Fees,13-Jul-22,1907814557,Express Solicitors,"4,122.00"
Manchester City Council,Chief Executives,Works and associated costs for Land and Buildings,25-Jul-22,5105826178,Pierre Angulaire Limited,"4,120.00"
Manchester City Council,Adult Social Care,"Consumable items eg Toilet rolls, soap etc",08-Jul-22,1907812615,MILTON MANCHESTER HOTE,"4,115.00"
Manchester City Council,Adult Social Care,"Consumable items eg Toilet rolls, soap etc",08-Jul-22,1907813092,HOTEL AT BOOKING.COM,"4,107.00"
Manchester City Council,Corporate Services,Professional fees,11-Jul-22,5105823130,Mace Cost Consultancy Ltd,"4,097.00"
Manchester City Council,Childrens & Education Services,Foster Payments,15-Jul-22,1907819150,Redacted Personal Information,"4,093.65"
Manchester City Council,Corporate Services,Professional fees,22-Jul-22,5105825745,Pick Everard,"4,079.44"
Manchester City Council,Hospitality + Trading Services,Vehicle Hire Costs,11-Jul-22,5105823757,F.R.Sharrock Ltd,"4,070.00"
Manchester City Council,Manchester Leisure,Agency staff provision,08-Jul-22,5105823651,University Of Manchester,"4,070.00"
Manchester City Council,Manchester Leisure,Payments to Sub-Contractors,22-Jul-22,5105825799,Verrus (UK) T/A paybyphone,"4,069.50"
Manchester City Council,Adult Social Care,Payments for services,22-Jul-22,5105825720,Slimming World,"4,065.00"
Manchester City Council,Regeneration Finance,Stationery,04-Jul-22,5105823219,Banner Group Limited,"4,064.00"
Manchester City Council,Childrens & Education Services,Professional fees,04-Jul-22,5105823140,Weightmans LLP Solicitors,"4,043.75"
Manchester City Council,Hospitality + Trading Services,Vehicle Hire Costs,13-Jul-22,5105824480,Fleet Dynamic Consultancy Ltd,"4,038.11"
Manchester City Council,Adult Social Care,"Consumable items eg Toilet rolls, soap etc",08-Jul-22,1907813134,MILTON MANCHESTER HOTE,"4,016.00"
Manchester City Council,Childrens & Education Services,Payments for services,13-Jul-22,5105824414,Keys PCE Limited,"4,007.86"
Manchester City Council,Adult Social Care,Funeral and coroner related services,06-Jul-22,1907792083,Alan J Bradley & Sons Ltd,"4,002.00"
Manchester City Council,Manchester Leisure,Library Materials Acquisition,29-Jul-22,1907825106,Bolinda UK Limited,"4,000.00"
Manchester City Council,Manchester Leisure,Library Materials Acquisition,29-Jul-22,1907825107,Bolinda UK Limited,"4,000.00"
Manchester City Council,Childrens & Education Services,Payments for services,13-Jul-22,5105824416,Keys PCE Limited,"3,990.00"
Manchester City Council,Manchester Leisure,Electricity,21-Jul-22,1907825707,Npower,"3,986.55"
Manchester City Council,Manchester Leisure,Electricity,21-Jul-22,1907825751,Npower,"3,983.37"
Manchester City Council,Childrens & Education Services,Transport Coach Hire,21-Jul-22,5105825223,Liddle Hackney Carriage,"3,960.00"
Manchester City Council,Highways Services,Professional fees,15-Jul-22,5105824665,Waterman Aspen Ltd,"3,960.00"
Manchester City Council,Manchester Leisure,Gas,28-Jul-22,1907832796,Corona Energy Ltd,"3,952.81"
Manchester City Council,Housing Revenue Account,Council Dwelling Adaptations,22-Jul-22,5105825886,Pts Plumbing Trade Supplies,"3,951.42"
Manchester City Council,Chief Executives,Grant and subscriptions awarded,22-Jul-22,5105825915,Manchester Craft & Design Charity,"3,948.00"
Manchester City Council,Manchester Leisure,Security,22-Jul-22,5105826016,Showsec International Ltd,"3,944.51"
Manchester City Council,Chief Executives,Postage,29-Jul-22,5105826732,Whistl North Ltd,"3,940.91"
Manchester City Council,Adult Social Care,"Consumable items eg Toilet rolls, soap etc",08-Jul-22,1907813547,CABOT-CENTRAL,"3,935.00"
Manchester City Council,Childrens & Education Services,Rents,14-Jul-22,1907814463,Partners Of Prisoners & Families,"3,921.83"
Manchester City Council,Childrens & Education Services,Rents,15-Jul-22,1907814483,Partners Of Prisoners & Families,"3,921.83"
Manchester City Council,Adult Social Care,"Consumable items eg Toilet rolls, soap etc",08-Jul-22,1907813653,WWW.LUXINN.CO.UK,"3,918.84"
Manchester City Council,Highways Services,Payments to Sub-Contractors,21-Jul-22,5105825600,Amey Highways Lighting (Manchester),"3,909.74"
Manchester City Council,Highways Services,Legal Fees,21-Jul-22,1907824795,Coupland Cavendish t/a Gowing Law S,"3,905.40"
Manchester City Council,Childrens & Education Services,Payments for services,15-Jul-22,5105824837,Redacted Personal Information,"3,897.00"
Manchester City Council,Adult Social Care,Third party payments relating to Voluntary Organisations,08-Jul-22,5105823830,Breakthrough Uk Ltd,"3,888.94"
Manchester City Council,Childrens & Education Services,Transport Coach Hire,19-Jul-22,5105825342,David'S Handy Rider,"3,888.00"
Manchester City Council,Childrens & Education Services,Third party payments to other Local Authorities,26-Jul-22,5105826342,Bolton Mbc,"3,875.00"
Manchester City Council,Adult Social Care,Bed & Breakfast Acc,29-Jul-22,5105826993,Molesworth Hotel,"3,871.00"
Manchester City Council,Manchester Leisure,Payments to Sub-Contractors,22-Jul-22,5105825986,NSL Ltd,"3,863.33"
Manchester City Council,Adult Social Care,"Consumable items eg Toilet rolls, soap etc",08-Jul-22,1907813137,MILTON MANCHESTER HOTE,"3,852.00"
Manchester City Council,Manchester Leisure,Professional fees,19-Jul-22,5105825106,Redacted Personal Information,"3,850.00"
Manchester City Council,Childrens & Education Services,Payments for services,29-Jul-22,5105827008,National Offender Mgt Services,"3,850.00"
Manchester City Council,Childrens & Education Services,Grant Payments,12-Jul-22,1907799002,PAYPOINT NETWORK LTD,"3,850.00"
Manchester City Council,Regeneration Finance,Rents,04-Jul-22,5105823086,Dixons Brooklands Academy,"3,849.45"
Manchester City Council,Corporate Services,Fees,21-Jul-22,5105825800,Pannone Corporate LLP,"3,842.40"
Manchester City Council,Adult Social Care,Personal needs of client,20-Jul-22,5105825472,Careflex Limited,"3,835.00"
Manchester City Council,Corporate Services,Hire of Equipment,29-Jul-22,5105826915,Flowbird Smart City Uk Ltd,"3,824.00"
Manchester City Council,Manchester Leisure,Gas,28-Jul-22,1907833076,Corona Energy Ltd,"3,815.53"
Manchester City Council,Adult Social Care,Equipment,19-Jul-22,5105825174,NRS Healthcare,"3,814.52"
Manchester City Council,Manchester Leisure,Electricity,21-Jul-22,1907826041,Haven Power Ltd,"3,813.49"
Manchester City Council,Chief Executives,Legal Fees,08-Jul-22,1907799019,Liberata,"3,813.00"
Manchester City Council,Regeneration Finance,Grounds Maintenance,29-Jul-22,5105824729,Mitie Landscapes LTD,"3,802.13"
Manchester City Council,Adult Social Care,Training and Development,28-Jul-22,5105826831,University Of Manchester,"3,800.00"
Manchester City Council,Adult Social Care,Bed & Breakfast Acc,01-Jul-22,5105823044,Molesworth Hotel,"3,792.00"
Manchester City Council,Regeneration Finance,External repairs and maintenance for buildings,25-Jul-22,5105826158,SMS Solar Maintenance Services,"3,790.20"
Manchester City Council,Childrens & Education Services,Transport Coach Hire,26-Jul-22,5105826445,D.J. Minibus Travel,"3,780.00"
Manchester City Council,Hospitality + Trading Services,Equipment,13-Jul-22,1907814552,Branded Cups LTD,"3,780.00"
Manchester City Council,Adult Social Care,"Consumable items eg Toilet rolls, soap etc",08-Jul-22,1907812784,HOTEL AT BOOKING.COM,"3,777.00"
Manchester City Council,Manchester Leisure,Mobilephone Charges,05-Jul-22,1907796517,O2 UK PAYMENT,"3,767.45"
Manchester City Council,Adult Social Care,Bed & Breakfast Acc,18-Jul-22,5105824936,Redacted Personal Information,"3,765.00"
Manchester City Council,Adult Social Care,Third party payments to Health Authority,13-Jul-22,1907796068,Chelsea & Westminster Hosp NHSFT,"3,763.75"
Manchester City Council,Hospitality + Trading Services,Equipment,11-Jul-22,1907813894,BARLOW TRAILERS LTD,"3,760.00"
Manchester City Council,Highways Services,Payments to Sub-Contractors,18-Jul-22,5105824495,Bike Right,"3,759.00"
Manchester City Council,GMIST (Greater Mcr Integrated),Storage Costs,21-Jul-22,5105825824,DeepStore,"3,758.44"
Manchester City Council,Regeneration Finance,Electricity,21-Jul-22,1907825712,Npower,"3,756.86"
Manchester City Council,Highways Services,Payments to Sub-Contractors,11-Jul-22,5105824191,Clearway Drainage Systems Ltd,"3,750.00"
Manchester City Council,Corporate Services,Professional fees,11-Jul-22,5105823129,Mace Cost Consultancy Ltd,"3,716.00"
Manchester City Council,Chief Executives,Hire of Equipment,29-Jul-22,5105827078,Sterling Event Group,"3,711.95"
Manchester City Council,Adult Social Care,Personal needs of client,21-Jul-22,5105825230,Specialised Orthotic Services Ltd,"3,705.39"
Manchester City Council,Adult Social Care,Third party payments relating to Voluntary Organisations,19-Jul-22,5105825109,Reach out to the Community,"3,690.00"
Manchester City Council,Housing Revenue Account,Council Dwelling Adaptations,21-Jul-22,5105825702,Rothwell Plumbing Services Ltd,"3,686.62"
Manchester City Council,Adult Social Care,Supported Accommodation,14-Jul-22,5105824761,Mosscare Housing Ltd,"3,685.40"
Manchester City Council,Adult Social Care,Supported Accommodation,14-Jul-22,5105824740,Mosscare Housing Ltd,"3,685.40"
Manchester City Council,Housing Revenue Account,Council Dwelling Adaptations,22-Jul-22,5105825887,Pts Plumbing Trade Supplies,"3,675.17"
Manchester City Council,Adult Social Care,Gas,28-Jul-22,1907832881,Corona Energy Ltd,"3,654.98"
Manchester City Council,Childrens & Education Services,Storage Costs,12-Jul-22,5105824096,Restore PLC,"3,648.69"
Manchester City Council,Highways Services,Grounds Maintenance,05-Jul-22,5105823296,The Fountain Company Ltd,"3,645.00"
Manchester City Council,Highways Services,Grounds Maintenance,29-Jul-22,5105824300,The Fountain Company Ltd,"3,645.00"
Manchester City Council,Childrens & Education Services,Payments for services,13-Jul-22,5105824423,The Together Trust,"3,641.67"
Manchester City Council,Childrens & Education Services,Payments for services,28-Jul-22,5105826806,The Together Trust,"3,641.67"
Manchester City Council,Highways Services,Payments to Sub-Contractors,19-Jul-22,5105825377,Fairway Landscapes Ltd,"3,619.96"
Manchester City Council,Chief Executives,Funeral and coroner related services,11-Jul-22,1907813856,MG Harrington Ltd,"3,600.00"
Manchester City Council,Housing Revenue Account,Gas,28-Jul-22,1907833192,Corona Energy Ltd,"3,552.06"
Manchester City Council,Childrens & Education Services,Payments for services,15-Jul-22,5105824835,Broadstones Independent Special Sch,"3,545.46"
Manchester City Council,Childrens & Education Services,Payments for services,15-Jul-22,5105824838,Redacted Personal Information,"3,542.40"
Manchester City Council,Housing Revenue Account,Council Dwelling Adaptations,21-Jul-22,5105825589,Stannah Lift Services Ltd,"3,528.00"
Manchester City Council,Highways Services,Payments to Sub-Contractors,15-Jul-22,5105824341,Northern Marking Limited,"3,523.68"
Manchester City Council,Manchester Leisure,Catering,18-Jul-22,5105824993,Manchester Art Gallery,"3,523.00"
Manchester City Council,Regeneration Finance,Taxi Vehicle Materia,19-Jul-22,5105825134,VIP-System Ltd,"3,512.12"
Manchester City Council,Adult Social Care,Refuse Collection,29-Jul-22,5105826992,Initial Medical Services,"3,509.13"
Manchester City Council,Adult Social Care,Cleaning Equipment and Materials,29-Jul-22,5105823943,Initial Medical Services,"3,509.13"
Manchester City Council,Adult Social Care,"Consumable items eg Toilet rolls, soap etc",08-Jul-22,1907813155,MILTON MANCHESTER HOTE,"3,506.00"
Manchester City Council,Manchester Leisure,Payments to Sub-Contractors,25-Jul-22,1907816439,Bt Redcare,"3,500.00"
Manchester City Council,Manchester Leisure,Payments to Sub-Contractors,19-Jul-22,5105825101,Arboricultural Services Treework,"3,500.00"
Manchester City Council,Manchester Leisure,Grant and subscriptions awarded,26-Jul-22,5105825024,M13 Youth Project,"3,500.00"
Manchester City Council,Regeneration Finance,Legal Fees,08-Jul-22,1907793326,18 St John Street Chambers,"3,500.00"
Manchester City Council,Highways Services,Legal Fees,11-Jul-22,1907814562,Redacted Personal Information,"3,500.00"
Manchester City Council,Manchester Leisure,Professional fees,14-Jul-22,1907816442,HEARTSTONE,"3,500.00"
Manchester City Council,Highways Services,Legal Fees,18-Jul-22,1907792061,Redacted Personal Information,"3,500.00"
Manchester City Council,Housing General Fund,Building Works,20-Jul-22,1907824615,Stannah Lift Services Ltd,"3,498.50"
Manchester City Council,Environment and Operations,Construction Works,29-Jul-22,5105826885,Wilde Consultants Ltd,"3,476.07"
Manchester City Council,Childrens & Education Services,Third party payments to other Local Authorities,25-Jul-22,5105825552,New Bridge School,"3,470.61"
Manchester City Council,Childrens & Education Services,Transport Coach Hire,22-Jul-22,5105825830,Ricks Travel,"3,465.00"
Manchester City Council,Housing Revenue Account,Council Dwelling Adaptations,07-Jul-22,5105823558,Procare Shower & Bathroom Centre Lt,"3,447.30"
Manchester City Council,Adult Social Care,Personal needs of client,18-Jul-22,5105824802,Prism Medical UK Carefree Division,"3,442.50"
Manchester City Council,Housing Revenue Account,Gas,28-Jul-22,1907832852,Corona Energy Ltd,"3,441.13"
Manchester City Council,Chief Executives,Works and associated costs for Land and Buildings,25-Jul-22,5105826180,Ryder Architecture Ltd,"3,430.00"
Manchester City Council,Manchester Leisure,Agency staff provision,25-Jul-22,5105826145,Michael Page International,"3,422.00"
Manchester City Council,Manchester Leisure,Equipment,14-Jul-22,5105824586,MGB Plastics Limited,"3,421.20"
Manchester City Council,Housing Revenue Account,Council Dwelling Adaptations,07-Jul-22,5105823558,Procare Shower & Bathroom Centre Lt,"3,419.09"
Manchester City Council,Childrens & Education Services,Water - Unmetered,21-Jul-22,1907825193,Anglian Water Business (National),"3,413.53"
Manchester City Council,Manchester Leisure,Gas,28-Jul-22,1907832795,Corona Energy Ltd,"3,412.88"
Manchester City Council,Chief Executives,Advertising,11-Jul-22,5105824050,Bauer Radio Ltd,"3,395.75"
Manchester City Council,Childrens & Education Services,Professional fees,06-Jul-22,5105823469,Waddington & Son Solicitors,"3,392.50"
Manchester City Council,Adult Social Care,Payments for services,21-Jul-22,5105825757,ADFERIAD RECOVERY,"3,375.00"
Manchester City Council,Corporate Services,Professional fees,19-Jul-22,5105825077,WSP UK Limited,"3,367.50"
Manchester City Council,Regeneration Finance,Electricity,21-Jul-22,1907825706,Npower,"3,361.79"
Manchester City Council,Childrens & Education Services,Transport Coach Hire,29-Jul-22,5105826460,D.J. Minibus Travel,"3,360.00"
Manchester City Council,Corporate Services,Works and associated costs for Land and Buildings,08-Jul-22,5105823777,Planit,"3,360.00"
Manchester City Council,Chief Executives,Works and associated costs for Land and Buildings,27-Jul-22,5105826547,Browne Jacobson,"3,357.50"
Manchester City Council,Hospitality + Trading Services,Equipment,08-Jul-22,1907796291,Stapletons Tyre Services,"3,353.77"
Manchester City Council,Hospitality + Trading Services,Equipment,11-Jul-22,1907813896,Stapletons Tyre Services,"3,353.77"
Manchester City Council,Hospitality + Trading Services,Equipment,11-Jul-22,1907813920,Stapletons Tyre Services,"3,353.77"
Manchester City Council,Manchester Leisure,Special Event,19-Jul-22,5105824903,Utilities Design & Planning Ltd,"3,349.00"
Manchester City Council,Adult Social Care,"Consumable items eg Toilet rolls, soap etc",08-Jul-22,1907813592,S AND S SALES MCR LTD,"3,344.66"
Manchester City Council,Adult Social Care,Third party payments relating to Voluntary Organisations,19-Jul-22,5105825072,Manchester Womens Aid,"3,333.33"
Manchester City Council,Manchester Leisure,Hire of Equipment,19-Jul-22,5105824757,Eventplus Ltd,"3,330.00"
Manchester City Council,Manchester Leisure,Professional fees,25-Jul-22,5105826169,Response Team 247 Ltd,"3,323.32"
Manchester City Council,Adult Social Care,Third party payments to Health Authority,20-Jul-22,1907819081,Northern Care Alliance NHS FT,"3,315.64"
Manchester City Council,Highways Services,Payments to Sub-Contractors,19-Jul-22,5105825371,Fairway Landscapes Ltd,"3,304.72"
Manchester City Council,Hospitality + Trading Services,Goods purchased for resale in Council outlets,15-Jul-22,5105824810,C.J. Imports Ltd,"3,300.00"
Manchester City Council,Manchester Leisure,Professional fees,29-Jul-22,1907833633,Redacted Personal Information,"3,300.00"
Manchester City Council,Adult Social Care,Rents,12-Jul-22,5105824177,M & Q Properties Management Ltd,"3,285.00"
Manchester City Council,Manchester Leisure,Payments to Sub-Contractors,19-Jul-22,5105825094,Groundwork Landscapes Ltd,"3,280.00"
Manchester City Council,Childrens & Education Services,Professional fees,04-Jul-22,5105823119,Waddington & Son Solicitors,"3,268.00"
Manchester City Council,Highways Services,I T Provision,11-Jul-22,5105823946,Buchanan computing Limited,"3,256.00"
Manchester City Council,Childrens & Education Services,Third party payments to other Local Authorities,14-Jul-22,5105824736,Vernon Park Primary School,"3,256.00"
Manchester City Council,Childrens & Education Services,Third party payments to other Local Authorities,11-Jul-22,5105824025,Moorlands Junior School,"3,256.00"
Manchester City Council,Manchester Leisure,Special Event,29-Jul-22,1907809831,Redacted Personal Information,"3,250.00"
Manchester City Council,Adult Social Care,"Consumable items eg Toilet rolls, soap etc",08-Jul-22,1907812753,MILTON MANCHESTER HOTE,"3,242.00"
Manchester City Council,Childrens & Education Services,Professional fees,06-Jul-22,5105823464,Waddington & Son Solicitors,"3,236.68"
Manchester City Council,Housing Revenue Account,Council Dwelling Adaptations,21-Jul-22,5105825701,Rothwell Plumbing Services Ltd,"3,233.95"
Manchester City Council,Adult Social Care,Legal Fees,29-Jul-22,1907834233,Liberata,"3,230.00"
Manchester City Council,Childrens & Education Services,Payments for services,13-Jul-22,5105824417,Keys PCE Limited,"3,230.00"
Manchester City Council,Childrens & Education Services,Transport Coach Hire,20-Jul-22,5105824370,Britannia Minibuses Ltd,"3,230.00"
Manchester City Council,Childrens & Education Services,Payments for services,13-Jul-22,5105824418,Keys PCE Limited,"3,222.40"
Manchester City Council,Childrens & Education Services,Transport Coach Hire,26-Jul-22,5105826430,Redacted Personal Information,"3,222.00"
Manchester City Council,Adult Social Care,Professional fees,26-Jul-22,5105826330,UNIQUE SPECIALIST SERVICES,"3,213.00"
Manchester City Council,Manchester Leisure,I T Provision,19-Jul-22,5105825233,BT PLC,"3,211.61"
Manchester City Council,Housing General Fund,Building Works,19-Jul-22,1907822664,Stannah Lift Services Ltd,"3,211.00"
Manchester City Council,Adult Social Care,Rents,21-Jul-22,5105825736,Great Places Housing Association,"3,194.21"
Manchester City Council,Adult Social Care,"Consumable items eg Toilet rolls, soap etc",08-Jul-22,1907813352,HOLIDAY INN P CARD ONLY,"3,191.00"
Manchester City Council,Manchester Leisure,Gas,28-Jul-22,1907833039,Corona Energy Ltd,"3,184.67"
Manchester City Council,Chief Executives,Professional fees,18-Jul-22,5105824947,Weightmans LLP Solicitors,"3,170.84"
Manchester City Council,Regeneration Finance,Rents,21-Jul-22,1907818955,Savills Commercial Ltd,"3,169.42"
Manchester City Council,Adult Social Care,Rents,18-Jul-22,1907822617,Redacted Personal Information,"3,169.00"
Manchester City Council,Childrens & Education Services,Payments for services,29-Jul-22,5105827019,Keys PCE Limited,"3,164.10"
Manchester City Council,Housing Revenue Account,Council Dwelling Adaptations,29-Jul-22,5105826111,Rexel UK Ltd,"3,164.00"
Manchester City Council,Housing Revenue Account,Council Dwelling Adaptations,22-Jul-22,5105825885,Pts Plumbing Trade Supplies,"3,160.90"
Manchester City Council,Adult Social Care,Bed & Breakfast Acc,01-Jul-22,5105823050,Molesworth Hotel,"3,160.00"
Manchester City Council,Adult Social Care,Supporting People Payments,13-Jul-22,5105824457,Child Action Northwest,"3,152.45"
Manchester City Council,Childrens & Education Services,Payments for services,29-Jul-22,5105827031,Keys PCE Limited,"3,150.00"
Manchester City Council,Adult Social Care,Personal needs of client,29-Jul-22,5105825718,James Leckey Design Ltd,"3,146.00"
Manchester City Council,Manchester Leisure,Gas,28-Jul-22,1907833053,Corona Energy Ltd,"3,145.22"
Manchester City Council,Childrens & Education Services,Payments for services,19-Jul-22,5105825112,Fairfield Care Ltd,"3,144.06"
Manchester City Council,Regeneration Finance,Gas,28-Jul-22,1907833092,Corona Energy Ltd,"3,141.73"
Manchester City Council,Childrens & Education Services,Transport Coach Hire,21-Jul-22,5105825261,RK Travel Ltd,"3,140.00"
Manchester City Council,Adult Social Care,Equipment,19-Jul-22,5105825131,Morris & Alexander Ltd,"3,134.20"
Manchester City Council,Chief Executives,Works and associated costs for Land and Buildings,25-Jul-22,5105826262,DWF LLP,"3,132.00"
Manchester City Council,Environment and Operations,Construction Works,29-Jul-22,5105823238,Survey Operations Limited,"3,125.00"
Manchester City Council,Chief Executives,Payments to Sub-Contractors,11-Jul-22,5105823940,Redacted Personal Information,"3,123.95"
Manchester City Council,Adult Social Care,Equipment,19-Jul-22,5105825311,Invacare Limited,"3,120.00"
Manchester City Council,Adult Social Care,Equipment,29-Jul-22,5105825163,Invacare Limited,"3,120.00"
Manchester City Council,Childrens & Education Services,Training and Development,19-Jul-22,1907822802,Safe and Together Institute,"3,120.00"
Manchester City Council,Childrens & Education Services,Training and Development,29-Jul-22,1907834223,Safe and Together Institute,"3,120.00"
Manchester City Council,Chief Executives,Subsistence and Conference Expenses,14-Jul-22,5105824535,EMAP Publishing Limited,"3,100.00"
Manchester City Council,Adult Social Care,"Consumable items eg Toilet rolls, soap etc",08-Jul-22,1907813699,PP*SHAREDHABIT,"3,096.44"
Manchester City Council,Housing Revenue Account,Council Dwelling Adaptations,15-Jul-22,5105824917,Pts Plumbing Trade Supplies,"3,092.55"
Manchester City Council,Chief Executives,Catering,19-Jul-22,5105824526,Manchester Central,"3,088.20"
Manchester City Council,Environment and Operations,Construction Works,27-Jul-22,5105826245,N D Oliver & Co Ltd,"3,075.00"
Manchester City Council,Adult Social Care,Rents,06-Jul-22,5105823481,Johnnie Johnson Housing,"3,071.08"
Manchester City Council,Adult Social Care,Rents,06-Jul-22,5105823482,Johnnie Johnson Housing,"3,071.08"
Manchester City Council,Manchester Leisure,Water - Unmetered,21-Jul-22,1907825175,Anglian Water Business (National),"3,070.65"
Manchester City Council,Regeneration Finance,Water - Unmetered,21-Jul-22,1907825240,Anglian Water Business (National),"3,070.65"
Manchester City Council,Regeneration Finance,Water - Unmetered,21-Jul-22,1907825248,Anglian Water Business (National),"3,070.65"
Manchester City Council,Regeneration Finance,Water - Unmetered,21-Jul-22,1907825237,Anglian Water Business (National),"3,070.65"
Manchester City Council,Regeneration Finance,Water - Unmetered,21-Jul-22,1907825234,Anglian Water Business (National),"3,070.65"
Manchester City Council,Adult Social Care,Third party payments to Health Authority,20-Jul-22,1907819111,Northern Care Alliance NHS FT,"3,070.35"
Manchester City Council,Corporate Services,Works and associated costs for Land and Buildings,25-Jul-22,5105824986,Ameresco Limited,"3,069.57"
Manchester City Council,Chief Executives,Postage,05-Jul-22,5105823338,Royal Mail Group Plc,"3,050.00"
Manchester City Council,Adult Social Care,Bed & Breakfast Acc,18-Jul-22,5105824935,Redacted Personal Information,"3,045.00"
Manchester City Council,Adult Social Care,Rents,06-Jul-22,5105823479,Johnnie Johnson Housing,"3,044.53"
Manchester City Council,Adult Social Care,Rents,06-Jul-22,5105823480,Johnnie Johnson Housing,"3,044.53"
Manchester City Council,Adult Social Care,"Consumable items eg Toilet rolls, soap etc",08-Jul-22,1907812564,STAYCITY,"3,038.00"
Manchester City Council,Adult Social Care,"Consumable items eg Toilet rolls, soap etc",08-Jul-22,1907812478,STAYCITY MANCHESTER LI,"3,036.00"
Manchester City Council,Adult Social Care,Equipment,19-Jul-22,5105825130,Morris & Alexander Ltd,"3,033.60"
Manchester City Council,Housing Revenue Account,Council Dwelling Adaptations,14-Jul-22,5105824739,Rexel UK Ltd,"3,032.00"
Manchester City Council,Adult Social Care,Personal needs of client,13-Jul-22,5105824055,Baffin Technology Systems Ltd,"3,027.00"
Manchester City Council,Childrens & Education Services,Payments for services,18-Jul-22,5105825012,H.G. Care Services Ltd,"3,024.00"
Manchester City Council,Chief Executives,Legal Fees,20-Jul-22,1907824769,Liberata,"3,023.00"
Manchester City Council,Manchester Leisure,Professional fees,25-Jul-22,5105826011,Experian Limited,"3,018.05"
Manchester City Council,Adult Social Care,Personal needs of client,13-Jul-22,5105824466,Hoist & Shower Chair Company,"3,015.75"
Manchester City Council,Adult Social Care,Personal needs of client,14-Jul-22,5105824605,Hoist & Shower Chair Company,"3,015.75"
Manchester City Council,Adult Social Care,Grant and subscriptions awarded,19-Jul-22,5105825154,The Mustard Tree,"3,011.75"
Manchester City Council,Manchester Leisure,Agency staff provision,25-Jul-22,5105826265,Gatenby Sanderson,"3,000.00"
Manchester City Council,Childrens & Education Services,Subsistence and Conference Expenses,21-Jul-22,5105825599,One Education Ltd,"3,000.00"
Manchester City Council,Regeneration Finance,Legal Fees,13-Jul-22,1907818044,Gunner Cooke LLP,"3,000.00"
Manchester City Council,Adult Social Care,Grant and subscriptions awarded,14-Jul-22,5105823684,Street Support Network Ltd,"3,000.00"
Manchester City Council,Chief Executives,Advertising,12-Jul-22,5105824188,Fonemedia Limited,"3,000.00"
Manchester City Council,Chief Executives,Advertising,12-Jul-22,5105824189,Fonemedia Limited,"3,000.00"
Manchester City Council,Manchester Leisure,Library Materials Acquisition,06-Jul-22,1907798055,Stories of Care,"3,000.00"
Manchester City Council,Adult Social Care,"Consumable items eg Toilet rolls, soap etc",08-Jul-22,1907812452,JOTS CONSULTANCY LTD,"3,000.00"
Manchester City Council,Adult Social Care,"Consumable items eg Toilet rolls, soap etc",08-Jul-22,1907813230,JOTS CONSULTANCY LTD,"3,000.00"
Manchester City Council,Adult Social Care,"Consumable items eg Toilet rolls, soap etc",08-Jul-22,1907813669,JOTS CONSULTANCY LTD,"3,000.00"
Manchester City Council,Corporate Services,Legal Fees,08-Jul-22,1907813814,HMCTS BOLTON082,"3,000.00"
Manchester City Council,Regeneration Finance,Gas,28-Jul-22,1907833224,Corona Energy Ltd,"2,996.83"
Manchester City Council,Childrens & Education Services,Grant Payments,13-Jul-22,5105824579,Catch 22 Charity Limited,"2,995.00"
Manchester City Council,Manchester Leisure,Professional fees,14-Jul-22,5105824616,Redacted Personal Information,"2,991.98"
Manchester City Council,Corporate Services,Works and associated costs for Land and Buildings,29-Jul-22,5105825608,Ameresco Limited,"2,989.51"
Manchester City Council,Chief Executives,Examination Fees,29-Jul-22,5105827024,ROAR Forensics Ltd,"2,987.75"
Manchester City Council,Regeneration Finance,Gas,28-Jul-22,1907832919,Corona Energy Ltd,"2,983.28"
Manchester City Council,Adult Social Care,Payments for services,12-Jul-22,5105824100,FoodSync CIC,"2,975.00"
Manchester City Council,Corporate Services,Works and associated costs for Land and Buildings,11-Jul-22,5105823796,Ramboll UK Limited,"2,972.00"
Manchester City Council,Adult Social Care,"Consumable items eg Toilet rolls, soap etc",08-Jul-22,1907813067,NOVUM MANAGEMENT GMBH,"2,972.00"
Manchester City Council,Highways Services,Electricity,21-Jul-22,1907825693,Npower,"2,970.29"
Manchester City Council,Childrens & Education Services,Transport Coach Hire,29-Jul-22,5105824017,Redacted Personal Information,"2,967.00"
Manchester City Council,Housing General Fund,Building Works,06-Jul-22,1907798211,Stannah Lift Services Ltd,"2,962.00"
Manchester City Council,Regeneration Finance,Gas,28-Jul-22,1907832738,Corona Energy Ltd,"2,960.82"
Manchester City Council,Regeneration Finance,Professional fees,11-Jul-22,5105823490,Time-Out Cleaning Services,"2,959.27"
Manchester City Council,Manchester Leisure,Works and associated costs for Land and Buildings,26-Jul-22,5105826250,Greenwich Leisure Limited,"2,952.00"
Manchester City Council,Environment and Operations,Construction Works,29-Jul-22,5105825808,Wilde Consultants Ltd,"2,944.58"
Manchester City Council,Corporate Services,Agency staff provision,11-Jul-22,5105823997,Michael Page International,"2,941.02"
Manchester City Council,Corporate Services,Works and associated costs for Land and Buildings,11-Jul-22,5105823798,Ramboll UK Limited,"2,935.00"
Manchester City Council,Highways Services,Professional fees,18-Jul-22,5105824033,Pell Frischmann Consultants Ltd,"2,932.50"
Manchester City Council,Housing Revenue Account,Council Dwelling Adaptations,13-Jul-22,5105824382,Pts Plumbing Trade Supplies,"2,931.45"
Manchester City Council,Adult Social Care,Funeral and coroner related services,20-Jul-22,5105825543,Greater Manchester Funeral Service,"2,927.00"
Manchester City Council,Corporate Services,Professional fees,29-Jul-22,5105826863,EQUANS Services Limited,"2,920.84"
Manchester City Council,Regeneration Finance,Taxi Vehicle Materia,14-Jul-22,5105824632,VIP-System Ltd,"2,918.44"
Manchester City Council,Regeneration Finance,I T Provision,29-Jul-22,5105825801,Vitalize Consultancy,"2,918.00"
Manchester City Council,Highways Services,Building Materials for direct delivery,29-Jul-22,5105823425,Marshalls Mono Ltd,"2,910.00"
Manchester City Council,Childrens & Education Services,Legal Fees,11-Jul-22,5105823954,Redacted Personal Information,"2,910.00"
Manchester City Council,Regeneration Finance,Electricity,21-Jul-22,1907826065,Scottish & Southern Energy Plc,"2,908.17"
Manchester City Council,Chief Executives,Legal Fees,08-Jul-22,1907812746,WWW.ICO.ORG.UK,"2,900.00"
Manchester City Council,Childrens & Education Services,Electricity,28-Jul-22,1907832572,Scottish & Southern Energy Plc,"2,895.40"
Manchester City Council,Manchester Leisure,Refuse Collection,20-Jul-22,5105825329,Ramora Ltd,"2,895.00"
Manchester City Council,Chief Executives,Professional fees,14-Jul-22,5105824624,Weightmans LLP Solicitors,"2,881.25"
Manchester City Council,Chief Executives,Advertising,19-Jul-22,5105825295,News UK,"2,880.00"
Manchester City Council,Adult Social Care,"Consumable items eg Toilet rolls, soap etc",08-Jul-22,1907813223,Premier Inn P CARD ONLY,"2,880.00"
Manchester City Council,Childrens & Education Services,Transport Coach Hire,29-Jul-22,5105824657,PDR Travel Ltd,"2,880.00"
Manchester City Council,Chief Executives,Funeral and coroner related services,12-Jul-22,5105824227,Redacted Personal Information,"2,876.90"
Manchester City Council,Adult Social Care,Supporting People Payments,29-Jul-22,5105824434,Jigsaw Homes North,"2,875.00"
Manchester City Council,Regeneration Finance,Gas,28-Jul-22,1907832986,Corona Energy Ltd,"2,872.95"
Manchester City Council,Adult Social Care,"Consumable items eg Toilet rolls, soap etc",08-Jul-22,1907812803,HOTEL AT BOOKING.COM,"2,871.00"
Manchester City Council,Regeneration Finance,Water - Metered,21-Jul-22,1907825265,Anglian Water Business (National),"2,867.60"
Manchester City Council,Adult Social Care,Rents,06-Jul-22,5105823474,Johnnie Johnson Housing,"2,857.54"
Manchester City Council,Adult Social Care,Rents,06-Jul-22,5105823475,Johnnie Johnson Housing,"2,857.54"
Manchester City Council,Adult Social Care,Rents,06-Jul-22,5105823478,Johnnie Johnson Housing,"2,857.54"
Manchester City Council,Housing General Fund,Building Works,19-Jul-22,1907822663,Stannah Lift Services Ltd,"2,852.00"
Manchester City Council,Manchester Leisure,Goods purchased for resale in Council outlets,27-Jul-22,5105826554,Stone Marketing Ltd,"2,847.98"
Manchester City Council,Adult Social Care,Third party payments to Health Authority,20-Jul-22,1907819112,Northern Care Alliance NHS FT,"2,829.71"
Manchester City Council,Regeneration Finance,Electricity,21-Jul-22,1907825710,Npower,"2,828.66"
Manchester City Council,Childrens & Education Services,Supporting People Payments,13-Jul-22,5105824454,Child Action Northwest,"2,827.39"
Manchester City Council,Manchester Leisure,Professional fees,27-Jul-22,5105826595,Redacted Personal Information,"2,816.30"
Manchester City Council,Regeneration Finance,Taxi Vehicle Materia,22-Jul-22,5105822996,New Auto Ltd T/A Mogo (Uk),"2,812.90"
Manchester City Council,Chief Executives,Printing,13-Jul-22,5105824431,Geiger Limited,"2,805.00"
Manchester City Council,Regeneration Finance,Training and Development,21-Jul-22,5105825587,CIPFA Business Ltd,"2,800.00"
Manchester City Council,Adult Social Care,Third party payments relating to Voluntary Organisations,29-Jul-22,5105826960,Coffee4Craig Ltd,"2,797.17"
Manchester City Council,Manchester Leisure,Equipment,29-Jul-22,5105826837,Lion Containers Limited,"2,795.00"
Manchester City Council,Manchester Leisure,Electricity,21-Jul-22,1907825770,Npower,"2,792.22"
Manchester City Council,Manchester Leisure,Electricity,21-Jul-22,1907825735,Npower,"2,783.44"
Manchester City Council,Manchester Leisure,Equipment,19-Jul-22,5105825291,Synectics Security Limited,"2,782.40"
Manchester City Council,Chief Executives,Payments to Sub-Contractors,22-Jul-22,5105825453,Redacted Personal Information,"2,776.43"
Manchester City Council,Adult Social Care,Third party payments to Health Authority,20-Jul-22,1907819106,Northern Care Alliance NHS FT,"2,771.00"
Manchester City Council,Regeneration Finance,Electricity,28-Jul-22,1907832676,Scottish & Southern Energy Plc,"2,767.02"
Manchester City Council,Highways Services,Purchase of stores for re-distribution,27-Jul-22,5105826556,Grafton Merchanting GB,"2,760.00"
Manchester City Council,Chief Executives,Advertising,01-Jul-22,5105823042,Reach Publishing Services Ltd,"2,753.42"
Manchester City Council,Adult Social Care,"Consumable items eg Toilet rolls, soap etc",08-Jul-22,1907813200,TRAVELODGE P CARD ONLY,"2,735.33"
Manchester City Council,Adult Social Care,Equipment,19-Jul-22,5105825105,Invacare Limited,"2,730.00"
Manchester City Council,Adult Social Care,"Consumable items eg Toilet rolls, soap etc",08-Jul-22,1907813279,HOTEL AT BOOKING.COM,"2,730.00"
Manchester City Council,Regeneration Finance,Electricity,21-Jul-22,1907825721,Npower,"2,723.64"
Manchester City Council,Hospitality + Trading Services,Vehicle Hire Costs,11-Jul-22,5105823876,Dawsongroup Sweepers,"2,720.82"
Manchester City Council,Hospitality + Trading Services,Vehicle Hire Costs,27-Jul-22,5105825248,Dawsongroup Sweepers,"2,720.82"
Manchester City Council,Hospitality + Trading Services,Vehicle Hire Costs,27-Jul-22,5105826535,Dawsongroup Sweepers,"2,720.82"
Manchester City Council,Childrens & Education Services,Third party payments to other Local Authorities,21-Jul-22,5105825785,Pennine Care In Patient Services,"2,718.75"
Manchester City Council,Manchester Leisure,"Consumable items eg Toilet rolls, soap etc",08-Jul-22,1907812750,COBWEB SOLUTIONS LIMIT,"2,702.83"
Manchester City Council,Environment and Operations,Construction Works,28-Jul-22,5105824867,Civic Engineers,"2,700.00"
Manchester City Council,Highways Services,Professional fees,15-Jul-22,5105824664,Waterman Aspen Ltd,"2,700.00"
Manchester City Council,Chief Executives,Grant Payments,05-Jul-22,1907796401,GETTYIMAGES.COM,"2,700.00"
Manchester City Council,Chief Executives,Payments to Sub-Contractors,11-Jul-22,5105823923,Redacted Personal Information,"2,699.16"
Manchester City Council,Environment and Operations,Construction Works,29-Jul-22,5105823386,Balfour Beatty Living Places Ltd,"2,697.25"
Manchester City Council,Highways Services,Electricity,21-Jul-22,1907825739,Npower,"2,697.02"
Manchester City Council,Manchester Leisure,Equipment,05-Jul-22,1907796163,SABRE EVENT MERCHANDISE L,"2,693.20"
Manchester City Council,Manchester Leisure,Grounds Maintenance,19-Jul-22,5105825092,Crowden Road Allotments,"2,693.08"
Manchester City Council,Housing General Fund,Building Works,21-Jul-22,1907822668,Stannah Lift Services Ltd,"2,685.00"
Manchester City Council,Childrens & Education Services,Transport Coach Hire,14-Jul-22,5105823329,Home to School Travel Ltd,"2,682.00"
Manchester City Council,Housing Revenue Account,Peaks & Plains Mgmt,11-Jul-22,5105823582,Cheshire Peaks & Plains,"2,671.50"
Manchester City Council,Chief Executives,Works and associated costs for Land and Buildings,05-Jul-22,5105823291,Browne Jacobson,"2,669.50"
Manchester City Council,Childrens & Education Services,Professional fees,26-Jul-22,5105826471,Iron Mountain,"2,668.83"
Manchester City Council,Corporate Services,LRSG Grant pay,04-Jul-22,1907794282,Redacted Personal Information,"2,667.00"
Manchester City Council,Childrens & Education Services,Payments for services,21-Jul-22,5105825714,Venture Arts Ltd,"2,666.85"
Manchester City Council,Chief Executives,Professional fees,21-Jul-22,5105825654,Russell & Russell Solicitors LLP,"2,664.90"
Manchester City Council,Adult Social Care,Third party payments to Health Authority,20-Jul-22,1907819078,Northern Care Alliance NHS FT,"2,664.32"
Manchester City Council,Highways Services,Payments to Sub-Contractors,29-Jul-22,5105824355,SWARCO Traffic Ltd,"2,662.38"
Manchester City Council,Adult Social Care,Water - Metered,21-Jul-22,1907825430,Anglian Water Business (National),"2,658.21"
Manchester City Council,Regeneration Finance,Gas,28-Jul-22,1907832987,Corona Energy Ltd,"2,656.07"
Manchester City Council,Housing Revenue Account,Council Dwelling Adaptations,06-Jul-22,5105823450,Pts Plumbing Trade Supplies,"2,649.48"
Manchester City Council,Childrens & Education Services,Furniture,21-Jul-22,5105825911,Eps Supplies Ltd,"2,646.61"
Manchester City Council,Highways Services,Legal Fees,01-Jul-22,1907793852,Simpson Millar LLP,"2,646.00"
Manchester City Council,Highways Services,Legal Fees,04-Jul-22,1907794042,Simpson Millar LLP,"2,646.00"
Manchester City Council,Environment and Operations,Construction Works,19-Jul-22,5105825378,Wilde Consultants Ltd,"2,640.00"
Manchester City Council,Adult Social Care,Supporting People Payments,13-Jul-22,5105824458,Child Action Northwest,"2,631.43"
Manchester City Council,Highways Services,Electricity,21-Jul-22,1907825737,Npower,"2,629.72"
Manchester City Council,Childrens & Education Services,Supporting People Payments,13-Jul-22,5105824458,Child Action Northwest,"2,622.59"
Manchester City Council,Adult Social Care,Equipment,19-Jul-22,5105825048,Drive Devilbiss Healthcare Ltd,"2,622.35"
Manchester City Council,Adult Social Care,Equipment,19-Jul-22,5105825054,Drive Devilbiss Healthcare Ltd,"2,622.35"
Manchester City Council,Regeneration Finance,Security,13-Jul-22,5105824361,Sitewatch Fire & Surveillance Ltd,"2,620.00"
Manchester City Council,Regeneration Finance,Travel,08-Jul-22,5105823795,Purcell Architecture Limited,"2,616.53"
Manchester City Council,Hospitality + Trading Services,Electricity,21-Jul-22,1907825723,Npower,"2,611.49"
Manchester City Council,Regeneration Finance,Payments to Sub-Contractors,22-Jul-22,5105825752,G4S Secure Solutions (UK) Ltd,"2,605.73"
Manchester City Council,Childrens & Education Services,Third party payments to other Local Authorities,12-Jul-22,5105824254,Kings Road Primary School,"2,605.00"
Manchester City Council,Regeneration Finance,Grant Payments,26-Jul-22,1907793767,Clarion Housing Group Ltd,"2,600.00"
Manchester City Council,Adult Social Care,Personal needs of client,20-Jul-22,5105825474,Careflex Limited,"2,599.20"
Manchester City Council,Regeneration Finance,Electricity,21-Jul-22,1907826009,Scottish & Southern Energy Plc,"2,585.65"
Manchester City Council,Manchester Leisure,Gas,28-Jul-22,1907833065,Corona Energy Ltd,"2,580.82"
Manchester City Council,Adult Social Care,"Consumable items eg Toilet rolls, soap etc",08-Jul-22,1907813311,HOTEL AT BOOKING.COM,"2,580.00"
Manchester City Council,Regeneration Finance,Payments to Sub-Contractors,22-Jul-22,5105825601,G4S Secure Solutions (UK) Ltd,"2,571.31"
Manchester City Council,Hospitality + Trading Services,Electricity,21-Jul-22,1907825678,Npower,"2,567.74"
Manchester City Council,Adult Social Care,Rents,12-Jul-22,5105824156,AJD Property Limited,"2,567.02"
Manchester City Council,Adult Social Care,Payments for services,27-Jul-22,5105826542,Turning Point,"2,563.00"
Manchester City Council,Adult Social Care,Gas,28-Jul-22,1907832878,Corona Energy Ltd,"2,558.79"
Manchester City Council,Chief Executives,Professional fees,21-Jul-22,5105825657,Russell & Russell Solicitors LLP,"2,557.50"
Manchester City Council,Chief Executives,Vehicle Plant Furniture and Equipment,15-Jul-22,5105824133,Insight Direct (Uk) Ltd,"2,553.81"
Manchester City Council,Chief Executives,Vehicle Plant Furniture and Equipment,29-Jul-22,5105824645,Insight Direct (Uk) Ltd,"2,553.81"
Manchester City Council,Corporate Services,Gym Membership,25-Jul-22,1907827017,Greenwich Leisure Limited,"2,553.60"
Manchester City Council,Childrens & Education Services,Payments for services,11-Jul-22,5105823702,Fairfield Care Ltd,"2,550.36"
Manchester City Council,Adult Social Care,"Consumable items eg Toilet rolls, soap etc",08-Jul-22,1907813058,HOTEL AT BOOKING.COM,"2,550.32"
Manchester City Council,Childrens & Education Services,Payments for services,29-Jul-22,5105827032,Keys PCE Limited,"2,550.00"
Manchester City Council,Highways Services,Professional fees,29-Jul-22,5105827124,Pell Frischmann Consultants Ltd,"2,550.00"
Manchester City Council,Chief Executives,ICT Sup & Maintnance,28-Jul-22,5105825751,8x8 UK Ltd,"2,550.00"
Manchester City Council,Childrens & Education Services,Payments for services,21-Jul-22,5105825713,Venture Arts Ltd,"2,547.50"
Manchester City Council,Chief Executives,Postage,20-Jul-22,5105824568,Whistl North Ltd,"2,544.57"
Manchester City Council,Childrens & Education Services,Payments for services,29-Jul-22,5105827033,Keys PCE Limited,"2,544.00"
Manchester City Council,Childrens & Education Services,Professional fees,21-Jul-22,5105825656,Russell & Russell Solicitors LLP,"2,543.30"
Manchester City Council,Manchester Leisure,Gas,28-Jul-22,1907832809,Corona Energy Ltd,"2,542.10"
Manchester City Council,Hospitality + Trading Services,Professional fees,08-Jul-22,5105823512,Jacobs UK Ltd,"2,529.58"
Manchester City Council,Childrens & Education Services,Payments for services,13-Jul-22,5105824425,The Together Trust,"2,525.67"
Manchester City Council,Regeneration Finance,Stationery,26-Jul-22,5105826317,Digital ID Ltd,"2,521.99"
Manchester City Council,Childrens & Education Services,Professional fees,14-Jul-22,5105824639,Afruca,"2,520.00"
Manchester City Council,Childrens & Education Services,Personal needs of client,29-Jul-22,5105826975,Afruca,"2,520.00"
Manchester City Council,Adult Social Care,Equipment,29-Jul-22,5105825365,Drive Devilbiss Healthcare Ltd,"2,520.00"
Manchester City Council,Corporate Services,I T Provision,13-Jul-22,5105824359,Qnomy UK Ltd,"2,520.00"
Manchester City Council,Regeneration Finance,Professional fees,07-Jul-22,5105823646,P Mcguinness & Co Ltd,"2,516.80"
Manchester City Council,Childrens & Education Services,Expenditure re Internal Trading Ordered Externally,21-Jul-22,5105825807,The Monastery Manchester Ltd,"2,510.42"
Manchester City Council,Corporate Services,Security,13-Jul-22,5105824451,Experian Limited,"2,509.60"
Manchester City Council,Manchester Leisure,Reuse credits,21-Jul-22,5105824321,Biffa Municipal Limited,"2,500.20"
Manchester City Council,Environment and Operations,Construction Works,28-Jul-22,5105826587,Kings Chambers,"2,500.00"
Manchester City Council,Manchester Leisure,Grant and subscriptions awarded,29-Jul-22,5105826919,Gorton Events Committee,"2,500.00"
Manchester City Council,Chief Executives,Works and associated costs for Land and Buildings,25-Jul-22,5105826179,Ryder Architecture Ltd,"2,500.00"
Manchester City Council,Chief Executives,Advertising,21-Jul-22,5105825796,Fonemedia Limited,"2,500.00"
Manchester City Council,Adult Social Care,Third party payments relating to Voluntary Organisations,19-Jul-22,5105825044,Lives on Track,"2,500.00"
Manchester City Council,Manchester Leisure,Advertising,20-Jul-22,5105825384,Royal Flush Marketing Ltd,"2,500.00"
Manchester City Council,Corporate Services,Legal Fees,21-Jul-22,1907824806,Driscoll Kingston Solicitors,"2,500.00"
Manchester City Council,Chief Executives,Legal Fees,22-Jul-22,1907826538,Redacted Personal Information,"2,500.00"
Manchester City Council,Corporate Services,Surveys Fees other,01-Jul-22,5105823045,Life Environmental Services,"2,499.60"
Manchester City Council,Regeneration Finance,Training and Development,20-Jul-22,5105825428,The Skills Network Limited,"2,495.00"
Manchester City Council,Hospitality + Trading Services,Hire of Machinery,05-Jul-22,5105823438,H & C Plant Hire Ltd,"2,486.00"
Manchester City Council,Regeneration Finance,Electricity,28-Jul-22,1907832680,Scottish & Southern Energy Plc,"2,482.90"
Manchester City Council,Corporate Services,Works and associated costs for Land and Buildings,08-Jul-22,5105823587,BCL,"2,480.00"
Manchester City Council,Childrens & Education Services,Transport Coach Hire,25-Jul-22,5105826018,MCR Blackcab Ltd,"2,479.81"
Manchester City Council,Childrens & Education Services,Professional fees,04-Jul-22,5105823116,Waddington & Son Solicitors,"2,473.20"
Manchester City Council,Housing Revenue Account,Council Dwelling Adaptations,15-Jul-22,5105824911,Pts Plumbing Trade Supplies,"2,472.10"
Manchester City Council,Hospitality + Trading Services,Equipment,08-Jul-22,1907796284,BARLOW TRAILERS LTD,"2,472.00"
Manchester City Council,Hospitality + Trading Services,Equipment,11-Jul-22,1907813917,BARLOW TRAILERS LTD,"2,472.00"
Manchester City Council,Adult Social Care,"Consumable items eg Toilet rolls, soap etc",08-Jul-22,1907812801,HOTEL AT BOOKING.COM,"2,471.70"
Manchester City Council,Manchester Leisure,Refuse Collection,29-Jul-22,5105826513,GTS Steam Cleaners,"2,469.00"
Manchester City Council,Adult Social Care,Bed & Breakfast Acc,07-Jul-22,1907780219,Voice Connect Ltd,"2,464.32"
Manchester City Council,Childrens & Education Services,Transport Coach Hire,29-Jul-22,5105827082,Redacted Personal Information,"2,451.00"
Manchester City Council,Manchester Leisure,Professional fees,26-Jul-22,5105826252,North West Regional Youth Work Unit,"2,450.00"
Manchester City Council,Hospitality + Trading Services,Security,21-Jul-22,5105825375,Showsec International Ltd,"2,445.72"
Manchester City Council,Highways Services,Payments to Sub-Contractors,18-Jul-22,5105824502,Rosgal Ltd,"2,445.25"
Manchester City Council,Environment and Operations,Construction Works,22-Jul-22,5105825369,Wilde Consultants Ltd,"2,437.63"
Manchester City Council,Childrens & Education Services,Third party payments to other Local Authorities,21-Jul-22,5105825784,Pennine Care In Patient Services,"2,437.50"
Manchester City Council,Chief Executives,Professional fees,21-Jul-22,5105825660,Russell & Russell Solicitors LLP,"2,422.50"
Manchester City Council,Childrens & Education Services,Storage Costs,12-Jul-22,5105824097,Restore PLC,"2,420.75"
Manchester City Council,Adult Social Care,Electricity,21-Jul-22,1907826068,Scottish & Southern Energy Plc,"2,419.87"
Manchester City Council,Adult Social Care,Rents,12-Jul-22,5105824157,AJD Property Limited,"2,417.73"
Manchester City Council,Highways Services,Purchase of stores for re-distribution,11-Jul-22,5105823906,Fabrikat (Nottingham) Limited,"2,417.60"
Manchester City Council,Adult Social Care,Rents,06-Jul-22,5105823483,Johnnie Johnson Housing,"2,406.57"
Manchester City Council,Adult Social Care,Rents,06-Jul-22,5105823484,Johnnie Johnson Housing,"2,406.57"
Manchester City Council,Corporate Services,Works and associated costs for Land and Buildings,13-Jul-22,5105824371,GVA Grimley Ltd,"2,400.00"
Manchester City Council,Corporate Services,Works and associated costs for Land and Buildings,29-Jul-22,5105823956,Groundwork & Leisure Services Ltd,"2,400.00"
Manchester City Council,Childrens & Education Services,Professional fees,13-Jul-22,5105824536,KD Safeguarding Ltd,"2,400.00"
Manchester City Council,Childrens & Education Services,Personal needs of client,05-Jul-22,1907796266,WWW.LUXINN.CO.UK,"2,396.45"
Manchester City Council,Housing Revenue Account,Council Dwelling Adaptations,15-Jul-22,5105824682,Stannah Lift Services Ltd,"2,392.00"
Manchester City Council,Adult Social Care,Contract Cleaning External,07-Jul-22,5105823685,YD Healthcare Ltd,"2,392.00"
Manchester City Council,Adult Social Care,"Consumable items eg Toilet rolls, soap etc",08-Jul-22,1907813467,NOVUM MANAGEMENT GMBH,"2,392.00"
Manchester City Council,Highways Services,Professional fees,29-Jul-22,5105827123,Pell Frischmann Consultants Ltd,"2,390.63"
Manchester City Council,Manchester Leisure,Gas,28-Jul-22,1907833061,Corona Energy Ltd,"2,389.81"
Manchester City Council,Childrens & Education Services,Professional fees,04-Jul-22,5105823115,Waddington & Son Solicitors,"2,385.50"
Manchester City Council,Manchester Leisure,Electricity,21-Jul-22,1907825726,Npower,"2,380.41"
Manchester City Council,Regeneration Finance,External repairs and maintenance for buildings,29-Jul-22,5105826326,Fairway Landscapes Ltd,"2,380.00"
Manchester City Council,Hospitality + Trading Services,Vehicle Repairs,13-Jul-22,5105824619,Manchester Van Hire Ltd,"2,379.76"
Manchester City Council,Adult Social Care,"Consumable items eg Toilet rolls, soap etc",08-Jul-22,1907812629,STAYCITY MANCHESTER LI,"2,379.00"
Manchester City Council,Manchester Leisure,Professional fees,05-Jul-22,5105823361,UPS Building & Maintenance Ltd,"2,371.86"
Manchester City Council,Adult Social Care,"Consumable items eg Toilet rolls, soap etc",08-Jul-22,1907812943,HOTEL AT BOOKING.COM,"2,367.75"
Manchester City Council,Childrens & Education Services,Transport Coach Hire,29-Jul-22,5105823671,School Transport Solutions,"2,367.00"
Manchester City Council,Housing General Fund,Building Works,19-Jul-22,1907822655,Stannah Lift Services Ltd,"2,358.00"
Manchester City Council,Childrens & Education Services,Transport Coach Hire,12-Jul-22,5105824115,East Sussex County Council,"2,355.30"
Manchester City Council,Highways Services,Payments to Sub-Contractors,19-Jul-22,5105825137,Rosgal Ltd,"2,340.00"
Manchester City Council,Chief Executives,Payments to Sub-Contractors,29-Jul-22,5105825941,Cosmic Europe Ltd,"2,340.00"
Manchester City Council,Childrens & Education Services,Transport Coach Hire,25-Jul-22,5105826275,Middleton Cars Ltd,"2,340.00"
Manchester City Council,Hospitality + Trading Services,Vehicle Hire Costs,11-Jul-22,5105823529,F.R.Sharrock Ltd,"2,338.60"
Manchester City Council,Chief Executives,Works and associated costs for Land and Buildings,29-Jul-22,5105826977,The Arch Company Properties Ltd,"2,333.33"
Manchester City Council,Chief Executives,Works and associated costs for Land and Buildings,29-Jul-22,5105826978,The Arch Company Properties Ltd,"2,333.33"
Manchester City Council,Childrens & Education Services,Third party payments to other Local Authorities,26-Jul-22,5105826380,Wolverley CE Secondary School,"2,333.00"
Manchester City Council,Chief Executives,Professional fees,04-Jul-22,1907794290,Field Court Chambers,"2,332.80"
Manchester City Council,Manchester Leisure,Grant and subscriptions awarded,04-Jul-22,5105823143,Aim4 Hope CIC,"2,324.00"
Manchester City Council,Childrens & Education Services,Professional fees,05-Jul-22,5105823259,Waddington & Son Solicitors,"2,312.50"
Manchester City Council,Adult Social Care,"Consumable items eg Toilet rolls, soap etc",08-Jul-22,1907813013,Britannia Hotels PCARD ONLY,"2,303.00"
Manchester City Council,Adult Social Care,"Consumable items eg Toilet rolls, soap etc",08-Jul-22,1907813222,TRAVELODGE P CARD ONLY,"2,298.77"
Manchester City Council,Regeneration Finance,Water - Metered,21-Jul-22,1907825382,Anglian Water Business (National),"2,297.33"
Manchester City Council,Regeneration Finance,External repairs and maintenance for buildings,22-Jul-22,5105824760,Assa Abloy Ltd T/A Traka,"2,295.10"
Manchester City Council,Manchester Leisure,Cleaning Equipment,07-Jul-22,5105823736,CPD Property Services,"2,295.00"
Manchester City Council,Adult Social Care,Third party payments relating to Voluntary Organisations,14-Jul-22,5105824503,Great Places Housing Association,"2,290.00"
Manchester City Council,Adult Social Care,Third party payments relating to Voluntary Organisations,14-Jul-22,5105824508,Great Places Housing Association,"2,290.00"
Manchester City Council,Adult Social Care,Third party payments relating to Voluntary Organisations,14-Jul-22,5105824512,Great Places Housing Association,"2,290.00"
Manchester City Council,Adult Social Care,Third party payments relating to Voluntary Organisations,22-Jul-22,5105825735,Great Places Housing Association,"2,290.00"
Manchester City Council,Childrens & Education Services,Internal Repairs and Maintenance for buildings,29-Jul-22,5105826537,Manchester School Services Limited,"2,289.10"
Manchester City Council,Housing Revenue Account,Council Dwelling Adaptations,20-Jul-22,5105825437,Pts Plumbing Trade Supplies,"2,284.87"
Manchester City Council,Chief Executives,Catering,25-Jul-22,5105826183,Manchester Art Gallery,"2,282.89"
Manchester City Council,Manchester Leisure,Gas,28-Jul-22,1907833031,Corona Energy Ltd,"2,282.36"
Manchester City Council,Childrens & Education Services,Third party payments to other Local Authorities,11-Jul-22,5105824026,Moorlands Junior School,"2,273.00"
Manchester City Council,Adult Social Care,"Consumable items eg Toilet rolls, soap etc",08-Jul-22,1907812766,S AND S SALES MCR LTD,"2,271.58"
Manchester City Council,Regeneration Finance,Professional fees,19-Jul-22,5105825231,arc4,"2,265.38"
Manchester City Council,Corporate Services,Security,29-Jul-22,5105825187,Taranto Systems Ltd,"2,261.60"
Manchester City Council,Adult Social Care,Supporting People Payments,13-Jul-22,5105824459,Child Action Northwest,"2,260.58"
Manchester City Council,Highways Services,Payments to Sub-Contractors,11-Jul-22,5105824193,Clearway Drainage Systems Ltd,"2,250.00"
Manchester City Council,Childrens & Education Services,Training and Development,13-Jul-22,5105824438,Association Of YOT Managers,"2,250.00"
Manchester City Council,Childrens & Education Services,Training and Development,13-Jul-22,5105824438,Association Of YOT Managers,"2,250.00"
Manchester City Council,Corporate Services,Legal Fees,21-Jul-22,1907824804,Driscoll Kingston Client Account,"2,250.00"
Manchester City Council,Childrens & Education Services,Professional fees,06-Jul-22,5105823471,Waddington & Son Solicitors,"2,243.75"
Manchester City Council,Corporate Services,Travel Season TLS,11-Jul-22,5105823236,Northern Trains Limited,"2,241.30"
Manchester City Council,Environment and Operations,Construction Works,27-Jul-22,5105826495,J.Hopkins (Contractors) Ltd.,"2,241.27"
Manchester City Council,Adult Social Care,"Consumable items eg Toilet rolls, soap etc",08-Jul-22,1907813363,WWW.IDEALLODGINGS.CO.U,"2,240.00"
Manchester City Council,Childrens & Education Services,Supporting People Payments,13-Jul-22,5105824459,Child Action Northwest,"2,238.46"
Manchester City Council,Adult Social Care,Supporting People Payments,13-Jul-22,5105824454,Child Action Northwest,"2,228.70"
Manchester City Council,Regeneration Finance,Electricity,28-Jul-22,1907832637,Scottish & Southern Energy Plc,"2,227.72"
Manchester City Council,Chief Executives,Professional fees,21-Jul-22,5105825678,Russell & Russell Solicitors LLP,"2,220.75"
Manchester City Council,Manchester Leisure,Gas,28-Jul-22,1907833060,Corona Energy Ltd,"2,220.18"
Manchester City Council,Regeneration Finance,Electricity,21-Jul-22,1907825955,Scottish & Southern Energy Plc,"2,217.78"
Manchester City Council,Chief Executives,Professional fees,04-Jul-22,5105823205,Waddington & Son Solicitors,"2,215.00"
Manchester City Council,Childrens & Education Services,Professional fees,06-Jul-22,5105823472,Waddington & Son Solicitors,"2,215.00"
Manchester City Council,Childrens & Education Services,Payments for services,25-Jul-22,5105826168,The Together Trust,"2,213.24"
Manchester City Council,Corporate Services,Security,29-Jul-22,5105823244,Taranto Systems Ltd,"2,211.20"
Manchester City Council,Childrens & Education Services,Transport Coach Hire,25-Jul-22,5105826247,Middleton Cars Ltd,"2,210.00"
Manchester City Council,Adult Social Care,"Consumable items eg Toilet rolls, soap etc",08-Jul-22,1907813196,HOTEL AT BOOKING.COM,"2,207.86"
Manchester City Council,Hospitality + Trading Services,External repairs and maintenance for buildings,25-Jul-22,5105826163,WMB (Installations) Ltd,"2,203.19"
Manchester City Council,Regeneration Finance,Electricity,21-Jul-22,1907825702,Npower,"2,202.70"
Manchester City Council,Chief Executives,ClothsUniformLaundry,11-Jul-22,5105824020,J Wippell & Co Ltd,"2,200.00"
Manchester City Council,Corporate Services,I T Provision,28-Jul-22,5105826759,Proactis Limited,"2,200.00"
Manchester City Council,Childrens & Education Services,Professional fees,21-Jul-22,5105825653,Russell & Russell Solicitors LLP,"2,197.50"
Manchester City Council,Environment and Operations,Construction Works,29-Jul-22,5105823385,Balfour Beatty Living Places Ltd,"2,197.18"
Manchester City Council,Housing Revenue Account,Council Dwelling Adaptations,14-Jul-22,5105824738,Rexel UK Ltd,"2,195.67"
Manchester City Council,Adult Social Care,"Consumable items eg Toilet rolls, soap etc",08-Jul-22,1907812852,HOTEL AT BOOKING.COM,"2,195.00"
Manchester City Council,Manchester Leisure,Gas,28-Jul-22,1907832955,Corona Energy Ltd,"2,192.73"
Manchester City Council,Manchester Leisure,Licences Purchase,26-Jul-22,5105826315,Trustmarque Solutions Ltd,"2,192.48"
Manchester City Council,Manchester Leisure,Licences Purchase,26-Jul-22,5105826316,Trustmarque Solutions Ltd,"2,192.48"
Manchester City Council,Regeneration Finance,Water - Metered,21-Jul-22,1907825460,Anglian Water Business (National),"2,190.98"
Manchester City Council,Manchester Leisure,Gas,28-Jul-22,1907833196,Corona Energy Ltd,"2,188.19"
Manchester City Council,Childrens & Education Services,Signers/Interpreters,22-Jul-22,5105825732,Language Line Ltd,"2,184.80"
Manchester City Council,Chief Executives,Professional fees,21-Jul-22,5105825664,Russell & Russell Solicitors LLP,"2,184.20"
Manchester City Council,Childrens & Education Services,Professional fees,18-Jul-22,5105824962,Forensic Testing Service Ltd,"2,172.60"
Manchester City Council,Manchester Leisure,Grant and subscriptions awarded,21-Jul-22,5105825728,Zion Arts Centre Ltd,"2,170.00"
Manchester City Council,Chief Executives,Works and associated costs for Land and Buildings,04-Jul-22,5105823206,Browne Jacobson,"2,169.00"
Manchester City Council,Regeneration Finance,Water - Metered,21-Jul-22,1907825490,Anglian Water Business (National),"2,168.72"
Manchester City Council,Manchester Leisure,Gas,28-Jul-22,1907833032,Corona Energy Ltd,"2,168.45"
Manchester City Council,Regeneration Finance,Electricity,21-Jul-22,1907825700,Npower,"2,161.81"
Manchester City Council,Childrens & Education Services,Transport Coach Hire,14-Jul-22,5105823618,Redacted Personal Information,"2,160.00"
Manchester City Council,Childrens & Education Services,Payments for services,07-Jul-22,5105823596,Jump Space Ltd,"2,154.96"
Manchester City Council,Adult Social Care,"Consumable items eg Toilet rolls, soap etc",08-Jul-22,1907813696,MILTON MANCHESTER HOTE,"2,153.00"
Manchester City Council,Chief Executives,Training and Development,12-Jul-22,5105824259,Act Now Training Ltd,"2,150.00"
Manchester City Council,Chief Executives,Training and Development,12-Jul-22,5105824260,Act Now Training Ltd,"2,150.00"
Manchester City Council,Manchester Leisure,Hire of Equipment,19-Jul-22,5105825081,dbnAudile Limited,"2,150.00"
Manchester City Council,Manchester Leisure,Gas,28-Jul-22,1907833036,Corona Energy Ltd,"2,145.49"
Manchester City Council,Regeneration Finance,Electricity,21-Jul-22,1907825703,Npower,"2,144.13"
Manchester City Council,Adult Social Care,"Consumable items eg Toilet rolls, soap etc",08-Jul-22,1907813309,HOTEL AT BOOKING.COM,"2,139.92"
Manchester City Council,Environment and Operations,Construction Works,26-Jul-22,5105826487,J.Hopkins (Contractors) Ltd.,"2,139.86"
Manchester City Council,Childrens & Education Services,Professional fees,21-Jul-22,5105825685,Russell & Russell Solicitors LLP,"2,139.55"
Manchester City Council,Chief Executives,Professional fees,21-Jul-22,5105825687,Russell & Russell Solicitors LLP,"2,131.25"
Manchester City Council,Regeneration Finance,Professional fees,29-Jul-22,5105826579,Counter Context Limited,"2,130.00"
Manchester City Council,Regeneration Finance,Training and Development,22-Jul-22,5105825914,Kilogramme Ltd,"2,130.00"
Manchester City Council,Childrens & Education Services,Supporting People Payments,13-Jul-22,5105824456,Child Action Northwest,"2,128.19"
Manchester City Council,Chief Executives,Examination Fees,12-Jul-22,5105824249,ROAR Forensics Ltd,"2,128.00"
Manchester City Council,Chief Executives,Travel,29-Jul-22,5105826508,Diversity Travel Ltd,"2,125.00"
Manchester City Council,Regeneration Finance,Water - Metered,28-Jul-22,1907832497,Anglian Water Business (National),"2,124.46"
Manchester City Council,Regeneration Finance,Gas,28-Jul-22,1907832951,Corona Energy Ltd,"2,123.62"
Manchester City Council,Housing General Fund,Building Works,19-Jul-22,1907822661,Hoist & Shower Chair Company,"2,122.50"
Manchester City Council,Adult Social Care,Bed & Breakfast Acc,18-Jul-22,5105824934,Redacted Personal Information,"2,120.00"
Manchester City Council,Adult Social Care,"Consumable items eg Toilet rolls, soap etc",08-Jul-22,1907812894,HOTEL AT BOOKING.COM,"2,120.00"
Manchester City Council,Chief Executives,Postage,13-Jul-22,5105824583,Whistl North Ltd,"2,113.14"
Manchester City Council,Hospitality + Trading Services,Equipment,08-Jul-22,1907796287,Stapletons Tyre Services,"2,111.98"
Manchester City Council,Hospitality + Trading Services,Equipment,11-Jul-22,1907813895,Stapletons Tyre Services,"2,111.98"
Manchester City Council,Hospitality + Trading Services,Equipment,11-Jul-22,1907813919,Stapletons Tyre Services,"2,111.98"
Manchester City Council,Adult Social Care,"Consumable items eg Toilet rolls, soap etc",08-Jul-22,1907813644,HOTEL AT BOOKING.COM,"2,111.00"
Manchester City Council,Adult Social Care,Rents,05-Jul-22,1907796104,Crown Homes Ltd,"2,107.69"
Manchester City Council,Childrens & Education Services,Supported Accommodation,21-Jul-22,5105825706,Bedspace Resource Ltd,"2,103.57"
Manchester City Council,Environment and Operations,Construction Works,29-Jul-22,5105823387,Balfour Beatty Living Places Ltd,"2,090.87"
Manchester City Council,Corporate Services,Tracing fees,13-Jul-22,5105824552,Experian Limited,"2,089.45"
Manchester City Council,Environment and Operations,Agency staff provision,11-Jul-22,5105823908,C2Compliance Limited,"2,080.33"
Manchester City Council,Adult Social Care,Supporting People Payments,13-Jul-22,5105824456,Child Action Northwest,"2,080.12"
Manchester City Council,Corporate Services,Professional fees,04-Jul-22,5105823015,Redacted Personal Information,"2,080.00"
Manchester City Council,Manchester Leisure,"Consumable items eg Toilet rolls, soap etc",05-Jul-22,1907796214,RADISSON BLU MANCHESTER F,"2,074.27"
Manchester City Council,Manchester Leisure,Professional fees,01-Jul-22,5105823039,Windsor Telecom,"2,071.25"
Manchester City Council,Manchester Leisure,Professional fees,01-Jul-22,5105823040,Windsor Telecom,"2,071.25"
Manchester City Council,Adult Social Care,Agency staff provision,29-Jul-22,1907589483,Personal Best Life Coaching,"2,070.00"
Manchester City Council,Manchester Leisure,Training and Development,29-Jul-22,5105827111,Cemetery Training Services Ltd,"2,061.40"
Manchester City Council,Manchester Leisure,Gas,28-Jul-22,1907832956,Corona Energy Ltd,"2,061.20"
Manchester City Council,Regeneration Finance,Storage Costs,25-Jul-22,5105826258,H.M. Land Registry,"2,060.00"
Manchester City Council,Hospitality + Trading Services,Equipment,11-Jul-22,1907813893,BARLOW TRAILERS LTD,"2,060.00"
Manchester City Council,Childrens & Education Services,Internal Repairs and Maintenance for buildings,28-Jul-22,5105826778,NU3PS,"2,054.22"
Manchester City Council,Manchester Leisure,Gas,28-Jul-22,1907833078,Corona Energy Ltd,"2,053.67"
Manchester City Council,Highways Services,Water - Metered,21-Jul-22,1907825439,Anglian Water Business (National),"2,050.12"
Manchester City Council,Chief Executives,Legal Fees,13-Jul-22,5105824469,Redacted Personal Information,"2,050.00"
Manchester City Council,Manchester Leisure,Goods purchased for resale in Council outlets,08-Jul-22,5105823775,Hachette UK Distribution,"2,047.76"
Manchester City Council,Chief Executives,Printing,19-Jul-22,5105825036,Browns CTP Ltd,"2,047.00"
Manchester City Council,Adult Social Care,Equipment,19-Jul-22,5105825321,Sarabec Limited,"2,042.50"
Manchester City Council,Childrens & Education Services,ClothsUniformLaundry,13-Jul-22,5105824309,Keltic Limited,"2,041.20"
Manchester City Council,Chief Executives,Legal Fees,13-Jul-22,1907813871,Advanced Child Care Assessments,"2,038.80"
Manchester City Council,Adult Social Care,"Consumable items eg Toilet rolls, soap etc",08-Jul-22,1907813002,HOTEL AT BOOKING.COM,"2,037.00"
Manchester City Council,Hospitality + Trading Services,Goods purchased for resale in Council outlets,11-Jul-22,5105824009,Obitus,"2,034.00"
Manchester City Council,Highways Services,Payments to Sub-Contractors,25-Jul-22,5105826004,Fairway Landscapes Ltd,"2,027.60"
Manchester City Council,Housing Revenue Account,Council Dwelling Adaptations,14-Jul-22,5105824613,Rexel UK Ltd,"2,024.69"
Manchester City Council,Regeneration Finance,Gas,28-Jul-22,1907833091,Corona Energy Ltd,"2,023.52"
Manchester City Council,Regeneration Finance,Gas,28-Jul-22,1907833236,Corona Energy Ltd,"2,022.64"
Manchester City Council,Regeneration Finance,Electricity,28-Jul-22,1907832706,Scottish & Southern Energy Plc,"2,022.44"
Manchester City Council,Childrens & Education Services,Third party payments to other Local Authorities,25-Jul-22,5105824410,New Bridge School,"2,019.43"
Manchester City Council,Chief Executives,Professional fees,21-Jul-22,5105825692,Russell & Russell Solicitors LLP,"2,018.75"
Manchester City Council,Adult Social Care,Equipment,19-Jul-22,5105825175,Aidapt Bathrooms Ltd,"2,017.60"
Manchester City Council,Chief Executives,Professional fees,04-Jul-22,5105823197,Waddington & Son Solicitors,"2,016.33"
Manchester City Council,Childrens & Education Services,Transport Coach Hire,20-Jul-22,5105825389,T/A Beresford Travel,"2,014.00"
Manchester City Council,Adult Social Care,Equipment,19-Jul-22,5105825118,Drive Devilbiss Healthcare Ltd,"2,011.20"
Manchester City Council,Chief Executives,Equipment,29-Jul-22,5105826645,Vision Aid Technologies,"2,005.00"
Manchester City Council,Manchester Leisure,Payments to Sub-Contractors,19-Jul-22,5105825172,Flowbird Smart City Uk Ltd,"2,000.00"
Manchester City Council,Highways Services,Payments to Sub-Contractors,27-Jul-22,5105826521,Utilities Design & Planning Ltd,"2,000.00"
Manchester City Council,Chief Executives,Agency staff provision,06-Jul-22,5105823440,Adecco Uk Ltd,"2,000.00"
Manchester City Council,Chief Executives,Agency staff provision,06-Jul-22,5105823442,Adecco Uk Ltd,"2,000.00"
Manchester City Council,Chief Executives,Agency staff provision,06-Jul-22,5105823444,Adecco Uk Ltd,"2,000.00"
Manchester City Council,Chief Executives,Legal Fees,21-Jul-22,5105825555,Kings Chambers,"2,000.00"
Manchester City Council,Regeneration Finance,Legal Fees,27-Jul-22,5105826687,Kings Chambers,"2,000.00"
Manchester City Council,Childrens & Education Services,Grant and subscriptions awarded,27-Jul-22,5105826566,Zion Arts Centre Ltd,"2,000.00"
Manchester City Council,Highways Services,Payments to Sub-Contractors,18-Jul-22,5105824497,Rosgal Ltd,"2,000.00"
Manchester City Council,Hospitality + Trading Services,Vehicle Hire Costs,14-Jul-22,5105824751,Peter Douglass Platforms,"2,000.00"
Manchester City Council,Regeneration Finance,Professional fees,11-Jul-22,5105823950,Colliers International,"2,000.00"
Manchester City Council,Insurance Fund,Insurance,14-Jul-22,1907818971,Trade Union Legal LLP,"2,000.00"
Manchester City Council,Corporate Services,Works and associated costs for Land and Buildings,11-Jul-22,5105823797,Ramboll UK Limited,"2,000.00"
Manchester City Council,Corporate Services,Works and associated costs for Land and Buildings,11-Jul-22,5105823799,Ramboll UK Limited,"2,000.00"
Manchester City Council,Manchester Leisure,Grant and subscriptions awarded,28-Jul-22,5105826761,Wythenshawe Waste Warriors,"2,000.00"
Manchester City Council,Corporate Services,Legal Fees,06-Jul-22,1907796159,EMERALD LAW,"2,000.00"
Manchester City Council,Insurance Fund,Insurance,19-Jul-22,1907822807,Trade Union Legal LLP,"2,000.00"
Manchester City Council,Adult Social Care,Housing Rents Debit,26-Jul-22,1907826549,Redacted Personal Information,"2,000.00"
Manchester City Council,Chief Executives,Funeral and coroner related services,29-Jul-22,1907813854,Nadel Medical Ltd,"2,000.00"
Manchester City Council,Manchester Leisure,Building Materials for direct delivery,11-Jul-22,5105823310,Flowprotect Ltd,"1,999.75"
Manchester City Council,Adult Social Care,"Consumable items eg Toilet rolls, soap etc",08-Jul-22,1907813161,HIE MANCHESTER EAST,"1,996.86"
Manchester City Council,Manchester Leisure,Building Materials for direct delivery,11-Jul-22,5105823313,Flowprotect Ltd,"1,995.50"
Manchester City Council,Adult Social Care,Professional fees,13-Jul-22,5105823306,UNIQUE SPECIALIST SERVICES,"1,989.00"
Manchester City Council,Childrens & Education Services,Professional fees,06-Jul-22,5105823468,Waddington & Son Solicitors,"1,987.50"
Manchester City Council,Childrens & Education Services,Electricity,21-Jul-22,1907825857,Scottish & Southern Energy Plc,"1,986.95"
Manchester City Council,Regeneration Finance,Security,14-Jul-22,5105824690,MITIE SECURITY LIMITED,"1,985.20"
Manchester City Council,Hospitality + Trading Services,External repairs and maintenance for buildings,25-Jul-22,5105826165,WMB (Installations) Ltd,"1,982.70"
Manchester City Council,Libraries and Theatres,Vehicle Plant Furniture and Equipment,07-Jul-22,5105823790,H Jenkinson & Co Ltd.,"1,980.00"
Manchester City Council,Childrens & Education Services,Transport Coach Hire,22-Jul-22,5105825871,Exec-Coach Services,"1,980.00"
Manchester City Council,Childrens & Education Services,Transport Coach Hire,20-Jul-22,5105825383,JKR Travel,"1,980.00"
Manchester City Council,Adult Social Care,Bed & Breakfast Acc,13-Jul-22,5105824513,Redacted Personal Information,"1,980.00"
Manchester City Council,Adult Social Care,Third party payments to Health Authority,20-Jul-22,1907819113,Northern Care Alliance NHS FT,"1,979.24"
